BIOGUIDE_ID,OFFICE,QUARTER,CATEGORY,DATE,PAYEE,START DATE,END DATE,PURPOSE,AMOUNT,YEAR,TRANSCODE,TRANSCODELONG,RECORDID,RECIP (orig.)
,COMMUNICATIONS,2009Q3,OTHER SERVICES,"","07­01   P2 OPR0900726A                    STRATTON DESIGN SOURCE, INC",10/04/06,10/04/06,NON-TECHNOLOGY SERVICE CONTRCT,"16,799.25",FISCAL YEAR 2009,"","","","07­01   P2 OPR0900726A                    STRATTON DESIGN SOURCE, INC"
,COMMUNICATIONS,2009Q3,OTHER SERVICES,"",07­22   P2 OPR0900726B                         DO,10/04/06,10/04/06,NON-TECHNOLOGY SERVICE CONTRCT,"3,876.75",FISCAL YEAR 2009,"","","",07­22   P2 OPR0900726B                         DO
,COMMUNICATIONS,2009Q3,OTHER SERVICES,"",08­06   P2 FSS0000575A                    THE KANE COMPANY,07/18/06,07/18/06,NON-TECHNOLOGY SERVICE CONTRCT,"2,132.00",FISCAL YEAR 2009,"","","",08­06   P2 FSS0000575A                    THE KANE COMPANY
,COMMUNICATIONS,2009Q3,OTHER SERVICES,"",08­25   P2 MFP0003163                     AVAYA,05/29/09,05/29/09,NON-TECHNOLOGY SERVICE CONTRCT,888.00,FISCAL YEAR 2009,"","","",08­25   P2 MFP0003163                     AVAYA
,COMMUNICATIONS,2009Q3,OTHER SERVICES,"","09­10   P2 OPR0900726C                    STRATTON DESIGN SOURCE, INC",10/04/06,10/04/06,NON-TECHNOLOGY SERVICE CONTRCT,590.18,FISCAL YEAR 2009,"","","","09­10   P2 OPR0900726C                    STRATTON DESIGN SOURCE, INC"
,COMMUNICATIONS,2009Q3,OTHER SERVICES,"",09­10   P2 OPR0900726C                         DO,10/04/06,10/04/06,NON-TECHNOLOGY SERVICE CONTRCT,590.18,FISCAL YEAR 2009,"","","",09­10   P2 OPR0900726C                         DO
,COMMUNICATIONS,2009Q3,OTHER SERVICES,"",09­10   P2 OPR0900726C                         DO,10/04/06,10/04/06,NON-TECHNOLOGY SERVICE CONTRCT,"1,031.25",FISCAL YEAR 2009,"","","",09­10   P2 OPR0900726C                         DO
,COMMUNICATIONS,2009Q3,SUPPLIES AND MATERIALS,"",07­31   S1 DY090700018,07/01/09,07/31/09,OFFICE SUPPLY (TRANSFER),179.87,FISCAL YEAR 2009,"","","",07­31   S1 DY090700018
,COMMUNICATIONS,2009Q3,SUPPLIES AND MATERIALS,"",08­31   S1 DY090800017,08/01/09,08/31/09,OFFICE SUPPLY (TRANSFER),184.45,FISCAL YEAR 2009,"","","",08­31   S1 DY090800017
,COMMUNICATIONS,2009Q3,SUPPLIES AND MATERIALS,"",09­30   S1 DY090900018,09/01/09,09/30/09,OFFICE SUPPLY (TRANSFER),285.16,FISCAL YEAR 2009,"","","",09­30   S1 DY090900018
,COMMUNICATIONS,2009Q3,EQUIPMENT,"",07­20   P2    MFP0003151                  ALLSTEEL,03/11/09,03/11/09,FURNITURE ­ $25000,"2,489.43",FISCAL YEAR 2009,"","","",07­20   P2    MFP0003151                  ALLSTEEL
,COMMUNICATIONS,2009Q3,EQUIPMENT,"",07­20   P2    MFP0003151                       DO,03/11/09,03/11/09,FURNITURE ­ $25000,274.38,FISCAL YEAR 2009,"","","",07­20   P2    MFP0003151                       DO
,COMMUNICATIONS,2009Q3,EQUIPMENT,"",07­20   P2    MFP0003151                       DO,03/11/09,03/11/09,FURNITURE ­ $25000,475.00,FISCAL YEAR 2009,"","","",07­20   P2    MFP0003151                       DO
,COMMUNICATIONS,2009Q3,EQUIPMENT,"",07­20   P2    FSS41144                    DESIGN SURFACES INC,06/26/09,06/26/09,CARPET,"2,275.00",FISCAL YEAR 2009,"","","",07­20   P2    FSS41144                    DESIGN SURFACES INC
,COMMUNICATIONS,2009Q3,EQUIPMENT,"",07­20   P2    MFP0003147                  KIMBALL INT'L MARKETING,03/11/09,03/11/09,FURNITURE ­ $25000,"4,019.24",FISCAL YEAR 2009,"","","",07­20   P2    MFP0003147                  KIMBALL INT'L MARKETING
,COMMUNICATIONS,2009Q3,EQUIPMENT,"",07­20   P2    MFP0003147                       DO,03/11/09,03/11/09,FURNITURE ­ $25000,750.00,FISCAL YEAR 2009,"","","",07­20   P2    MFP0003147                       DO
,COMMUNICATIONS,2009Q3,EQUIPMENT,"",07­27 P2 MFP224002BG        ALLSTEEL,07/24/06,07/24/06,FURNITURE ­ $25000,"1,620.31",FISCAL YEAR 2009,"","","",07­27 P2 MFP224002BG        ALLSTEEL
,COMMUNICATIONS,2009Q3,EQUIPMENT,"",07­27 P2 MFP224002BG                  DO,07/24/06,07/24/06,FURNITURE ­ $25000,"16,861.56",FISCAL YEAR 2009,"","","",07­27 P2 MFP224002BG                  DO
,COMMUNICATIONS,2009Q3,EQUIPMENT,"",07­27 P2 MFP224002BG                  DO,07/24/06,07/24/06,FURNITURE ­ $25000,"3,242.00",FISCAL YEAR 2009,"","","",07­27 P2 MFP224002BG                  DO
,COMMUNICATIONS,2009Q3,EQUIPMENT,"",07­27 P2 MFP341L0901                  DO,07/24/06,07/24/06,FURNITURE ­ $25000,"1,350.25",FISCAL YEAR 2009,"","","",07­27 P2 MFP341L0901                  DO
,COMMUNICATIONS,2009Q3,EQUIPMENT,"",07­27 P2 MFP341L0901                  DO,07/24/06,07/24/06,FURNITURE ­ $25000,"15,234.00",FISCAL YEAR 2009,"","","",07­27 P2 MFP341L0901                  DO
,COMMUNICATIONS,2009Q3,EQUIPMENT,"",07­27 P2 MFP341L0901                  DO,07/24/06,07/24/06,FURNITURE ­ $25000,"2,908.81",FISCAL YEAR 2009,"","","",07­27 P2 MFP341L0901                  DO
,COMMUNICATIONS,2009Q3,EQUIPMENT,"",07­27 P2 MFP341L0901                  DO,07/24/06,07/24/06,FURNITURE ­ $25000,37.50,FISCAL YEAR 2009,"","","",07­27 P2 MFP341L0901                  DO
,COMMUNICATIONS,2009Q3,EQUIPMENT,"",07­27 P2 MFP224002GL        THE GUNLOCKE COMPANY,07/24/06,07/24/06,FURNITURE ­ $25000,"3,114.04",FISCAL YEAR 2009,"","","",07­27 P2 MFP224002GL        THE GUNLOCKE COMPANY
,COMMUNICATIONS,2009Q3,EQUIPMENT,"",07­27 P2 MFP224002GL                  DO,07/24/06,07/24/06,FURNITURE ­ $25000,"2,242.24",FISCAL YEAR 2009,"","","",07­27 P2 MFP224002GL                  DO
,COMMUNICATIONS,2009Q3,EQUIPMENT,"",07­27 P2 MFP224002GL                  DO,07/24/06,07/24/06,FURNITURE ­ $25000,"1,565.26",FISCAL YEAR 2009,"","","",07­27 P2 MFP224002GL                  DO
,COMMUNICATIONS,2009Q3,EQUIPMENT,"",07­27 P2 MFP224002GL                  DO,07/24/06,07/24/06,FURNITURE ­ $25000,"1,247.74",FISCAL YEAR 2009,"","","",07­27 P2 MFP224002GL                  DO
,COMMUNICATIONS,2009Q3,EQUIPMENT,"",07­27 P2 MFP224002GL                  DO,07/24/06,07/24/06,FURNITURE ­ $25000,"1,546.83",FISCAL YEAR 2009,"","","",07­27 P2 MFP224002GL                  DO
,COMMUNICATIONS,2009Q3,EQUIPMENT,"",07­27 P2 MFP224002GL                  DO,07/24/06,07/24/06,FURNITURE ­ $25000,707.95,FISCAL YEAR 2009,"","","",07­27 P2 MFP224002GL                  DO
,COMMUNICATIONS,2009Q3,EQUIPMENT,"",07­27 P2 MFP224002GL                  DO,07/24/06,07/24/06,FURNITURE ­ $25000,"1,013.52",FISCAL YEAR 2009,"","","",07­27 P2 MFP224002GL                  DO
,COMMUNICATIONS,2009Q3,EQUIPMENT,"",07­27 P2 MFP224002GL                  DO,07/24/06,07/24/06,FURNITURE ­ $25000,"2,354.47",FISCAL YEAR 2009,"","","",07­27 P2 MFP224002GL                  DO
,COMMUNICATIONS,2009Q3,EQUIPMENT,"",07­27 P2 MFP224002GL                  DO,07/24/06,07/24/06,FURNITURE ­ $25000,"3,277.90",FISCAL YEAR 2009,"","","",07­27 P2 MFP224002GL                  DO
,COMMUNICATIONS,2009Q3,EQUIPMENT,"",07­30 S8 MA000891399,07/01/09,07/31/09,EQUIPMENT MAINTENANCE,198.00,FISCAL YEAR 2009,"","","",07­30 S8 MA000891399
,COMMUNICATIONS,2009Q3,EQUIPMENT,"",08­06 P2 FSS41293           COMMERCIAL CARPETS OF AMERICA,07/21/09,07/21/09,CARPET,"2,145.00",FISCAL YEAR 2009,"","","",08­06 P2 FSS41293           COMMERCIAL CARPETS OF AMERICA
,COMMUNICATIONS,2009Q3,EQUIPMENT,"",08­24 P2 MFP231303BK        KIMBALL INT'L MARKETING,07/24/06,07/24/06,FURNITURE ­ $25000,"2,161.77",FISCAL YEAR 2009,"","","",08­24 P2 MFP231303BK        KIMBALL INT'L MARKETING
,COMMUNICATIONS,2009Q3,EQUIPMENT,"",08­24 P2 MFP231303BK                  DO,07/24/06,07/24/06,FURNITURE ­ $25000,"2,223.86",FISCAL YEAR 2009,"","","",08­24 P2 MFP231303BK                  DO
,COMMUNICATIONS,2009Q3,EQUIPMENT,"",08­24 P2 MFP231303BK                  DO,07/24/06,07/24/06,FURNITURE ­ $25000,661.37,FISCAL YEAR 2009,"","","",08­24 P2 MFP231303BK                  DO
,COMMUNICATIONS,2009Q3,EQUIPMENT,"",08­24 P2 MFP231303BK                  DO,07/24/06,07/24/06,FURNITURE ­ $25000,"1,099.18",FISCAL YEAR 2009,"","","",08­24 P2 MFP231303BK                  DO
,COMMUNICATIONS,2009Q3,EQUIPMENT,"",08­24 P2 MFP231303BK                  DO,07/24/06,07/24/06,FURNITURE ­ $25000,"2,093.46",FISCAL YEAR 2009,"","","",08­24 P2 MFP231303BK                  DO
,COMMUNICATIONS,2009Q3,EQUIPMENT,"",08­24 P2 MFP231303BK                  DO,07/24/06,07/24/06,FURNITURE ­ $25000,"1,408.86",FISCAL YEAR 2009,"","","",08­24 P2 MFP231303BK                  DO
,COMMUNICATIONS,2009Q3,EQUIPMENT,"",08­24 P2 MFP231303BK                  DO,07/24/06,07/24/06,FURNITURE ­ $25000,871.16,FISCAL YEAR 2009,"","","",08­24 P2 MFP231303BK                  DO
,COMMUNICATIONS,2009Q3,EQUIPMENT,"",08­24 P2 MFP231303BK                  DO,07/24/06,07/24/06,FURNITURE ­ $25000,"2,943.96",FISCAL YEAR 2009,"","","",08­24 P2 MFP231303BK                  DO
,COMMUNICATIONS,2009Q3,EQUIPMENT,"",08­24 P2 MFP231303BK                  DO,07/24/06,07/24/06,FURNITURE ­ $25000,"5,795.82",FISCAL YEAR 2009,"","","",08­24 P2 MFP231303BK                  DO
,COMMUNICATIONS,2009Q3,EQUIPMENT,"",08­24 P2 MFP231303BK                  DO,07/24/06,07/24/06,FURNITURE ­ $25000,41.15,FISCAL YEAR 2009,"","","",08­24 P2 MFP231303BK                  DO
,COMMUNICATIONS,2009Q3,EQUIPMENT,"",08­24 P2 MFP231303BK                  DO,07/24/06,07/24/06,FURNITURE ­ $25000,"20,588.57",FISCAL YEAR 2009,"","","",08­24 P2 MFP231303BK                  DO
,COMMUNICATIONS,2009Q3,EQUIPMENT,"",08­25 P2 MFP244904AA        ALLSTEEL,07/24/06,07/24/06,FURNITURE ­ $25000,"2,223.60",FISCAL YEAR 2009,"","","",08­25 P2 MFP244904AA        ALLSTEEL
,COMMUNICATIONS,2009Q3,EQUIPMENT,"",08­25 P2 MFP244904AA                  DO,07/24/06,07/24/06,FURNITURE ­ $25000,"31,094.69",FISCAL YEAR 2009,"","","",08­25 P2 MFP244904AA                  DO
,COMMUNICATIONS,2009Q3,EQUIPMENT,"",08­25 P2 MFP244904AA                  DO,07/24/06,07/24/06,FURNITURE ­ $25000,"5,841.76",FISCAL YEAR 2009,"","","",08­25 P2 MFP244904AA                  DO
,COMMUNICATIONS,2009Q3,EQUIPMENT,"",08­25 P2 FSS41373           COMMERCIAL CARPETS OF AMERICA,08/04/09,08/04/09,CARPET,"1,300.00",FISCAL YEAR 2009,"","","",08­25 P2 FSS41373           COMMERCIAL CARPETS OF AMERICA
,COMMUNICATIONS,2009Q3,EQUIPMENT,"",08­26 P2 FSS41325           DESIGN SURFACES INC,07/24/09,07/24/09,CARPET,"2,015.00",FISCAL YEAR 2009,"","","",08­26 P2 FSS41325           DESIGN SURFACES INC
,COMMUNICATIONS,2009Q3,EQUIPMENT,"",08­26 P2 FSS41435                     DO,08/13/09,08/13/09,CARPET,"2,340.00",FISCAL YEAR 2009,"","","",08­26 P2 FSS41435                     DO
,COMMUNICATIONS,2009Q3,EQUIPMENT,"",08­26 P2 MFP226504BG        THE GUNLOCKE COMPANY,07/24/06,07/24/06,FURNITURE ­ $25000,"1,557.02",FISCAL YEAR 2009,"","","",08­26 P2 MFP226504BG        THE GUNLOCKE COMPANY
,COMMUNICATIONS,2009Q3,EQUIPMENT,"",08­26 P2 MFP226504BG                  DO,07/24/06,07/24/06,FURNITURE ­ $25000,505.86,FISCAL YEAR 2009,"","","",08­26 P2 MFP226504BG                  DO
,COMMUNICATIONS,2009Q3,EQUIPMENT,"",08­26 P2 MFP226504BG                  DO,07/24/06,07/24/06,FURNITURE ­ $25000,967.42,FISCAL YEAR 2009,"","","",08­26 P2 MFP226504BG                  DO
,COMMUNICATIONS,2009Q3,EQUIPMENT,"",08­26 P2 MFP226504BG                  DO,07/24/06,07/24/06,FURNITURE ­ $25000,"3,983.51",FISCAL YEAR 2009,"","","",08­26 P2 MFP226504BG                  DO
,COMMUNICATIONS,2009Q3,EQUIPMENT,"",08­27 S8 MA000897752,08/01/09,08/31/09,EQUIPMENT MAINTENANCE,12.00,FISCAL YEAR 2009,"","","",08­27 S8 MA000897752
,COMMUNICATIONS,2009Q3,EQUIPMENT,"",09­08 P2 MFP244904A2        ALLSTEEL,07/24/06,07/24/06,FURNITURE ­ $25000,83.50,FISCAL YEAR 2009,"","","",09­08 P2 MFP244904A2        ALLSTEEL
,COMMUNICATIONS,2009Q3,EQUIPMENT,"",09­08 P2 MFP244904A2                  DO,07/24/06,07/24/06,FURNITURE ­ $25000,477.13,FISCAL YEAR 2009,"","","",09­08 P2 MFP244904A2                  DO
,COMMUNICATIONS,2009Q3,EQUIPMENT,"",09­08 P2 FSS41436           COMMERCIAL CARPETS OF AMERICA,08/13/09,08/13/09,CARPET,"2,080.00",FISCAL YEAR 2009,"","","",09­08 P2 FSS41436           COMMERCIAL CARPETS OF AMERICA
,COMMUNICATIONS,2009Q3,EQUIPMENT,"",09­08      P2    FSS41453                           DO,08/18/09,08/18/09,CARPET,"2,080.00",FISCAL YEAR 2009,"","","",09­08      P2    FSS41453                           DO
,COMMUNICATIONS,2009Q3,EQUIPMENT,"",09­08      P2    FSS41497                           DO,08/21/09,08/21/09,CARPET,"2,119.00",FISCAL YEAR 2009,"","","",09­08      P2    FSS41497                           DO
,COMMUNICATIONS,2009Q3,EQUIPMENT,"",09­08      P2    MFP226604CK               KIMBALL INT'L MARKETING,07/24/06,07/24/06,FURNITURE ­ $25000,"21,178.17",FISCAL YEAR 2009,"","","",09­08      P2    MFP226604CK               KIMBALL INT'L MARKETING
,COMMUNICATIONS,2009Q3,EQUIPMENT,"",09­08      P2    MFP226604CK                        DO,07/24/06,07/24/06,FURNITURE ­ $25000,"1,631.75",FISCAL YEAR 2009,"","","",09­08      P2    MFP226604CK                        DO
,COMMUNICATIONS,2009Q3,EQUIPMENT,"",09­08      P2    MFP226604CK                        DO,07/24/06,07/24/06,FURNITURE ­ $25000,"2,223.86",FISCAL YEAR 2009,"","","",09­08      P2    MFP226604CK                        DO
,COMMUNICATIONS,2009Q3,EQUIPMENT,"",09­08      P2    MFP226604CK                        DO,07/24/06,07/24/06,FURNITURE ­ $25000,"1,099.18",FISCAL YEAR 2009,"","","",09­08      P2    MFP226604CK                        DO
,COMMUNICATIONS,2009Q3,EQUIPMENT,"",09­08      P2    MFP226604CK                        DO,07/24/06,07/24/06,FURNITURE ­ $25000,"2,093.46",FISCAL YEAR 2009,"","","",09­08      P2    MFP226604CK                        DO
,COMMUNICATIONS,2009Q3,EQUIPMENT,"",09­08      P2    MFP226604CK                        DO,07/24/06,07/24/06,FURNITURE ­ $25000,"2,085.75",FISCAL YEAR 2009,"","","",09­08      P2    MFP226604CK                        DO
,COMMUNICATIONS,2009Q3,EQUIPMENT,"",09­08      P2    MFP226604CK                        DO,07/24/06,07/24/06,FURNITURE ­ $25000,"1,322.73",FISCAL YEAR 2009,"","","",09­08      P2    MFP226604CK                        DO
,COMMUNICATIONS,2009Q3,EQUIPMENT,"",09­08      P2    MFP226604CK                        DO,07/24/06,07/24/06,FURNITURE ­ $25000,349.11,FISCAL YEAR 2009,"","","",09­08      P2    MFP226604CK                        DO
,COMMUNICATIONS,2009Q3,EQUIPMENT,"",09­08      P2    MFP226604CK                        DO,07/24/06,07/24/06,FURNITURE ­ $25000,"2,942.52",FISCAL YEAR 2009,"","","",09­08      P2    MFP226604CK                        DO
,COMMUNICATIONS,2009Q3,EQUIPMENT,"",09­08      P2    MFP226604CK                        DO,07/24/06,07/24/06,FURNITURE ­ $25000,"7,409.90",FISCAL YEAR 2009,"","","",09­08      P2    MFP226604CK                        DO
,COMMUNICATIONS,2009Q3,EQUIPMENT,"",09­08      P2    MFP226604CK                        DO,07/24/06,07/24/06,FURNITURE ­ $25000,"8,542.30",FISCAL YEAR 2009,"","","",09­08      P2    MFP226604CK                        DO
,COMMUNICATIONS,2009Q3,EQUIPMENT,"",09­08      P2    MFP226604CK                        DO,07/24/06,07/24/06,FURNITURE ­ $25000,118.70,FISCAL YEAR 2009,"","","",09­08      P2    MFP226604CK                        DO
,COMMUNICATIONS,2009Q3,EQUIPMENT,"",09­10      P2    MFP233406AG               THE GUNLOCKE COMPANY,07/24/06,07/24/06,FURNITURE ­ $25000,"4,485.26",FISCAL YEAR 2009,"","","",09­10      P2    MFP233406AG               THE GUNLOCKE COMPANY
,COMMUNICATIONS,2009Q3,EQUIPMENT,"",09­10      P2    MFP233406AG                        DO,07/24/06,07/24/06,FURNITURE ­ $25000,827.51,FISCAL YEAR 2009,"","","",09­10      P2    MFP233406AG                        DO
,COMMUNICATIONS,2009Q3,EQUIPMENT,"",09­10      P2    MFP233406AG                        DO,07/24/06,07/24/06,FURNITURE ­ $25000,"1,792.22",FISCAL YEAR 2009,"","","",09­10      P2    MFP233406AG                        DO
,COMMUNICATIONS,2009Q3,EQUIPMENT,"",09­10      P2    MFP233406AG                        DO,07/24/06,07/24/06,FURNITURE ­ $25000,"2,112.88",FISCAL YEAR 2009,"","","",09­10      P2    MFP233406AG                        DO
,COMMUNICATIONS,2009Q3,EQUIPMENT,"",09­10      P2    MFP233406AG                        DO,07/24/06,07/24/06,FURNITURE ­ $25000,707.95,FISCAL YEAR 2009,"","","",09­10      P2    MFP233406AG                        DO
,COMMUNICATIONS,2009Q3,EQUIPMENT,"",09­10      P2    MFP233406AG                        DO,07/24/06,07/24/06,FURNITURE ­ $25000,362.99,FISCAL YEAR 2009,"","","",09­10      P2    MFP233406AG                        DO
,COMMUNICATIONS,2009Q3,EQUIPMENT,"",09­10      P2    MFP233406AG                        DO,07/24/06,07/24/06,FURNITURE ­ $25000,506.86,FISCAL YEAR 2009,"","","",09­10      P2    MFP233406AG                        DO
,COMMUNICATIONS,2009Q3,EQUIPMENT,"",09­10      P2    MFP233406AG                        DO,07/24/06,07/24/06,FURNITURE ­ $25000,"3,004.10",FISCAL YEAR 2009,"","","",09­10      P2    MFP233406AG                        DO
,COMMUNICATIONS,2009Q3,EQUIPMENT,"",09­10      P2    MFP233406AG                        DO,07/24/06,07/24/06,FURNITURE ­ $25000,"7,883.12",FISCAL YEAR 2009,"","","",09­10      P2    MFP233406AG                        DO
,COMMUNICATIONS,2009Q3,EQUIPMENT,"",09­10      P2    MFP233406AG                        DO,07/24/06,07/24/06,FURNITURE ­ $25000,96.82,FISCAL YEAR 2009,"","","",09­10      P2    MFP233406AG                        DO
,COMMUNICATIONS,2009Q3,EQUIPMENT,"",09­30      S8    MA000904130,09/01/09,09/30/09,EQUIPMENT MAINTENANCE,16.00,FISCAL YEAR 2009,"","","",09­30      S8    MA000904130
,COMMUNICATIONS,2009Q3,EQUIPMENT,"",09­30      S8    MA000904132,08/01/09,08/31/09,EQUIPMENT MAINTENANCE,8.00,FISCAL YEAR 2009,"","","",09­30      S8    MA000904132
,COMMUNICATIONS,2009Q3,OTHER SERVICES,"",09­10 P2 OPR040758AO        CONFLUENT,05/20/04,05/20/04,NON TECHNOLOGY SERVICE CONTRCT,"5,133.48",FISCAL YEAR 2007,"","","",09­10 P2 OPR040758AO        CONFLUENT
,OFFICE OF THE SPEAKER,2009Q3,PERSONNEL COMPENSATION,"","DALY, BRENDAN",07/01/09,09/30/09,COMMUNICATIONS DIRECTOR,"43,125.00",FISCAL YEAR 2009,"","","","DALY, BRENDAN"
,OFFICE OF THE SPEAKER,2009Q3,PERSONNEL COMPENSATION,"","LEVISON, LARA K",08/01/09,09/30/09,POLICY ADVISOR,"13,385.00",FISCAL YEAR 2009,"","","","LEVISON, LARA K"
,OFFICE OF THE SPEAKER,2009Q3,PERSONNEL COMPENSATION,"","ONEK,JOSEPH",07/01/09,09/30/09,SENIOR COUNSEL TO THE SPEAKER,"43,125.00",FISCAL YEAR 2009,"","","","ONEK,JOSEPH"
,OFFICE OF THE SPEAKER,2009Q3,PERSONNEL COMPENSATION,"","PARKER, WYNDEE R",07/01/09,09/30/09,SENIOR POLICY ADVISOR,"43,125.00",FISCAL YEAR 2009,"","","","PARKER, WYNDEE R"
,OFFICE OF THE SPEAKER,2009Q3,PERSONNEL COMPENSATION,"","PRICE, REVA B",08/01/09,09/30/09,POLICY ADVISOR,"23,780.00",FISCAL YEAR 2009,"","","","PRICE, REVA B"
,OFFICE OF THE SPEAKER,2009Q3,PERSONNEL COMPENSATION,"","PRIMUS, WENDELL E",09/01/09,09/30/09,SENIOR POLICY ADVISOR,"14,375.00",FISCAL YEAR 2009,"","","","PRIMUS, WENDELL E"
,OFFICE OF THE SPEAKER,2009Q3,PERSONNEL COMPENSATION,"","QUALLS,ELLEN S",07/01/09,09/30/09,SR ADV FOR STRATEGIC PLANNING,"42,127.08",FISCAL YEAR 2009,"","","","QUALLS,ELLEN S"
,OFFICE OF THE SPEAKER,2009Q3,PERSONNEL COMPENSATION,"","BARRY,MARY K",07/01/09,09/30/09,STAFF ASSISTANT,"11,091.26",FISCAL YEAR 2009,"","","","BARRY,MARY K"
,OFFICE OF THE SPEAKER,2009Q3,PERSONNEL COMPENSATION,"","BARRY,MARY K",06/01/09,08/31/09,STAFF ASSISTANT (OVERTIME),"2,612.48",FISCAL YEAR 2009,"","","",DO
,OFFICE OF THE SPEAKER,2009Q3,PERSONNEL COMPENSATION,"","BERENS,KELLY E",07/01/09,09/30/09,SPECIAL ASSISTANT TO THE SPEAK,"18,681.99",FISCAL YEAR 2009,"","","","BERENS,KELLY E"
,OFFICE OF THE SPEAKER,2009Q3,PERSONNEL COMPENSATION,"","BLOOM, MICHAEL T",09/01/09,09/30/09,POLICY ASSISTANT,"6,294.58",FISCAL YEAR 2009,"","","","BLOOM, MICHAEL T"
,OFFICE OF THE SPEAKER,2009Q3,PERSONNEL COMPENSATION,"","BOULE, SCOTT",09/01/09,09/30/09,POLICY ADVISOR,"5,423.75",FISCAL YEAR 2009,"","","","BOULE, SCOTT"
,OFFICE OF THE SPEAKER,2009Q3,PERSONNEL COMPENSATION,"","BRENNAN,JOHN K",07/01/09,09/30/09,SPECIAL ASSISTANT,"31,385.01",FISCAL YEAR 2009,"","","","BRENNAN,JOHN K"
,OFFICE OF THE SPEAKER,2009Q3,PERSONNEL COMPENSATION,"","CANNON, ANNE C",09/01/09,09/30/09,POLICY ADVISOR,"7,083.33",FISCAL YEAR 2009,"","","","CANNON, ANNE C"
,OFFICE OF THE SPEAKER,2009Q3,PERSONNEL COMPENSATION,"","CAPRON, MARGARET W",09/01/09,09/30/09,POLICY ADVISOR,"10,390.00",FISCAL YEAR 2009,"","","","CAPRON, MARGARET W"
,OFFICE OF THE SPEAKER,2009Q3,PERSONNEL COMPENSATION,"","CASHMAN,MARY D",07/01/09,09/30/09,ASSIST TO THE CHIEF OF STAFF,"17,517.50",FISCAL YEAR 2009,"","","","CASHMAN,MARY D"
,OFFICE OF THE SPEAKER,2009Q3,PERSONNEL COMPENSATION,"","CHERRY,STEPHANIE",07/01/09,09/30/09,PRESS ADVISOR,"17,585.00",FISCAL YEAR 2009,"","","","CHERRY,STEPHANIE"
,OFFICE OF THE SPEAKER,2009Q3,PERSONNEL COMPENSATION,"","CHIU,CRYSTAL S",07/01/09,09/30/09,PRESS ASSISTANT,"14,666.34",FISCAL YEAR 2009,"","","","CHIU,CRYSTAL S"
,OFFICE OF THE SPEAKER,2009Q3,PERSONNEL COMPENSATION,"","DEWHIRST, DIANE",07/01/09,09/30/09,SENIOR ADVISOR,"28,500.00",FISCAL YEAR 2009,"","","","DEWHIRST, DIANE"
,OFFICE OF THE SPEAKER,2009Q3,PERSONNEL COMPENSATION,"","ELSHAMI,NADEEM",07/01/09,09/30/09,DEPUTY COMMUNICATIONS DIRECTOR,"37,692.75",FISCAL YEAR 2009,"","","","ELSHAMI,NADEEM"
,OFFICE OF THE SPEAKER,2009Q3,PERSONNEL COMPENSATION,"","FALLON,BRIDGET C",07/01/09,09/30/09,DIRECTOR OF PROTOCOL,"30,770.51",FISCAL YEAR 2009,"","","","FALLON,BRIDGET C"
,OFFICE OF THE SPEAKER,2009Q3,PERSONNEL COMPENSATION,"","GANS,JOHN A",06/15/09,09/15/09,RESEARCHER,"9,277.77",FISCAL YEAR 2009,"","","","GANS,JOHN A"
,OFFICE OF THE SPEAKER,2009Q3,PERSONNEL COMPENSATION,"","GREENER, APRIL L",07/01/09,09/30/09,RESEARCHER,"19,091.52",FISCAL YEAR 2009,"","","","GREENER, APRIL L"
,OFFICE OF THE SPEAKER,2009Q3,PERSONNEL COMPENSATION,"","HAMMILL, ANDREW T",07/01/09,09/30/09,PRESS SECRETARY,"25,029.99",FISCAL YEAR 2009,"","","","HAMMILL, ANDREW T"
,OFFICE OF THE SPEAKER,2009Q3,PERSONNEL COMPENSATION,"","HARRILCHAK, MARISA L",07/01/09,09/30/09,FLOOR ASSISTANT,"20,182.49",FISCAL YEAR 2009,"","","","HARRILCHAK, MARISA L"
,OFFICE OF THE SPEAKER,2009Q3,PERSONNEL COMPENSATION,"","HARTZ, JERRY",07/01/09,09/30/09,DIRECTOR OF FLOOR OPERATIONS,"41,305.76",FISCAL YEAR 2009,"","","","HARTZ, JERRY"
,OFFICE OF THE SPEAKER,2009Q3,PERSONNEL COMPENSATION,"","HAYNES JR, WILFRED J",07/01/09,09/30/09,IT DIRECTOR,"24,951.01",FISCAL YEAR 2009,"","","","HAYNES JR, WILFRED J"
,OFFICE OF THE SPEAKER,2009Q3,PERSONNEL COMPENSATION,"","JONES, SYDNEY",07/01/09,09/30/09,DEPUTY DIRECTOR - MEMBER SVCS,"20,089.99",FISCAL YEAR 2009,"","","","JONES, SYDNEY"
,OFFICE OF THE SPEAKER,2009Q3,PERSONNEL COMPENSATION,"","JUDGE, KRISTINE A",09/01/09,09/30/09,POLICY ADVISOR,"10,390.00",FISCAL YEAR 2009,"","","","JUDGE, KRISTINE A"
,OFFICE OF THE SPEAKER,2009Q3,PERSONNEL COMPENSATION,"","KEITA,KAMILAH Z",07/01/09,09/30/09,DEPUTY INFOMATION TECH. DIRECT,"22,780.01",FISCAL YEAR 2009,"","","","KEITA,KAMILAH Z"
,OFFICE OF THE SPEAKER,2009Q3,PERSONNEL COMPENSATION,"","KERR, STACY R",07/01/09,09/30/09,SPECIAL ASSISTANT,"35,827.76",FISCAL YEAR 2009,"","","","KERR, STACY R"
,OFFICE OF THE SPEAKER,2009Q3,PERSONNEL COMPENSATION,"","KNUDSON, KATE",07/01/09,09/30/09,PERSONAL ASSISTANT,"25,702.26",FISCAL YEAR 2009,"","","","KNUDSON, KATE"
,OFFICE OF THE SPEAKER,2009Q3,PERSONNEL COMPENSATION,"","LANE, EDGAR C",07/01/09,09/30/09,PRESS ADVISOR,"17,883.76",FISCAL YEAR 2009,"","","","LANE, EDGAR C"
,OFFICE OF THE SPEAKER,2009Q3,PERSONNEL COMPENSATION,"","LANE,GEOFFREY",07/01/09,09/30/09,STAFF ASSISTANT,"8,792.50",FISCAL YEAR 2009,"","","","LANE,GEOFFREY"
,OFFICE OF THE SPEAKER,2009Q3,PERSONNEL COMPENSATION,"","LANE,GEOFFREY",06/01/09,08/31/09,STAFF ASSISTANT (OVERTIME),"2,039.15",FISCAL YEAR 2009,"","","",DO
,OFFICE OF THE SPEAKER,2009Q3,PERSONNEL COMPENSATION,"","LASSIG,MEGAN",07/01/09,09/30/09,STAFF ASSISTANT,"12,042.50",FISCAL YEAR 2009,"","","","LASSIG,MEGAN"
,OFFICE OF THE SPEAKER,2009Q3,PERSONNEL COMPENSATION,"","LASSIG,MEGAN",06/01/09,08/31/09,STAFF ASSISTANT (OVERTIME),"3,075.38",FISCAL YEAR 2009,"","","",DO
,OFFICE OF THE SPEAKER,2009Q3,PERSONNEL COMPENSATION,"","LIZARRAGA, JAIME E",07/01/09,09/30/09,DIR.MEM.SERV/SR. ADV,"40,962.50",FISCAL YEAR 2009,"","","","LIZARRAGA, JAIME E"
,OFFICE OF THE SPEAKER,2009Q3,PERSONNEL COMPENSATION,"","LONG,MICHAEL G",07/01/09,09/30/09,SPECIAL ASSISTANT,"14,429.01",FISCAL YEAR 2009,"","","","LONG,MICHAEL G"
,OFFICE OF THE SPEAKER,2009Q3,PERSONNEL COMPENSATION,"","MANATOS, ANASTASIOS",07/01/09,09/30/09,NATIONAL TRIP DIRECTOR,"25,377.50",FISCAL YEAR 2009,"","","","MANATOS, ANASTASIOS"
,OFFICE OF THE SPEAKER,2009Q3,PERSONNEL COMPENSATION,"","MCCULLOUGH, MARY T",07/01/09,09/30/09,ADVISOR TO THE SPEAKER,"12,539.00",FISCAL YEAR 2009,"","","","MCCULLOUGH, MARY T"
,OFFICE OF THE SPEAKER,2009Q3,PERSONNEL COMPENSATION,"","MEDLIN,MELINDA L",07/01/09,09/30/09,DIRECTOR OF SCHEDULING,"36,000.01",FISCAL YEAR 2009,"","","","MEDLIN,MELINDA L"
,OFFICE OF THE SPEAKER,2009Q3,PERSONNEL COMPENSATION,"","MERZ, JULIE E",07/01/09,09/30/09,SPECIAL ASSISTANT,"4,499.99",FISCAL YEAR 2009,"","","","MERZ, JULIE E"
,OFFICE OF THE SPEAKER,2009Q3,PERSONNEL COMPENSATION,"","MOORE, REBECCA G",07/01/09,09/30/09,DEPUTY SCHEDULER,"18,883.76",FISCAL YEAR 2009,"","","","MOORE, REBECCA G"
,OFFICE OF THE SPEAKER,2009Q3,PERSONNEL COMPENSATION,"","NEWTON, KARINA L",07/01/09,09/30/09,DIRECTOR OF NEW MEDIA,"26,769.24",FISCAL YEAR 2009,"","","","NEWTON, KARINA L"
,OFFICE OF THE SPEAKER,2009Q3,PERSONNEL COMPENSATION,"","NICOLEAU, AUDREY D",07/01/09,09/18/09,PRESS ASSISTANT,"13,255.84",FISCAL YEAR 2009,"","","","NICOLEAU, AUDREY D"
,OFFICE OF THE SPEAKER,2009Q3,PERSONNEL COMPENSATION,"","O'NEILL, CATLIN W",07/01/09,09/30/09,DEPUTY FLOOR ASSISTANT,"30,273.75",FISCAL YEAR 2009,"","","","O'NEILL, CATLIN W"
,OFFICE OF THE SPEAKER,2009Q3,PERSONNEL COMPENSATION,"","POWELL,JONATHAN M",08/12/09,09/30/09,DEPUTY SPEECHWRITER,"8,166.67",FISCAL YEAR 2009,"","","","POWELL,JONATHAN M"
,OFFICE OF THE SPEAKER,2009Q3,PERSONNEL COMPENSATION,"","QUINTO,RICARDO A",07/01/09,09/30/09,TELEPHONE STAFF ASSISTANT,"8,500.00",FISCAL YEAR 2009,"","","","QUINTO,RICARDO A"
,OFFICE OF THE SPEAKER,2009Q3,PERSONNEL COMPENSATION,"","QUINTO,RICARDO A",06/01/09,08/31/09,TELEPHONE STAFF ASSISTANT (OVERTIME),"2,967.15",FISCAL YEAR 2009,"","","",DO
,OFFICE OF THE SPEAKER,2009Q3,PERSONNEL COMPENSATION,"","RAYMOND,SAMUEL H",07/01/09,09/30/09,STAFF ASSISTANT,"8,500.00",FISCAL YEAR 2009,"","","","RAYMOND,SAMUEL H"
,OFFICE OF THE SPEAKER,2009Q3,PERSONNEL COMPENSATION,"","RAYMOND,SAMUEL H",06/01/09,08/31/09,STAFF ASSISTANT (OVERTIME),"3,169.43",FISCAL YEAR 2009,"","","",DO
,OFFICE OF THE SPEAKER,2009Q3,PERSONNEL COMPENSATION,"","ROBB, KAREN A",09/01/09,09/30/09,SPECIAL ASSISTANT,"2,000.00",FISCAL YEAR 2009,"","","","ROBB, KAREN A"
,OFFICE OF THE SPEAKER,2009Q3,PERSONNEL COMPENSATION,"","ROSE,CHERYL P",07/01/09,09/30/09,DIR OF INTERGOV'T AFFAIRS,"38,793.75",FISCAL YEAR 2009,"","","","ROSE,CHERYL P"
,OFFICE OF THE SPEAKER,2009Q3,PERSONNEL COMPENSATION,"","SANCHEZ, CARLOS S",07/01/09,09/30/09,PRESS ADVISOR,"17,662.25",FISCAL YEAR 2009,"","","","SANCHEZ, CARLOS S"
,OFFICE OF THE SPEAKER,2009Q3,PERSONNEL COMPENSATION,"","SCHMIDT, AARON",07/01/09,09/30/09,LEGISLATIVE DIRECTOR,"22,000.01",FISCAL YEAR 2009,"","","","SCHMIDT, AARON"
,OFFICE OF THE SPEAKER,2009Q3,PERSONNEL COMPENSATION,"","SHORT, PAULA M",07/01/09,09/30/09,OFFICE MANAGER,"19,336.26",FISCAL YEAR 2009,"","","","SHORT, PAULA M"
,OFFICE OF THE SPEAKER,2009Q3,PERSONNEL COMPENSATION,"","SHYU,ELISA",07/01/09,09/30/09,ADVANCE ASSISTANT,"11,250.00",FISCAL YEAR 2009,"","","","SHYU,ELISA"
,OFFICE OF THE SPEAKER,2009Q3,PERSONNEL COMPENSATION,"","SILVERMAN,DAVID",07/01/09,09/30/09,STAFF ASSISTANT,"9,805.51",FISCAL YEAR 2009,"","","","SILVERMAN,DAVID"
,OFFICE OF THE SPEAKER,2009Q3,PERSONNEL COMPENSATION,"","SILVERMAN,DAVID",06/01/09,07/31/09,STAFF ASSISTANT (OVERTIME),330.20,FISCAL YEAR 2009,"","","",DO
,OFFICE OF THE SPEAKER,2009Q3,PERSONNEL COMPENSATION,"","SMITH, SAMANTHA D",07/01/09,09/30/09,SPECIAL ASSISTANT,"10,301.01",FISCAL YEAR 2009,"","","","SMITH, SAMANTHA D"
,OFFICE OF THE SPEAKER,2009Q3,PERSONNEL COMPENSATION,"","STALLMAN, ERIK R",07/01/09,09/30/09,COUNSEL AND POLICY ADVISOR,"28,250.01",FISCAL YEAR 2009,"","","","STALLMAN, ERIK R"
,OFFICE OF THE SPEAKER,2009Q3,PERSONNEL COMPENSATION,"","STIVERS, JONATHAN",07/01/09,09/30/09,SENIOR ADVISOR,"31,091.99",FISCAL YEAR 2009,"","","","STIVERS, JONATHAN"
,OFFICE OF THE SPEAKER,2009Q3,PERSONNEL COMPENSATION,"","SURGEON,BINA G",07/01/09,09/30/09,STAFF ASSISTANT,"14,444.17",FISCAL YEAR 2009,"","","","SURGEON,BINA G"
,OFFICE OF THE SPEAKER,2009Q3,PERSONNEL COMPENSATION,"","SURGEON,BINA G",06/01/09,07/31/09,STAFF ASSISTANT (OVERTIME),"1,894.89",FISCAL YEAR 2009,"","","",DO
,OFFICE OF THE SPEAKER,2009Q3,PERSONNEL COMPENSATION,"","TECKLENBURG, MICHAEL H",09/01/09,09/30/09,POLICY ADVISOR,"9,783.92",FISCAL YEAR 2009,"","","","TECKLENBURG, MICHAEL H"
,OFFICE OF THE SPEAKER,2009Q3,PERSONNEL COMPENSATION,"","THORNELL,DOUGLASS",07/01/09,09/30/09,SHARED EMPLOYEE,"15,125.00",FISCAL YEAR 2009,"","","","THORNELL,DOUGLASS"
,OFFICE OF THE SPEAKER,2009Q3,PERSONNEL COMPENSATION,"","UENG,STEPHANIE L",07/01/09,09/30/09,STAFF ASSISTANT - CORRES,"8,500.00",FISCAL YEAR 2009,"","","","UENG,STEPHANIE L"
,OFFICE OF THE SPEAKER,2009Q3,PERSONNEL COMPENSATION,"","UENG,STEPHANIE L",06/01/09,08/31/09,STAFF ASSISTANT - CORRES. (OVERTIME),515.98,FISCAL YEAR 2009,"","","",DO
,OFFICE OF THE SPEAKER,2009Q3,PERSONNEL COMPENSATION,"","VEITCH, ALEXANDRA N",07/01/09,09/30/09,SPEECHWRITER,"26,897.01",FISCAL YEAR 2009,"","","","VEITCH, ALEXANDRA N"
,OFFICE OF THE SPEAKER,2009Q3,PERSONNEL COMPENSATION,"","WAYLAND,KAREN G",09/01/09,09/14/09,POLICY ADVISOR,"11,250.00",FISCAL YEAR 2009,"","","","WAYLAND,KAREN G"
,OFFICE OF THE SPEAKER,2009Q3,PERSONNEL COMPENSATION,"","WIDMANN,MICHELLE C",07/01/09,09/30/09,STAFF ASSISTANT,"9,500.00",FISCAL YEAR 2009,"","","","WIDMANN,MICHELLE C"
,OFFICE OF THE SPEAKER,2009Q3,PERSONNEL COMPENSATION,"","WOOTERS III,CHARLES R",07/01/09,09/30/09,DIRECTOR,"34,499.99",FISCAL YEAR 2009,"","","","WOOTERS III,CHARLES R"
,OFFICE OF THE SPEAKER,2009Q3,TRAVEL,"",07­07 P1 09SH0100531          CITIBANK GOV CARD SERVICE,06/06/09,06/07/09,COMMERCIAL TRANSPORTATION,796.21,FISCAL YEAR 2009,"","","",07­07 P1 09SH0100531          CITIBANK GOV CARD SERVICE
,OFFICE OF THE SPEAKER,2009Q3,TRAVEL,"",07­07 P1 09SH0100532               DO,06/06/09,06/07/09,LODGING,385.54,FISCAL YEAR 2009,"","","",07­07 P1 09SH0100532               DO
,OFFICE OF THE SPEAKER,2009Q3,TRAVEL,"",07­07 P1 09SH0100533               DO,06/06/09,06/07/09,CAR RENTAL,168.04,FISCAL YEAR 2009,"","","",07­07 P1 09SH0100533               DO
,OFFICE OF THE SPEAKER,2009Q3,TRAVEL,"",07­07 P1 09SH0100534               DO,06/06/09,06/07/09,MEALS,193.53,FISCAL YEAR 2009,"","","",07­07 P1 09SH0100534               DO
,OFFICE OF THE SPEAKER,2009Q3,TRAVEL,"",07­07 P1 09SH0100535               DO,06/05/09,06/07/09,COMMERCIAL TRANSPORTATION,518.39,FISCAL YEAR 2009,"","","",07­07 P1 09SH0100535               DO
,OFFICE OF THE SPEAKER,2009Q3,TRAVEL,"",07­07 P1 09SH0100536               DO,06/05/09,06/07/09,LODGING,313.90,FISCAL YEAR 2009,"","","",07­07 P1 09SH0100536               DO
,OFFICE OF THE SPEAKER,2009Q3,TRAVEL,"",07­07 P1 09SH0100537               DO,06/05/09,06/06/09,MEALS,117.65,FISCAL YEAR 2009,"","","",07­07 P1 09SH0100537               DO
,OFFICE OF THE SPEAKER,2009Q3,TRAVEL,"",07­07 P1 09SH0100514          CRYSTAL CHIU,06/07/09,06/07/09,"TAXI, PARKING, TOLLS",20.00,FISCAL YEAR 2009,"","","",07­07 P1 09SH0100514          CRYSTAL CHIU
,OFFICE OF THE SPEAKER,2009Q3,TRAVEL,"",07­07 P1 09SH0100529          ELISA SHYU,04/21/09,06/07/09,"TAXI, PARKING, TOLLS",267.00,FISCAL YEAR 2009,"","","",07­07 P1 09SH0100529          ELISA SHYU
,OFFICE OF THE SPEAKER,2009Q3,TRAVEL,"",07­07 P1 09SH0100512          JOHN A LAWRENCE,06/03/09,06/03/09,"TAXI, PARKING, TOLLS",7.00,FISCAL YEAR 2009,"","","",07­07 P1 09SH0100512          JOHN A LAWRENCE
,OFFICE OF THE SPEAKER,2009Q3,TRAVEL,"",07­07 P1 09SH0100528          KELLY E BERENS,04/27/09,06/07/09,"TAXI, PARKING, TOLLS",68.00,FISCAL YEAR 2009,"","","",07­07 P1 09SH0100528          KELLY E BERENS
,OFFICE OF THE SPEAKER,2009Q3,TRAVEL,"",07­07 P1 09SH0100494          LARA LEVISON,06/09/09,06/09/09,"TAXI, PARKING, TOLLS",8.00,FISCAL YEAR 2009,"","","",07­07 P1 09SH0100494          LARA LEVISON
,OFFICE OF THE SPEAKER,2009Q3,TRAVEL,"",07­08 P1 09SH0100513          KATE KNUDSON,06/06/09,06/08/09,TRAVEL REIMBURSEMENT,281.60,FISCAL YEAR 2009,"","","",07­08 P1 09SH0100513          KATE KNUDSON
,OFFICE OF THE SPEAKER,2009Q3,TRAVEL,"",07­14 P1 09SH0100543          CITIBANK GOV CARD SERVICE,06/05/09,06/07/09,CAR RENTAL,109.04,FISCAL YEAR 2009,"","","",07­14 P1 09SH0100543          CITIBANK GOV CARD SERVICE
,OFFICE OF THE SPEAKER,2009Q3,TRAVEL,"",07­17 P1 09SH0100570          BRENDAN DALY,01/23/09,05/13/09,"TAXI, PARKING, TOLLS",107.00,FISCAL YEAR 2009,"","","",07­17 P1 09SH0100570          BRENDAN DALY
,OFFICE OF THE SPEAKER,2009Q3,TRAVEL,"",07­17 P1 09SH0100560          CITIBANK GOV CARD SERVICE,04/19/09,04/19/09,COMMERCIAL TRANSPORTATION,275.60,FISCAL YEAR 2009,"","","",07­17 P1 09SH0100560          CITIBANK GOV CARD SERVICE
,OFFICE OF THE SPEAKER,2009Q3,TRAVEL,"",07­17 P1 09SH0100561               DO,04/16/09,04/16/09,COMMERCIAL TRANSPORTATION,139.19,FISCAL YEAR 2009,"","","",07­17 P1 09SH0100561               DO
,OFFICE OF THE SPEAKER,2009Q3,TRAVEL,"",07­17 P1 09SH0100562               DO,04/16/09,04/17/09,COMMERCIAL TRANSPORTATION,149.20,FISCAL YEAR 2009,"","","",07­17 P1 09SH0100562               DO
,OFFICE OF THE SPEAKER,2009Q3,TRAVEL,"",07­17 P1 09SH0100563               DO,04/16/09,04/18/09,COMMERCIAL TRANSPORTATION,909.19,FISCAL YEAR 2009,"","","",07­17 P1 09SH0100563               DO
,OFFICE OF THE SPEAKER,2009Q3,TRAVEL,"",07­17 P1 09SH0100564               DO,04/19/09,04/20/09,COMMERCIAL TRANSPORTATION,506.19,FISCAL YEAR 2009,"","","",07­17 P1 09SH0100564               DO
,OFFICE OF THE SPEAKER,2009Q3,TRAVEL,"",07­17 P1 09SH0100565               DO,04/19/09,04/20/09,COMMERCIAL TRANSPORTATION,481.19,FISCAL YEAR 2009,"","","",07­17 P1 09SH0100565               DO
,OFFICE OF THE SPEAKER,2009Q3,TRAVEL,"",07­17 P1 09SH0100566               DO,04/19/09,04/19/09,"TAXI, PARKING, TOLLS",20.00,FISCAL YEAR 2009,"","","",07­17 P1 09SH0100566               DO
,OFFICE OF THE SPEAKER,2009Q3,TRAVEL,"",07­17 P1 09SH0100545          RICARDO QUINTO,06/24/09,06/24/09,"TAXI, PARKING, TOLLS",10.00,FISCAL YEAR 2009,"","","",07­17 P1 09SH0100545          RICARDO QUINTO
,OFFICE OF THE SPEAKER,2009Q3,TRAVEL,"",08­04 P1 09SH0100581          CITIBANK GOV CARD SERVICE,06/06/09,06/06/09,COMMERCIAL TRANSPORTATION,200.20,FISCAL YEAR 2009,"","","",08­04 P1 09SH0100581          CITIBANK GOV CARD SERVICE
,OFFICE OF THE SPEAKER,2009Q3,TRAVEL,"",08­04 P1 09SH0100582               DO,06/01/09,06/02/09,COMMERCIAL TRANSPORTATION,50.00,FISCAL YEAR 2009,"","","",08­04 P1 09SH0100582               DO
,OFFICE OF THE SPEAKER,2009Q3,TRAVEL,"",08­04 P1 09SH0100583               DO,07/10/09,07/12/09,CAR RENTAL,137.46,FISCAL YEAR 2009,"","","",08­04 P1 09SH0100583               DO
,OFFICE OF THE SPEAKER,2009Q3,TRAVEL,"",08­04 P1 09SH0100584               DO,07/10/09,07/12/09,COMMERCIAL TRANSPORTATION,"2,152.40",FISCAL YEAR 2009,"","","",08­04 P1 09SH0100584               DO
,OFFICE OF THE SPEAKER,2009Q3,TRAVEL,"",08­04 P1 09SH0100585               DO,07/10/09,07/12/09,LODGING,747.96,FISCAL YEAR 2009,"","","",08­04 P1 09SH0100585               DO
,OFFICE OF THE SPEAKER,2009Q3,TRAVEL,"",08­04 P1 09SH0100586               DO,07/10/09,07/12/09,MEALS,261.89,FISCAL YEAR 2009,"","","",08­04 P1 09SH0100586               DO
,OFFICE OF THE SPEAKER,2009Q3,TRAVEL,"",08­04 P1 09SH0100587               DO,07/12/09,07/12/09,GASOLINE,16.76,FISCAL YEAR 2009,"","","",08­04 P1 09SH0100587               DO
,OFFICE OF THE SPEAKER,2009Q3,TRAVEL,"",08­04 P1 09SH0100588               DO,07/11/09,07/13/09,"TAXI, PARKING, TOLLS",73.72,FISCAL YEAR 2009,"","","",08­04 P1 09SH0100588               DO
,OFFICE OF THE SPEAKER,2009Q3,TRAVEL,"",08­04 P1 09SH0100589               DO,07/11/09,07/13/09,COMMERCIAL TRANSPORTATION,605.70,FISCAL YEAR 2009,"","","",08­04 P1 09SH0100589               DO
,OFFICE OF THE SPEAKER,2009Q3,TRAVEL,"",08­04 P1 09SH0100590               DO,07/11/09,07/13/09,LODGING,"1,169.68",FISCAL YEAR 2009,"","","",08­04 P1 09SH0100590               DO
,OFFICE OF THE SPEAKER,2009Q3,TRAVEL,"",08­04 P1 09SH0100591               DO,07/11/09,07/12/09,MEALS,304.76,FISCAL YEAR 2009,"","","",08­04 P1 09SH0100591               DO
,OFFICE OF THE SPEAKER,2009Q3,TRAVEL,"",08­04 P1 09SH0100577          CRYSTAL CHIU,07/10/09,07/12/09,"TAXI, PARKING, TOLLS",43.00,FISCAL YEAR 2009,"","","",08­04 P1 09SH0100577          CRYSTAL CHIU
,OFFICE OF THE SPEAKER,2009Q3,TRAVEL,"",08­04 P1 09SH0100573          KATE KNUDSON,07/10/09,07/12/09,"TAXI, PARKING, TOLLS",36.50,FISCAL YEAR 2009,"","","",08­04 P1 09SH0100573          KATE KNUDSON
,OFFICE OF THE SPEAKER,2009Q3,TRAVEL,"",08­04 P1 09SH0100574               DO,07/10/09,07/12/09,MEALS,90.45,FISCAL YEAR 2009,"","","",08­04 P1 09SH0100574               DO
,OFFICE OF THE SPEAKER,2009Q3,TRAVEL,"",08­04 P1 09SH0100576               DO,07/10/09,07/12/09,LODGING,508.96,FISCAL YEAR 2009,"","","",08­04 P1 09SH0100576               DO
,OFFICE OF THE SPEAKER,2009Q3,TRAVEL,"",08­04 P1 09SH0100578          KELLY E BERENS,06/16/09,07/12/09,"TAXI, PARKING, TOLLS",81.00,FISCAL YEAR 2009,"","","",08­04 P1 09SH0100578          KELLY E BERENS
,OFFICE OF THE SPEAKER,2009Q3,TRAVEL,"",08­12 P1 09SH0100597          ELISA SHYU,06/09/09,07/22/09,"TAXI, PARKING, TOLLS",237.50,FISCAL YEAR 2009,"","","",08­12 P1 09SH0100597          ELISA SHYU
,OFFICE OF THE SPEAKER,2009Q3,TRAVEL,"",08­24 P1 09SH0100621          CITIBANK GOV CARD SERVICE,06/07/09,06/07/09,COMMERCIAL TRANSPORTATION,596.21,FISCAL YEAR 2009,"","","",08­24 P1 09SH0100621          CITIBANK GOV CARD SERVICE
,OFFICE OF THE SPEAKER,2009Q3,TRAVEL,"",08­24   P1   09SH0100623                     DO,07/10/09,07/10/09,COMMERCIAL TRANSPORTATION,525.60,FISCAL YEAR 2009,"","","",08­24   P1   09SH0100623                     DO
,OFFICE OF THE SPEAKER,2009Q3,TRAVEL,"",08­24   P1   09SH0100624                     DO,07/12/09,07/12/09,COMMERCIAL TRANSPORTATION,67.60,FISCAL YEAR 2009,"","","",08­24   P1   09SH0100624                     DO
,OFFICE OF THE SPEAKER,2009Q3,TRAVEL,"",08­24   P1   09SH0100625                     DO,06/05/09,06/07/09,COMMERCIAL TRANSPORTATION,821.40,FISCAL YEAR 2009,"","","",08­24   P1   09SH0100625                     DO
,OFFICE OF THE SPEAKER,2009Q3,TRAVEL,"",08­27   P1   09SH0100642                     DO,06/01/09,08/07/09,COMMERCIAL TRANSPORTATION,803.40,FISCAL YEAR 2009,"","","",08­27   P1   09SH0100642                     DO
,OFFICE OF THE SPEAKER,2009Q3,TRAVEL,"",08­27   P1   09SH0100643                     DO,08/05/09,08/07/09,CAR RENTAL,313.12,FISCAL YEAR 2009,"","","",08­27   P1   09SH0100643                     DO
,OFFICE OF THE SPEAKER,2009Q3,TRAVEL,"",08­27   P1   09SH0100644                     DO,08/05/09,08/07/09,LODGING,771.98,FISCAL YEAR 2009,"","","",08­27   P1   09SH0100644                     DO
,OFFICE OF THE SPEAKER,2009Q3,TRAVEL,"",08­27   P1   09SH0100645                     DO,08/05/09,08/07/09,MEALS,215.36,FISCAL YEAR 2009,"","","",08­27   P1   09SH0100645                     DO
,OFFICE OF THE SPEAKER,2009Q3,TRAVEL,"",08­27   P1   09SH0100630                CRYSTAL CHIU,08/05/09,08/07/09,"TAXI, PARKING, TOLLS",39.00,FISCAL YEAR 2009,"","","",08­27   P1   09SH0100630                CRYSTAL CHIU
,OFFICE OF THE SPEAKER,2009Q3,TRAVEL,"",08­27   P1   09SH0100641                ELISA SHYU,08/05/09,08/07/09,"TAXI, PARKING, TOLLS",40.00,FISCAL YEAR 2009,"","","",08­27   P1   09SH0100641                ELISA SHYU
,OFFICE OF THE SPEAKER,2009Q3,TRAVEL,"",08­27   P1   09SH0100631                JONATHAN STIVERS,07/14/09,07/14/09,"TAXI, PARKING, TOLLS",14.00,FISCAL YEAR 2009,"","","",08­27   P1   09SH0100631                JONATHAN STIVERS
,OFFICE OF THE SPEAKER,2009Q3,TRAVEL,"",09­18   P1   09SH0100657                CITIBANK GOV CARD SERVICE,08/28/09,08/28/09,MEALS,24.91,FISCAL YEAR 2009,"","","",09­18   P1   09SH0100657                CITIBANK GOV CARD SERVICE
,OFFICE OF THE SPEAKER,2009Q3,TRAVEL,"",09­18   P1   09SH0100658                     DO,08/28/09,08/29/09,TRAVEL REIMBURSEMENT,162.26,FISCAL YEAR 2009,"","","",09­18   P1   09SH0100658                     DO
,OFFICE OF THE SPEAKER,2009Q3,TRAVEL,"",09­18   P1   09SH0100659                     DO,08/28/09,08/29/09,COMMERCIAL TRANSPORTATION,872.42,FISCAL YEAR 2009,"","","",09­18   P1   09SH0100659                     DO
,OFFICE OF THE SPEAKER,2009Q3,TRAVEL,"",09­18   P1   09SH0100649                KATE KNUDSON,08/05/09,08/07/09,"TAXI, PARKING, TOLLS",160.00,FISCAL YEAR 2009,"","","",09­18   P1   09SH0100649                KATE KNUDSON
,OFFICE OF THE SPEAKER,2009Q3,TRAVEL,"",09­18   P1   09SH0100650                     DO,08/05/09,08/07/09,MEALS,20.89,FISCAL YEAR 2009,"","","",09­18   P1   09SH0100650                     DO
,OFFICE OF THE SPEAKER,2009Q3,TRAVEL,"",09­18   P1   09SH0100656                KELLY E BERENS,07/22/09,08/28/09,"TAXI, PARKING, TOLLS",63.88,FISCAL YEAR 2009,"","","",09­18   P1   09SH0100656                KELLY E BERENS
,OFFICE OF THE SPEAKER,2009Q3,TRAVEL,"",09­21   P1   09SH0100651                KATE KNUDSON,08/05/09,08/07/09,LODGING,352.26,FISCAL YEAR 2009,"","","",09­21   P1   09SH0100651                KATE KNUDSON
,OFFICE OF THE SPEAKER,2009Q3,"RENT, COMMUNICATION, UTILITIES","",07­07   P1   09SH0100495     FEDERAL EXPRESS,04/23/09,04/23/09,POSTAGE/COURIER/BOX RENTAL,4.37,FISCAL YEAR 2009,"","","",07­07   P1   09SH0100495     FEDERAL EXPRESS
,OFFICE OF THE SPEAKER,2009Q3,"RENT, COMMUNICATION, UTILITIES","",07­07   P1   09SH0100496           DO,04/15/09,04/16/09,POSTAGE/COURIER/BOX RENTAL,12.92,FISCAL YEAR 2009,"","","",07­07   P1   09SH0100496           DO
,OFFICE OF THE SPEAKER,2009Q3,"RENT, COMMUNICATION, UTILITIES","",07­07   P1   09SH0100506           DO,04/29/09,05/01/09,POSTAGE/COURIER/BOX RENTAL,14.99,FISCAL YEAR 2009,"","","",07­07   P1   09SH0100506           DO
,OFFICE OF THE SPEAKER,2009Q3,"RENT, COMMUNICATION, UTILITIES","",07­07   P1   09SH0100510           DO,05/14/09,05/19/09,POSTAGE/COURIER/BOX RENTAL,300.22,FISCAL YEAR 2009,"","","",07­07   P1   09SH0100510           DO
,OFFICE OF THE SPEAKER,2009Q3,"RENT, COMMUNICATION, UTILITIES","",07­07   P1   09SH0100521           DO,05/15/09,05/15/09,POSTAGE/COURIER/BOX RENTAL,36.60,FISCAL YEAR 2009,"","","",07­07   P1   09SH0100521           DO
,OFFICE OF THE SPEAKER,2009Q3,"RENT, COMMUNICATION, UTILITIES","",07­07   P1   09SH0100522           DO,05/20/09,05/20/09,POSTAGE/COURIER/BOX RENTAL,4.04,FISCAL YEAR 2009,"","","",07­07   P1   09SH0100522           DO
,OFFICE OF THE SPEAKER,2009Q3,"RENT, COMMUNICATION, UTILITIES","",07­17   P1   09SH0100552           DO,06/10/09,06/11/09,POSTAGE/COURIER/BOX RENTAL,77.30,FISCAL YEAR 2009,"","","",07­17   P1   09SH0100552           DO
,OFFICE OF THE SPEAKER,2009Q3,"RENT, COMMUNICATION, UTILITIES","",07­17   P1   09SH0100553           DO,06/12/09,06/12/09,POSTAGE/COURIER/BOX RENTAL,12.00,FISCAL YEAR 2009,"","","",07­17   P1   09SH0100553           DO
,OFFICE OF THE SPEAKER,2009Q3,"RENT, COMMUNICATION, UTILITIES","",07­17   P1   09SH0100554           DO,06/03/09,06/03/09,POSTAGE/COURIER/BOX RENTAL,311.64,FISCAL YEAR 2009,"","","",07­17   P1   09SH0100554           DO
,OFFICE OF THE SPEAKER,2009Q3,"RENT, COMMUNICATION, UTILITIES","",07­17   P1   09SH0100571     JONATHAN STIVERS,06/20/09,06/20/09,POSTAGE/COURIER/BOX RENTAL,27.98,FISCAL YEAR 2009,"","","",07­17   P1   09SH0100571     JONATHAN STIVERS
,OFFICE OF THE SPEAKER,2009Q3,"RENT, COMMUNICATION, UTILITIES","",08­04   P1   09SH0100580     KELLY E BERENS,07/10/09,07/10/09,UTILITIES,25.68,FISCAL YEAR 2009,"","","",08­04   P1   09SH0100580     KELLY E BERENS
,OFFICE OF THE SPEAKER,2009Q3,"RENT, COMMUNICATION, UTILITIES","",08­12   P1   09SH0100602     FEDERAL EXPRESS,07/14/09,07/14/09,POSTAGE/COURIER/BOX RENTAL,5.86,FISCAL YEAR 2009,"","","",08­12   P1   09SH0100602     FEDERAL EXPRESS
,OFFICE OF THE SPEAKER,2009Q3,"RENT, COMMUNICATION, UTILITIES","",08­12   P1   09SH0100605           DO,06/24/09,06/24/09,POSTAGE/COURIER/BOX RENTAL,6.81,FISCAL YEAR 2009,"","","",08­12   P1   09SH0100605           DO
,OFFICE OF THE SPEAKER,2009Q3,"RENT, COMMUNICATION, UTILITIES","",08­12   P1   09SH0100607           DO,07/02/09,07/02/09,POSTAGE/COURIER/BOX RENTAL,69.35,FISCAL YEAR 2009,"","","",08­12   P1   09SH0100607           DO
,OFFICE OF THE SPEAKER,2009Q3,"RENT, COMMUNICATION, UTILITIES","",08­12   P1   09SH0100608           DO,06/17/09,06/23/09,POSTAGE/COURIER/BOX RENTAL,20.27,FISCAL YEAR 2009,"","","",08­12   P1   09SH0100608           DO
,OFFICE OF THE SPEAKER,2009Q3,"RENT, COMMUNICATION, UTILITIES","",08­19   P1   09SH0100618     CITIBANK GOV CARD SERVICE,07/11/09,07/17/09,RECORDING (OUTSIDE),31.56,FISCAL YEAR 2009,"","","",08­19   P1   09SH0100618     CITIBANK GOV CARD SERVICE
,OFFICE OF THE SPEAKER,2009Q3,"RENT, COMMUNICATION, UTILITIES","",08­27   P1   09SH0100632     FEDERAL EXPRESS,07/15/09,07/17/09,POSTAGE/COURIER/BOX RENTAL,21.37,FISCAL YEAR 2009,"","","",08­27   P1   09SH0100632     FEDERAL EXPRESS
,OFFICE OF THE SPEAKER,2009Q3,"RENT, COMMUNICATION, UTILITIES","",08­27   P1   09SH0100635           DO,07/02/09,07/02/09,POSTAGE/COURIER/BOX RENTAL,24.31,FISCAL YEAR 2009,"","","",08­27   P1   09SH0100635           DO
,OFFICE OF THE SPEAKER,2009Q3,"RENT, COMMUNICATION, UTILITIES","",09­18   P1   09SH0100662     CITIBANK GOV CARD SERVICE,08/11/09,08/17/09,RECORDING (OUTSIDE),31.56,FISCAL YEAR 2009,"","","",09­18   P1   09SH0100662     CITIBANK GOV CARD SERVICE
,OFFICE OF THE SPEAKER,2009Q3,"RENT, COMMUNICATION, UTILITIES","",09­18   P1   09SH0100655     FEDERAL EXPRESS,07/30/09,08/06/09,POSTAGE/COURIER/BOX RENTAL,11.30,FISCAL YEAR 2009,"","","",09­18   P1   09SH0100655     FEDERAL EXPRESS
,OFFICE OF THE SPEAKER,2009Q3,"RENT, COMMUNICATION, UTILITIES","",09­18   P1   09SH0100666           DO,08/12/09,08/17/09,POSTAGE/COURIER/BOX RENTAL,37.18,FISCAL YEAR 2009,"","","",09­18   P1   09SH0100666           DO
,OFFICE OF THE SPEAKER,2009Q3,"RENT, COMMUNICATION, UTILITIES","",09­18   P1   09SH0100667           DO,08/14/09,08/14/09,POSTAGE/COURIER/BOX RENTAL,12.00,FISCAL YEAR 2009,"","","",09­18   P1   09SH0100667           DO
,OFFICE OF THE SPEAKER,2009Q3,PRINTING AND REPRODUCTION,"",07­07   P1   09SH0100501      LAUREN VICTORIA BURKE,01/23/09,01/23/09,PRINTING AND REPRODUCTION,100.00,FISCAL YEAR 2009,"","","",07­07   P1   09SH0100501      LAUREN VICTORIA BURKE
,OFFICE OF THE SPEAKER,2009Q3,PRINTING AND REPRODUCTION,"","07­08   P1   09SH0100539      DAVID L. ANDRUKITUS, INC",02/20/09,02/20/09,PRINTING AND REPRODUCTION,157.50,FISCAL YEAR 2009,"","","","07­08   P1   09SH0100539      DAVID L. ANDRUKITUS, INC"
,OFFICE OF THE SPEAKER,2009Q3,PRINTING AND REPRODUCTION,"",07­08   P1   09SH0100540           DO,03/13/09,03/13/09,PRINTING AND REPRODUCTION,147.50,FISCAL YEAR 2009,"","","",07­08   P1   09SH0100540           DO
,OFFICE OF THE SPEAKER,2009Q3,PRINTING AND REPRODUCTION,"",07­14   P1   09SH0100541      VMW PRINTING INC,04/30/09,04/30/09,PRINTING AND REPRODUCTION,580.00,FISCAL YEAR 2009,"","","",07­14   P1   09SH0100541      VMW PRINTING INC
,OFFICE OF THE SPEAKER,2009Q3,PRINTING AND REPRODUCTION,"",07­14 P1 09SH0100542                   DO,04/17/09,04/17/09,PRINTING AND REPRODUCTION,580.00,FISCAL YEAR 2009,"","","",07­14 P1 09SH0100542                   DO
,OFFICE OF THE SPEAKER,2009Q3,PRINTING AND REPRODUCTION,"",07­14 P1 09SH0100544                   DO,06/01/09,06/01/09,PRINTING AND REPRODUCTION,580.00,FISCAL YEAR 2009,"","","",07­14 P1 09SH0100544                   DO
,OFFICE OF THE SPEAKER,2009Q3,PRINTING AND REPRODUCTION,"","07­17 P1 09SH0100549          DAVID L. ANDRUKITUS, INC",06/30/09,06/30/09,PRINTING AND REPRODUCTION,507.50,FISCAL YEAR 2009,"","","","07­17 P1 09SH0100549          DAVID L. ANDRUKITUS, INC"
,OFFICE OF THE SPEAKER,2009Q3,PRINTING AND REPRODUCTION,"",07­17 P1 09SH0100550                   DO,06/18/09,06/18/09,PRINTING AND REPRODUCTION,507.50,FISCAL YEAR 2009,"","","",07­17 P1 09SH0100550                   DO
,OFFICE OF THE SPEAKER,2009Q3,PRINTING AND REPRODUCTION,"",07­28 S3 09209000206,07/01/09,07/31/09,PHOTOGRAPHIC (TRANSFER),841.80,FISCAL YEAR 2009,"","","",07­28 S3 09209000206
,OFFICE OF THE SPEAKER,2009Q3,PRINTING AND REPRODUCTION,"",08­04 P1 09SH0100579          KELLY E BERENS,07/10/09,07/10/09,PRINTING AND REPRODUCTION,112.35,FISCAL YEAR 2009,"","","",08­04 P1 09SH0100579          KELLY E BERENS
,OFFICE OF THE SPEAKER,2009Q3,PRINTING AND REPRODUCTION,"","08­12 P1 09SH0100604          DAVID L. ANDRUKITUS, INC",07/17/09,07/17/09,PRINTING AND REPRODUCTION,33.50,FISCAL YEAR 2009,"","","","08­12 P1 09SH0100604          DAVID L. ANDRUKITUS, INC"
,OFFICE OF THE SPEAKER,2009Q3,PRINTING AND REPRODUCTION,"",08­12 P1 09SH0100615          VMW PRINTING INC,06/30/09,06/30/09,PRINTING AND REPRODUCTION,580.00,FISCAL YEAR 2009,"","","",08­12 P1 09SH0100615          VMW PRINTING INC
,OFFICE OF THE SPEAKER,2009Q3,PRINTING AND REPRODUCTION,"",08­25 S3 09237000191,08/01/09,08/31/09,PHOTOGRAPHIC (TRANSFER),327.80,FISCAL YEAR 2009,"","","",08­25 S3 09237000191
,OFFICE OF THE SPEAKER,2009Q3,PRINTING AND REPRODUCTION,"","09­09 P1 09SH0100647          DAVID L. ANDRUKITUS, INC",08/05/09,08/05/09,PRINTING AND REPRODUCTION,697.50,FISCAL YEAR 2009,"","","","09­09 P1 09SH0100647          DAVID L. ANDRUKITUS, INC"
,OFFICE OF THE SPEAKER,2009Q3,PRINTING AND REPRODUCTION,"",09­18 P1 09SH0100653          VMW PRINTING INC,07/31/09,07/31/09,PRINTING AND REPRODUCTION,580.00,FISCAL YEAR 2009,"","","",09­18 P1 09SH0100653          VMW PRINTING INC
,OFFICE OF THE SPEAKER,2009Q3,PRINTING AND REPRODUCTION,"",09­29 S3 09272000132,09/01/09,09/30/09,PHOTOGRAPHIC (TRANSFER),"1,464.90",FISCAL YEAR 2009,"","","",09­29 S3 09272000132
,OFFICE OF THE SPEAKER,2009Q3,OTHER SERVICES,"",07­28       P1     09SH0100572                BERNARD RAIMO,07/01/09,07/31/09,CONSULTANT CONTRACT SERVICE,"7,628.00",FISCAL YEAR 2009,"","","",07­28       P1     09SH0100572                BERNARD RAIMO
,OFFICE OF THE SPEAKER,2009Q3,OTHER SERVICES,"",08­28       P1     09SH0100634                ALDERSON REPORTING CO. INC,07/08/09,07/08/09,TRANSLATION & INTERPRETATION,660.00,FISCAL YEAR 2009,"","","",08­28       P1     09SH0100634                ALDERSON REPORTING CO. INC
,OFFICE OF THE SPEAKER,2009Q3,OTHER SERVICES,"",08­28       P1     09SH0100646                BERNARD RAIMO,08/01/09,08/31/09,CONSULTANT CONTRACT SERVICE,"7,628.00",FISCAL YEAR 2009,"","","",08­28       P1     09SH0100646                BERNARD RAIMO
,OFFICE OF THE SPEAKER,2009Q3,OTHER SERVICES,"",09­18       P1     09SH0100672                    DO,09/01/09,09/30/09,CONSULTANT CONTRACT SERVICE,"7,628.00",FISCAL YEAR 2009,"","","",09­18       P1     09SH0100672                    DO
,OFFICE OF THE SPEAKER,2009Q3,SUPPLIES AND MATERIALS,"",07­07       P1     09SH0100497      BURRELLE`S INFORMATION,04/01/09,04/30/09,PUBLICATION REF MATERIAL,619.81,FISCAL YEAR 2009,"","","",07­07       P1     09SH0100497      BURRELLE`S INFORMATION
,OFFICE OF THE SPEAKER,2009Q3,SUPPLIES AND MATERIALS,"",07­07       P1     09SH0100508           DO,05/01/09,05/31/09,PUBLICATION REF MATERIAL,704.36,FISCAL YEAR 2009,"","","",07­07       P1     09SH0100508           DO
,OFFICE OF THE SPEAKER,2009Q3,SUPPLIES AND MATERIALS,"",07­07       P1     09SH0100486      CAPITOLHOST,04/28/09,04/28/09,FOOD & BEVERAGE,405.00,FISCAL YEAR 2009,"","","",07­07       P1     09SH0100486      CAPITOLHOST
,OFFICE OF THE SPEAKER,2009Q3,SUPPLIES AND MATERIALS,"",07­07       P1     09SH0100487           DO,05/28/09,05/28/09,FOOD & BEVERAGE,638.39,FISCAL YEAR 2009,"","","",07­07       P1     09SH0100487           DO
,OFFICE OF THE SPEAKER,2009Q3,SUPPLIES AND MATERIALS,"",07­07       P1     09SH0100488           DO,06/03/09,06/03/09,FOOD & BEVERAGE,67.50,FISCAL YEAR 2009,"","","",07­07       P1     09SH0100488           DO
,OFFICE OF THE SPEAKER,2009Q3,SUPPLIES AND MATERIALS,"",07­07       P1     09SH0100489           DO,05/06/09,05/06/09,FOOD & BEVERAGE,67.50,FISCAL YEAR 2009,"","","",07­07       P1     09SH0100489           DO
,OFFICE OF THE SPEAKER,2009Q3,SUPPLIES AND MATERIALS,"",07­07       P1     09SH0100490           DO,04/22/09,04/22/09,FOOD & BEVERAGE,67.50,FISCAL YEAR 2009,"","","",07­07       P1     09SH0100490           DO
,OFFICE OF THE SPEAKER,2009Q3,SUPPLIES AND MATERIALS,"",07­07       P1     09SH0100491           DO,04/29/09,04/29/09,FOOD & BEVERAGE,67.50,FISCAL YEAR 2009,"","","",07­07       P1     09SH0100491           DO
,OFFICE OF THE SPEAKER,2009Q3,SUPPLIES AND MATERIALS,"",07­07       P1     09SH0100492           DO,05/20/09,05/20/09,FOOD & BEVERAGE,67.50,FISCAL YEAR 2009,"","","",07­07       P1     09SH0100492           DO
,OFFICE OF THE SPEAKER,2009Q3,SUPPLIES AND MATERIALS,"",07­07       P1     09SH0100493           DO,05/14/09,05/14/09,FOOD & BEVERAGE,45.00,FISCAL YEAR 2009,"","","",07­07       P1     09SH0100493           DO
,OFFICE OF THE SPEAKER,2009Q3,SUPPLIES AND MATERIALS,"",07­07       P1     09SH0100498      CRYSTAL SPRINGS,03/20/09,04/09/09,BOTTLED WATER,12.15,FISCAL YEAR 2009,"","","",07­07       P1     09SH0100498      CRYSTAL SPRINGS
,OFFICE OF THE SPEAKER,2009Q3,SUPPLIES AND MATERIALS,"",07­07       P1     09SH0100502           DO,04/19/09,04/19/09,BOTTLED WATER,14.81,FISCAL YEAR 2009,"","","",07­07       P1     09SH0100502           DO
,OFFICE OF THE SPEAKER,2009Q3,SUPPLIES AND MATERIALS,"",07­07       P1     09SH0100509           DO,04/21/09,05/05/09,FOOD & BEVERAGE,655.53,FISCAL YEAR 2009,"","","",07­07       P1     09SH0100509           DO
,OFFICE OF THE SPEAKER,2009Q3,SUPPLIES AND MATERIALS,"",07­07       P1     09SH0100517      MILLICENT BLUFORD,06/01/09,06/01/09,HABITATION EXPENSES,225.00,FISCAL YEAR 2009,"","","",07­07       P1     09SH0100517      MILLICENT BLUFORD
,OFFICE OF THE SPEAKER,2009Q3,SUPPLIES AND MATERIALS,"",07­07       P1     09SH0100518           DO,06/09/09,06/09/09,HABITATION EXPENSES,225.00,FISCAL YEAR 2009,"","","",07­07       P1     09SH0100518           DO
,OFFICE OF THE SPEAKER,2009Q3,SUPPLIES AND MATERIALS,"",07­07       P1     09SH0100519           DO,06/15/09,06/15/09,HABITATION EXPENSES,225.00,FISCAL YEAR 2009,"","","",07­07       P1     09SH0100519           DO
,OFFICE OF THE SPEAKER,2009Q3,SUPPLIES AND MATERIALS,"",07­07       P1     09SH0100520           DO,06/22/09,06/22/09,HABITATION EXPENSES,225.00,FISCAL YEAR 2009,"","","",07­07       P1     09SH0100520           DO
,OFFICE OF THE SPEAKER,2009Q3,SUPPLIES AND MATERIALS,"",07­07       P1     09SH0100507      PR NEWSWIRE,05/01/09,05/31/09,PUBLICATION REF MATERIAL,"1,000.00",FISCAL YEAR 2009,"","","",07­07       P1     09SH0100507      PR NEWSWIRE
,OFFICE OF THE SPEAKER,2009Q3,SUPPLIES AND MATERIALS,"",07­07       P1     09SH0100511      TOM MANATOS,06/16/09,06/16/09,FOOD & BEVERAGE,37.74,FISCAL YEAR 2009,"","","",07­07       P1     09SH0100511      TOM MANATOS
,OFFICE OF THE SPEAKER,2009Q3,SUPPLIES AND MATERIALS,"","07­08       P1     09SH0100499      EFE NEWS SERVICE, INC",04/01/09,04/30/09,PUBLICATION REF MATERIAL,550.15,FISCAL YEAR 2009,"","","","07­08       P1     09SH0100499      EFE NEWS SERVICE, INC"
,OFFICE OF THE SPEAKER,2009Q3,SUPPLIES AND MATERIALS,"",07­08       P1     09SH0100503           DO,05/01/09,05/31/09,PUBLICATION REF MATERIAL,550.15,FISCAL YEAR 2009,"","","",07­08       P1     09SH0100503           DO
,OFFICE OF THE SPEAKER,2009Q3,SUPPLIES AND MATERIALS,"",07­17       P1     09SH0100556      BURRELLE`S INFORMATION,06/01/09,06/30/09,PUBLICATION REF MATERIAL,575.92,FISCAL YEAR 2009,"","","",07­17       P1     09SH0100556      BURRELLE`S INFORMATION
,OFFICE OF THE SPEAKER,2009Q3,SUPPLIES AND MATERIALS,"",07­17       P1     09SH0100557      CAPITOLHOST,06/10/09,06/10/09,FOOD & BEVERAGE,67.50,FISCAL YEAR 2009,"","","",07­17       P1     09SH0100557      CAPITOLHOST
,OFFICE OF THE SPEAKER,2009Q3,SUPPLIES AND MATERIALS,"",07­17   P1    09SH0100558                     DO,06/17/09,06/17/09,FOOD & BEVERAGE,67.50,FISCAL YEAR 2009,"","","",07­17   P1    09SH0100558                     DO
,OFFICE OF THE SPEAKER,2009Q3,SUPPLIES AND MATERIALS,"",07­17   P1    09SH0100559                     DO,06/16/09,06/16/09,FOOD & BEVERAGE,45.00,FISCAL YEAR 2009,"","","",07­17   P1    09SH0100559                     DO
,OFFICE OF THE SPEAKER,2009Q3,SUPPLIES AND MATERIALS,"","07­17   P1    09SH0100555                CISION US, INC",04/16/09,04/16/09,PUBLICATION REF MATERIAL,"7,670.00",FISCAL YEAR 2009,"","","","07­17   P1    09SH0100555                CISION US, INC"
,OFFICE OF THE SPEAKER,2009Q3,SUPPLIES AND MATERIALS,"",07­17   C1    NW200919704                DEER PARK,06/30/09,06/30/09,BOTTLED WATER,8.00,FISCAL YEAR 2009,"","","",07­17   C1    NW200919704                DEER PARK
,OFFICE OF THE SPEAKER,2009Q3,SUPPLIES AND MATERIALS,"","07­17   P1    09SH0100547                EFE NEWS SERVICE, INC",06/01/09,06/30/09,PUBLICATION REF MATERIAL,550.15,FISCAL YEAR 2009,"","","","07­17   P1    09SH0100547                EFE NEWS SERVICE, INC"
,OFFICE OF THE SPEAKER,2009Q3,SUPPLIES AND MATERIALS,"",07­17   P1    09SH0100551                MILLICENT BLUFORD,07/09/09,07/09/09,HABITATION EXPENSES,229.00,FISCAL YEAR 2009,"","","",07­17   P1    09SH0100551                MILLICENT BLUFORD
,OFFICE OF THE SPEAKER,2009Q3,SUPPLIES AND MATERIALS,"",07­17   P1    09SH0100567                OCCASIONS CATERERS,01/05/09,01/05/09,FOOD & BEVERAGE,"10,765.00",FISCAL YEAR 2009,"","","",07­17   P1    09SH0100567                OCCASIONS CATERERS
,OFFICE OF THE SPEAKER,2009Q3,SUPPLIES AND MATERIALS,"",07­17   P1    09SH0100568                     DO,01/06/09,01/06/09,FOOD & BEVERAGE,"4,882.00",FISCAL YEAR 2009,"","","",07­17   P1    09SH0100568                     DO
,OFFICE OF THE SPEAKER,2009Q3,SUPPLIES AND MATERIALS,"",07­17   P1    09SH0100569                PR NEWSWIRE,06/01/09,06/30/09,PUBLICATION REF MATERIAL,"1,000.00",FISCAL YEAR 2009,"","","",07­17   P1    09SH0100569                PR NEWSWIRE
,OFFICE OF THE SPEAKER,2009Q3,SUPPLIES AND MATERIALS,"",08­04   P1    09SH0100592                CITIBANK GOV CARD SERVICE,06/04/09,06/25/09,FOOD & BEVERAGE,603.01,FISCAL YEAR 2009,"","","",08­04   P1    09SH0100592                CITIBANK GOV CARD SERVICE
,OFFICE OF THE SPEAKER,2009Q3,SUPPLIES AND MATERIALS,"",08­04   P1    09SH0100593                     DO,06/09/08,06/09/08,PUBLICATION REF MATERIAL,"4,220.06",FISCAL YEAR 2009,"","","",08­04   P1    09SH0100593                     DO
,OFFICE OF THE SPEAKER,2009Q3,SUPPLIES AND MATERIALS,"",08­04   P1    09SH0100575                KATE KNUDSON,07/11/09,07/11/09,PUBLICATION REF MATERIAL,4.00,FISCAL YEAR 2009,"","","",08­04   P1    09SH0100575                KATE KNUDSON
,OFFICE OF THE SPEAKER,2009Q3,SUPPLIES AND MATERIALS,"",08­05   P1    09SH0100594                CITIBANK GOV CARD SERVICE,06/11/09,06/17/09,PUBLICATION REF MATERIAL,29.85,FISCAL YEAR 2009,"","","",08­05   P1    09SH0100594                CITIBANK GOV CARD SERVICE
,OFFICE OF THE SPEAKER,2009Q3,SUPPLIES AND MATERIALS,"",08­12   P1    09SH0100610                CRYSTAL SPRINGS,06/10/09,06/18/09,BOTTLED WATER,"1,003.74",FISCAL YEAR 2009,"","","",08­12   P1    09SH0100610                CRYSTAL SPRINGS
,OFFICE OF THE SPEAKER,2009Q3,SUPPLIES AND MATERIALS,"","08­12   P1    09SH0100609                EFE NEWS SERVICE, INC",07/01/09,07/31/09,PUBLICATION REF MATERIAL,550.15,FISCAL YEAR 2009,"","","","08­12   P1    09SH0100609                EFE NEWS SERVICE, INC"
,OFFICE OF THE SPEAKER,2009Q3,SUPPLIES AND MATERIALS,"",08­12   P1    09SH0100598                MENUS CATERING,12/09/08,12/09/08,FOOD & BEVERAGE,"5,358.95",FISCAL YEAR 2009,"","","",08­12   P1    09SH0100598                MENUS CATERING
,OFFICE OF THE SPEAKER,2009Q3,SUPPLIES AND MATERIALS,"",08­12   P1    09SH0100599                MILLICENT BLUFORD,07/16/09,07/16/09,HABITATION EXPENSES,225.00,FISCAL YEAR 2009,"","","",08­12   P1    09SH0100599                MILLICENT BLUFORD
,OFFICE OF THE SPEAKER,2009Q3,SUPPLIES AND MATERIALS,"",08­12   P1    09SH0100600                     DO,07/20/09,07/20/09,HABITATION EXPENSES,225.00,FISCAL YEAR 2009,"","","",08­12   P1    09SH0100600                     DO
,OFFICE OF THE SPEAKER,2009Q3,SUPPLIES AND MATERIALS,"",08­12   P1    09SH0100601                     DO,07/27/09,07/27/09,HABITATION EXPENSES,225.00,FISCAL YEAR 2009,"","","",08­12   P1    09SH0100601                     DO
,OFFICE OF THE SPEAKER,2009Q3,SUPPLIES AND MATERIALS,"",08­12   P1    09SH0100603                PR NEWSWIRE,07/01/09,07/31/09,PUBLICATION REF MATERIAL,"1,000.00",FISCAL YEAR 2009,"","","",08­12   P1    09SH0100603                PR NEWSWIRE
,OFFICE OF THE SPEAKER,2009Q3,SUPPLIES AND MATERIALS,"",08­17   P1    09SH0100606                BLUE IRIS FLOWER,07/23/09,07/23/09,HABITATION EXPENSES,964.00,FISCAL YEAR 2009,"","","",08­17   P1    09SH0100606                BLUE IRIS FLOWER
,OFFICE OF THE SPEAKER,2009Q3,SUPPLIES AND MATERIALS,"",08­19   P1    09SH0100616                CITIBANK GOV CARD SERVICE,06/26/09,07/20/09,FOOD & BEVERAGE,"2,497.81",FISCAL YEAR 2009,"","","",08­19   P1    09SH0100616                CITIBANK GOV CARD SERVICE
,OFFICE OF THE SPEAKER,2009Q3,SUPPLIES AND MATERIALS,"",08­19   P1    09SH0100619                     DO,07/27/09,07/27/09,PUBLICATION REF MATERIAL,"3,491.60",FISCAL YEAR 2009,"","","",08­19   P1    09SH0100619                     DO
,OFFICE OF THE SPEAKER,2009Q3,SUPPLIES AND MATERIALS,"",08­19   P1    09SH0100620                     DO,07/05/09,07/05/09,PUBLICATION REF MATERIAL,24.37,FISCAL YEAR 2009,"","","",08­19   P1    09SH0100620                     DO
,OFFICE OF THE SPEAKER,2009Q3,SUPPLIES AND MATERIALS,"",08­24   P1    09SH0100622                     DO,07/17/09,07/17/09,HABITATION EXPENSES,900.00,FISCAL YEAR 2009,"","","",08­24   P1    09SH0100622                     DO
,OFFICE OF THE SPEAKER,2009Q3,SUPPLIES AND MATERIALS,"",08­27   P1    09SH0100628                ANDREW HAMMILL,05/25/09,07/22/09,PUBLICATION REF MATERIAL,64.80,FISCAL YEAR 2009,"","","",08­27   P1    09SH0100628                ANDREW HAMMILL
,OFFICE OF THE SPEAKER,2009Q3,SUPPLIES AND MATERIALS,"",08­27   P1    09SH0100626                BURRELLE`S INFORMATION,07/01/09,07/31/09,PUBLICATION REF MATERIAL,565.65,FISCAL YEAR 2009,"","","",08­27   P1    09SH0100626                BURRELLE`S INFORMATION
,OFFICE OF THE SPEAKER,2009Q3,SUPPLIES AND MATERIALS,"",08­27   P1    09SH0100637                CAPITOLHOST,07/22/09,07/22/09,FOOD & BEVERAGE,45.00,FISCAL YEAR 2009,"","","",08­27   P1    09SH0100637                CAPITOLHOST
,OFFICE OF THE SPEAKER,2009Q3,SUPPLIES AND MATERIALS,"",08­27   P1    09SH0100638                     DO,07/22/09,07/22/09,FOOD & BEVERAGE,67.50,FISCAL YEAR 2009,"","","",08­27   P1    09SH0100638                     DO
,OFFICE OF THE SPEAKER,2009Q3,SUPPLIES AND MATERIALS,"",08­27   P1    09SH0100639                     DO,07/29/09,07/29/09,FOOD & BEVERAGE,67.50,FISCAL YEAR 2009,"","","",08­27   P1    09SH0100639                     DO
,OFFICE OF THE SPEAKER,2009Q3,SUPPLIES AND MATERIALS,"",08­27   P1    09SH0100633                CRYSTAL SPRINGS,07/06/09,07/09/09,FOOD & BEVERAGE,"1,678.90",FISCAL YEAR 2009,"","","",08­27   P1    09SH0100633                CRYSTAL SPRINGS
,OFFICE OF THE SPEAKER,2009Q3,SUPPLIES AND MATERIALS,"","08­27   P1    09SH0100627                EFE NEWS SERVICE, INC",08/01/09,08/31/09,PUBLICATION REF MATERIAL,550.15,FISCAL YEAR 2009,"","","","08­27   P1    09SH0100627                EFE NEWS SERVICE, INC"
,OFFICE OF THE SPEAKER,2009Q3,SUPPLIES AND MATERIALS,"",08­31   C1    NW200924004                DEER PARK,07/31/09,07/31/09,BOTTLED WATER,8.00,FISCAL YEAR 2009,"","","",08­31   C1    NW200924004                DEER PARK
,OFFICE OF THE SPEAKER,2009Q3,SUPPLIES AND MATERIALS,"",09­18   P1    09SH0100660                BURRELLE`S INFORMATION,08/01/09,08/31/09,PUBLICATION REF MATERIAL,626.14,FISCAL YEAR 2009,"","","",09­18   P1    09SH0100660                BURRELLE`S INFORMATION
,OFFICE OF THE SPEAKER,2009Q3,SUPPLIES AND MATERIALS,"",09­18   P1    09SH0100661                CITIBANK GOV CARD SERVICE,07/29/09,08/04/09,FOOD & BEVERAGE,928.43,FISCAL YEAR 2009,"","","",09­18   P1    09SH0100661                CITIBANK GOV CARD SERVICE
,OFFICE OF THE SPEAKER,2009Q3,SUPPLIES AND MATERIALS,"",09­18   P1    09SH0100668                CRYSTAL SPRINGS,08/19/09,08/19/09,BOTTLED WATER,"1,691.99",FISCAL YEAR 2009,"","","",09­18   P1    09SH0100668                CRYSTAL SPRINGS
,OFFICE OF THE SPEAKER,2009Q3,SUPPLIES AND MATERIALS,"","09­18   P1    09SH0100669                LEADERSHIP DIRECTORIES, INC",09/01/09,09/01/09,PUBLICATION REF MATERIAL,515.00,FISCAL YEAR 2009,"","","","09­18   P1    09SH0100669                LEADERSHIP DIRECTORIES, INC"
,OFFICE OF THE SPEAKER,2009Q3,SUPPLIES AND MATERIALS,"",09­18   P1    09SH0100671                MICHAEL G LONG,09/09/09,09/09/09,FOOD & BEVERAGE,67.50,FISCAL YEAR 2009,"","","",09­18   P1    09SH0100671                MICHAEL G LONG
,OFFICE OF THE SPEAKER,2009Q3,SUPPLIES AND MATERIALS,"",09­18   P1    09SH0100675                MILLICENT BLUFORD,09/08/09,09/08/09,HABITATION EXPENSES,225.00,FISCAL YEAR 2009,"","","",09­18   P1    09SH0100675                MILLICENT BLUFORD
,OFFICE OF THE SPEAKER,2009Q3,SUPPLIES AND MATERIALS,"",09­18   P1    09SH0100652                PR NEWSWIRE,08/01/09,08/31/09,PUBLICATION REF MATERIAL,"1,000.00",FISCAL YEAR 2009,"","","",09­18   P1    09SH0100652                PR NEWSWIRE
,OFFICE OF THE SPEAKER,2009Q3,SUPPLIES AND MATERIALS,"",09­21   P1    09SH0100670                RESTAURANT ASSOCIATES,06/03/09,06/03/09,FOOD & BEVERAGE,"1,282.00",FISCAL YEAR 2009,"","","",09­21   P1    09SH0100670                RESTAURANT ASSOCIATES
,OFFICE OF THE SPEAKER,2009Q3,SUPPLIES AND MATERIALS,"",08­12   P1 09SH0100613        CAPITOLHOST,06/24/09,06/24/09,FOOD & BEVERAGE,67.50,FISCAL YEAR 2009,"","","",08­12   P1 09SH0100613        CAPITOLHOST
,OFFICE OF THE SPEAKER,2009Q3,SUPPLIES AND MATERIALS,"",08­12   P1 09SH0100614             DO,07/08/09,07/08/09,FOOD & BEVERAGE,67.50,FISCAL YEAR 2009,"","","",08­12   P1 09SH0100614             DO
,OFFICE OF THE SPEAKER,2009Q3,TRAVEL,"",09­28 HV 09A90301204               DO,09/04/08,09/18/08,COMMERCIAL TRANSPORTATION,200.00,FISCAL YEAR 2008,"","","",09­28 HV 09A90301204               DO
,OFFICE OF THE SPEAKER,2009Q3,SUPPLIES AND MATERIALS,"",08­27      P1 09SH0100629      ANDREW HAMMILL,10/24/07,10/24/07,PUBLICATION REF MATERIAL,11.10,FISCAL YEAR 2008,"","","",08­27      P1 09SH0100629      ANDREW HAMMILL
,OFFICE OF THE MAJORITY LEADER,2009Q3,PERSONNEL COMPENSATION,"","BERNARDS, STACEY F",07/01/09,09/30/09,DEPUTY CHIEF OF STAFF,"41,249.99",FISCAL YEAR 2009,"","","","BERNARDS, STACEY F"
,OFFICE OF THE MAJORITY LEADER,2009Q3,PERSONNEL COMPENSATION,"","LIERMAN,TERRY L",07/01/09,09/30/09,CHIEF OF STAFF,"43,125.00",FISCAL YEAR 2009,"","","","LIERMAN,TERRY L"
,OFFICE OF THE MAJORITY LEADER,2009Q3,PERSONNEL COMPENSATION,"","LORENZEN,EDWARD S",07/01/09,09/30/09,SENIOR POLICY ADVISOR,"41,250.01",FISCAL YEAR 2009,"","","","LORENZEN,EDWARD S"
,OFFICE OF THE MAJORITY LEADER,2009Q3,PERSONNEL COMPENSATION,"","ABOUCHAR, KEITH S",07/01/09,09/30/09,SENIOR POLICY ADVISOR,"38,750.01",FISCAL YEAR 2009,"","","","ABOUCHAR, KEITH S"
,OFFICE OF THE MAJORITY LEADER,2009Q3,PERSONNEL COMPENSATION,"","BEACH,MAUREEN M",07/01/09,09/30/09,PRESS AND RESEARCH ASSISTANT,"13,874.99",FISCAL YEAR 2009,"","","","BEACH,MAUREEN M"
,OFFICE OF THE MAJORITY LEADER,2009Q3,PERSONNEL COMPENSATION,"","BOHANAN JR, JOHN L",07/01/09,09/30/09,CONSTITUENT LIAISON,"1,500.00",FISCAL YEAR 2009,"","","","BOHANAN JR, JOHN L"
,OFFICE OF THE MAJORITY LEADER,2009Q3,PERSONNEL COMPENSATION,"","BURNES, AUSTIN W",07/01/09,09/30/09,DEPUTY FLOOR DIRECTOR,"23,750.01",FISCAL YEAR 2009,"","","","BURNES, AUSTIN W"
,OFFICE OF THE MAJORITY LEADER,2009Q3,PERSONNEL COMPENSATION,"","CLAIR,TROY G",07/01/09,09/30/09,DEP DIR EXT AFFAIRS/SPEC ASST,"18,750.00",FISCAL YEAR 2009,"","","","CLAIR,TROY G"
,OFFICE OF THE MAJORITY LEADER,2009Q3,PERSONNEL COMPENSATION,"","COVEY-BRANDT, ALEXIS",07/01/09,09/30/09,FLOOR DIRECTOR,"38,749.98",FISCAL YEAR 2009,"","","","COVEY-BRANDT, ALEXIS"
,OFFICE OF THE MAJORITY LEADER,2009Q3,PERSONNEL COMPENSATION,"","DAVID, MARTA M",07/01/09,09/30/09,DIRECTOR OF EXTERNAL RELATIONS,"41,250.00",FISCAL YEAR 2009,"","","","DAVID, MARTA M"
,OFFICE OF THE MAJORITY LEADER,2009Q3,PERSONNEL COMPENSATION,"","DWYER, STEPHEN",07/01/09,07/02/09,SHARED EMPLOYEE,"5,180.55",FISCAL YEAR 2009,"","","","DWYER, STEPHEN"
,OFFICE OF THE MAJORITY LEADER,2009Q3,PERSONNEL COMPENSATION,"","EISENBERG,MICHAEL",07/01/09,09/30/09,FLOOR ASSISTANT,"17,500.01",FISCAL YEAR 2009,"","","","EISENBERG,MICHAEL"
,OFFICE OF THE MAJORITY LEADER,2009Q3,PERSONNEL COMPENSATION,"","FRY,COURTNEY",07/01/09,09/30/09,EXECUTIVE ASSISTANT/OFFICE MAN,"22,433.34",FISCAL YEAR 2009,"","","","FRY,COURTNEY"
,OFFICE OF THE MAJORITY LEADER,2009Q3,PERSONNEL COMPENSATION,"","GOFF,SHUWANZA R",07/01/09,09/30/09,STAFF ASSISTANT,"9,875.01",FISCAL YEAR 2009,"","","","GOFF,SHUWANZA R"
,OFFICE OF THE MAJORITY LEADER,2009Q3,PERSONNEL COMPENSATION,"","GOFF,SHUWANZA R",06/01/09,07/31/09,STAFF ASSISTANT (OVERTIME),"2,072.39",FISCAL YEAR 2009,"","","",DO
,OFFICE OF THE MAJORITY LEADER,2009Q3,PERSONNEL COMPENSATION,"","GOODMAN,ROBERT",07/01/09,09/30/09,SPEECHWRITER,"15,999.99",FISCAL YEAR 2009,"","","","GOODMAN,ROBERT"
,OFFICE OF THE MAJORITY LEADER,2009Q3,PERSONNEL COMPENSATION,"","GRANT,KATHRYN L",07/01/09,09/30/09,DEPUTY PRESS SECRETARY,"22,999.99",FISCAL YEAR 2009,"","","","GRANT,KATHRYN L"
,OFFICE OF THE MAJORITY LEADER,2009Q3,PERSONNEL COMPENSATION,"","HUGHES,JOHN C",07/01/09,09/30/09,SENIOR POLICY ADVISOR,"34,625.00",FISCAL YEAR 2009,"","","","HUGHES,JOHN C"
,OFFICE OF THE MAJORITY LEADER,2009Q3,PERSONNEL COMPENSATION,"","JACOBY,DREW",07/01/09,09/30/09,STAFF ASSISTANT,"8,249.99",FISCAL YEAR 2009,"","","","JACOBY,DREW"
,OFFICE OF THE MAJORITY LEADER,2009Q3,PERSONNEL COMPENSATION,"","JACOBY,DREW",06/01/09,07/31/09,STAFF ASSISTANT (OVERTIME),"3,087.40",FISCAL YEAR 2009,"","","",DO
,OFFICE OF THE MAJORITY LEADER,2009Q3,PERSONNEL COMPENSATION,"","KRUEGER,MARY R",07/01/09,09/30/09,STAFF ASSISTANT,"8,077.21",FISCAL YEAR 2009,"","","","KRUEGER,MARY R"
,OFFICE OF THE MAJORITY LEADER,2009Q3,PERSONNEL COMPENSATION,"","KRUEGER,MARY R",06/01/09,07/31/09,STAFF ASSISTANT (OVERTIME),"4,653.56",FISCAL YEAR 2009,"","","",DO
,OFFICE OF THE MAJORITY LEADER,2009Q3,PERSONNEL COMPENSATION,"","LEMOS, JESSICA A",07/01/09,09/13/09,CONGRESSIONAL STAFF,"12,166.66",FISCAL YEAR 2009,"","","","LEMOS, JESSICA A"
,OFFICE OF THE MAJORITY LEADER,2009Q3,PERSONNEL COMPENSATION,"","LEMOS, JESSICA A",09/14/09,09/30/09,LEGISLATIVE COORDINATOR,"2,833.33",FISCAL YEAR 2009,"","","",DO
,OFFICE OF THE MAJORITY LEADER,2009Q3,PERSONNEL COMPENSATION,"","LI TRENTA, VIRGINIA SIMONE",07/01/09,09/30/09,SCHED AND DIR OF SPECIAL EVENT,"28,749.99",FISCAL YEAR 2009,"","","","LI TRENTA, VIRGINIA SIMONE"
,OFFICE OF THE MAJORITY LEADER,2009Q3,PERSONNEL COMPENSATION,"","LUNDBERG, STEPHANIE L",07/01/09,07/02/09,PRESS SECRETARY,"3,180.55",FISCAL YEAR 2009,"","","","LUNDBERG, STEPHANIE L"
,OFFICE OF THE MAJORITY LEADER,2009Q3,PERSONNEL COMPENSATION,"","MUNOZ, DENIS",07/01/09,09/30/09,SYSTEM ADMINISTRATOR,"12,787.75",FISCAL YEAR 2009,"","","","MUNOZ, DENIS"
,OFFICE OF THE MAJORITY LEADER,2009Q3,PERSONNEL COMPENSATION,"","PALACIO,RICHARD A",07/01/09,09/30/09,DEPUTY DIRECTOR OF MEMBER SVCS,"21,750.00",FISCAL YEAR 2009,"","","","PALACIO,RICHARD A"
,OFFICE OF THE MAJORITY LEADER,2009Q3,PERSONNEL COMPENSATION,"","REPKO,MARY F",07/01/09,09/30/09,SENIOR POLICY ADVISOR,"41,250.00",FISCAL YEAR 2009,"","","","REPKO,MARY F"
,OFFICE OF THE MAJORITY LEADER,2009Q3,PERSONNEL COMPENSATION,"","ROMICK, BRIAN",07/01/09,09/30/09,MEMBER SERVICES DIRECTOR,"41,250.00",FISCAL YEAR 2009,"","","","ROMICK, BRIAN"
,OFFICE OF THE MAJORITY LEADER,2009Q3,PERSONNEL COMPENSATION,"","SIXKILLER, MARIAH S",07/01/09,09/30/09,SENIOR POLICY ADVISOR,"17,250.00",FISCAL YEAR 2009,"","","","SIXKILLER, MARIAH S"
,OFFICE OF THE MAJORITY LEADER,2009Q3,PERSONNEL COMPENSATION,"","STOCKWELL,MICHELE M",07/01/09,09/30/09,POLICY DIRECTOR,"40,000.01",FISCAL YEAR 2009,"","","","STOCKWELL,MICHELE M"
,OFFICE OF THE MAJORITY LEADER,2009Q3,PERSONNEL COMPENSATION,"","SULLIVAN,ELIZABETH",06/01/09,06/30/09,STAFF ASSISTANT,"6,000.00",FISCAL YEAR 2009,"","","","SULLIVAN,ELIZABETH"
,OFFICE OF THE MAJORITY LEADER,2009Q3,PERSONNEL COMPENSATION,"","THOMAS, ELIZABETH M",07/01/09,09/30/09,SENIOR POLICY ADVISOR,"37,500.00",FISCAL YEAR 2009,"","","","THOMAS, ELIZABETH M"
,OFFICE OF THE MAJORITY LEADER,2009Q3,TRAVEL,"",07­23   P1 09ML0100304      V. SIMONE LITRENTA,06/18/09,06/18/09,"TAXI, PARKING, TOLLS",18.00,FISCAL YEAR 2009,"","","",07­23   P1 09ML0100304      V. SIMONE LITRENTA
,OFFICE OF THE MAJORITY LEADER,2009Q3,TRAVEL,"",07­23   P1 09ML0100305            DO,06/18/09,06/18/09,"TAXI, PARKING, TOLLS",12.00,FISCAL YEAR 2009,"","","",07­23   P1 09ML0100305            DO
,OFFICE OF THE MAJORITY LEADER,2009Q3,TRAVEL,"",07­23   P1 09ML0100306            DO,06/19/09,06/19/09,"TAXI, PARKING, TOLLS",10.00,FISCAL YEAR 2009,"","","",07­23   P1 09ML0100306            DO
,OFFICE OF THE MAJORITY LEADER,2009Q3,TRAVEL,"",07­23   P1 09ML0100307            DO,06/19/09,06/19/09,"TAXI, PARKING, TOLLS",9.00,FISCAL YEAR 2009,"","","",07­23   P1 09ML0100307            DO
,OFFICE OF THE MAJORITY LEADER,2009Q3,TRAVEL,"",07­31   P1 09ML0100323      SHUWANZA R GOFF,06/12/09,06/12/09,PRIVATE OWNED VEHICLE MILEAGE,35.75,FISCAL YEAR 2009,"","","",07­31   P1 09ML0100323      SHUWANZA R GOFF
,OFFICE OF THE MAJORITY LEADER,2009Q3,TRAVEL,"",09­23   P1 09ML0100362      MARY R KRUEGER,09/16/09,09/16/09,"TAXI, PARKING, TOLLS",7.25,FISCAL YEAR 2009,"","","",09­23   P1 09ML0100362      MARY R KRUEGER
,OFFICE OF THE MAJORITY LEADER,2009Q3,TRAVEL,"",09­23   P1 09ML0100363            DO,09/16/09,09/16/09,"TAXI, PARKING, TOLLS",8.00,FISCAL YEAR 2009,"","","",09­23   P1 09ML0100363            DO
,OFFICE OF THE MAJORITY LEADER,2009Q3,TRAVEL,"",09­23   P1 09ML0100364      TROY G CLAIR,09/16/09,09/16/09,"TAXI, PARKING, TOLLS",9.00,FISCAL YEAR 2009,"","","",09­23   P1 09ML0100364      TROY G CLAIR
,OFFICE OF THE MAJORITY LEADER,2009Q3,"RENT, COMMUNICATION, UTILITIES","",07­06   CB FXF090702A      FEDERAL EXPRESS CORP,06/22/09,06/22/09,POSTAGE/COURIER/BOX RENTAL,13.23,FISCAL YEAR 2009,"","","",07­06   CB FXF090702A      FEDERAL EXPRESS CORP
,OFFICE OF THE MAJORITY LEADER,2009Q3,"RENT, COMMUNICATION, UTILITIES","",07­10   CB FXF090709A            DO,06/24/09,06/24/09,POSTAGE/COURIER/BOX RENTAL,10.71,FISCAL YEAR 2009,"","","",07­10   CB FXF090709A            DO
,OFFICE OF THE MAJORITY LEADER,2009Q3,"RENT, COMMUNICATION, UTILITIES","",07­17 CB FXF090716A                DO,07/01/09,07/01/09,POSTAGE/COURIER/BOX RENTAL,6.30,FISCAL YEAR 2009,"","","",07­17 CB FXF090716A                DO
,OFFICE OF THE MAJORITY LEADER,2009Q3,"RENT, COMMUNICATION, UTILITIES","",07­24 CB FXF090723B                DO,07/08/09,07/08/09,POSTAGE/COURIER/BOX RENTAL,12.59,FISCAL YEAR 2009,"","","",07­24 CB FXF090723B                DO
,OFFICE OF THE MAJORITY LEADER,2009Q3,"RENT, COMMUNICATION, UTILITIES","",07­24 CB FXF090723B                DO,07/08/09,07/08/09,POSTAGE/COURIER/BOX RENTAL,12.00,FISCAL YEAR 2009,"","","",07­24 CB FXF090723B                DO
,OFFICE OF THE MAJORITY LEADER,2009Q3,"RENT, COMMUNICATION, UTILITIES","",08­07 CB FXF090806A                DO,07/28/09,07/28/09,POSTAGE/COURIER/BOX RENTAL,6.74,FISCAL YEAR 2009,"","","",08­07 CB FXF090806A                DO
,OFFICE OF THE MAJORITY LEADER,2009Q3,"RENT, COMMUNICATION, UTILITIES","",08­17 CB FXF090813A                DO,07/31/09,07/31/09,POSTAGE/COURIER/BOX RENTAL,29.90,FISCAL YEAR 2009,"","","",08­17 CB FXF090813A                DO
,OFFICE OF THE MAJORITY LEADER,2009Q3,"RENT, COMMUNICATION, UTILITIES","",08­31 CB FXF090828A                DO,08/17/09,08/17/09,POSTAGE/COURIER/BOX RENTAL,32.15,FISCAL YEAR 2009,"","","",08­31 CB FXF090828A                DO
,OFFICE OF THE MAJORITY LEADER,2009Q3,"RENT, COMMUNICATION, UTILITIES","",09­08 CB FXF090903A                DO,08/21/09,08/21/09,POSTAGE/COURIER/BOX RENTAL,6.65,FISCAL YEAR 2009,"","","",09­08 CB FXF090903A                DO
,OFFICE OF THE MAJORITY LEADER,2009Q3,"RENT, COMMUNICATION, UTILITIES","",09­15 CB FXF090910A                DO,08/26/09,08/26/09,POSTAGE/COURIER/BOX RENTAL,10.44,FISCAL YEAR 2009,"","","",09­15 CB FXF090910A                DO
,OFFICE OF THE MAJORITY LEADER,2009Q3,"RENT, COMMUNICATION, UTILITIES","",09­18 CB FXF090917A                DO,09/02/09,09/02/09,POSTAGE/COURIER/BOX RENTAL,21.69,FISCAL YEAR 2009,"","","",09­18 CB FXF090917A                DO
,OFFICE OF THE MAJORITY LEADER,2009Q3,PRINTING AND REPRODUCTION,"","07­13   P1 09ML0100280      DAVID L. ANDRUKITUS, INC",06/25/09,06/25/09,PRINTING AND REPRODUCTION,397.50,FISCAL YEAR 2009,"","","","07­13   P1 09ML0100280      DAVID L. ANDRUKITUS, INC"
,OFFICE OF THE MAJORITY LEADER,2009Q3,PRINTING AND REPRODUCTION,"",09­23   P1 09ML0100366           DO,02/04/09,02/04/09,PRINTING AND REPRODUCTION,397.50,FISCAL YEAR 2009,"","","",09­23   P1 09ML0100366           DO
,OFFICE OF THE MAJORITY LEADER,2009Q3,OTHER SERVICES,"",07­31   P1 09ML0100322                   CITIBANK GOV CARD SERVICE,06/01/09,06/01/09,LAUNDRY SERVICE,52.88,FISCAL YEAR 2009,"","","",07­31   P1 09ML0100322                   CITIBANK GOV CARD SERVICE
,OFFICE OF THE MAJORITY LEADER,2009Q3,OTHER SERVICES,"",09­22   P1 09ML0100359                        DO,07/06/09,07/06/09,LAUNDRY SERVICE,42.30,FISCAL YEAR 2009,"","","",09­22   P1 09ML0100359                        DO
,OFFICE OF THE MAJORITY LEADER,2009Q3,SUPPLIES AND MATERIALS,"",07­13   P1    09ML0100273      CAPITOLHOST,06/19/09,06/19/09,FOOD & BEVERAGE,42.41,FISCAL YEAR 2009,"","","",07­13   P1    09ML0100273      CAPITOLHOST
,OFFICE OF THE MAJORITY LEADER,2009Q3,SUPPLIES AND MATERIALS,"",07­13   P1    09ML0100274           DO,06/17/09,06/17/09,FOOD & BEVERAGE,112.50,FISCAL YEAR 2009,"","","",07­13   P1    09ML0100274           DO
,OFFICE OF THE MAJORITY LEADER,2009Q3,SUPPLIES AND MATERIALS,"",07­13   P1    09ML0100275           DO,06/16/09,06/16/09,FOOD & BEVERAGE,112.50,FISCAL YEAR 2009,"","","",07­13   P1    09ML0100275           DO
,OFFICE OF THE MAJORITY LEADER,2009Q3,SUPPLIES AND MATERIALS,"",07­13   P1    09ML0100276           DO,06/12/09,06/12/09,FOOD & BEVERAGE,42.41,FISCAL YEAR 2009,"","","",07­13   P1    09ML0100276           DO
,OFFICE OF THE MAJORITY LEADER,2009Q3,SUPPLIES AND MATERIALS,"",07­13   P1    09ML0100277           DO,06/10/09,06/10/09,FOOD & BEVERAGE,112.50,FISCAL YEAR 2009,"","","",07­13   P1    09ML0100277           DO
,OFFICE OF THE MAJORITY LEADER,2009Q3,SUPPLIES AND MATERIALS,"",07­13   P1    09ML0100278      CBC RESTAURANT CORP,05/18/09,05/18/09,FOOD & BEVERAGE,177.10,FISCAL YEAR 2009,"","","",07­13   P1    09ML0100278      CBC RESTAURANT CORP
,OFFICE OF THE MAJORITY LEADER,2009Q3,SUPPLIES AND MATERIALS,"",07­23   P1    09ML0100283           DO,06/24/09,06/24/09,FOOD & BEVERAGE,121.00,FISCAL YEAR 2009,"","","",07­23   P1    09ML0100283           DO
,OFFICE OF THE MAJORITY LEADER,2009Q3,SUPPLIES AND MATERIALS,"",07­23   P1    09ML0100284           DO,03/30/09,03/30/09,FOOD & BEVERAGE,157.50,FISCAL YEAR 2009,"","","",07­23   P1    09ML0100284           DO
,OFFICE OF THE MAJORITY LEADER,2009Q3,SUPPLIES AND MATERIALS,"",07­23   P1    09ML0100285           DO,06/23/09,06/23/09,FOOD & BEVERAGE,246.50,FISCAL YEAR 2009,"","","",07­23   P1    09ML0100285           DO
,OFFICE OF THE MAJORITY LEADER,2009Q3,SUPPLIES AND MATERIALS,"",07­23   P1    09ML0100286           DO,06/23/09,06/23/09,FOOD & BEVERAGE,246.50,FISCAL YEAR 2009,"","","",07­23   P1    09ML0100286           DO
,OFFICE OF THE MAJORITY LEADER,2009Q3,SUPPLIES AND MATERIALS,"",07­23   P1    09ML0100287           DO,06/23/09,06/23/09,FOOD & BEVERAGE,147.50,FISCAL YEAR 2009,"","","",07­23   P1    09ML0100287           DO
,OFFICE OF THE MAJORITY LEADER,2009Q3,SUPPLIES AND MATERIALS,"",07­23   P1    09ML0100288           DO,06/08/09,06/08/09,FOOD & BEVERAGE,147.50,FISCAL YEAR 2009,"","","",07­23   P1    09ML0100288           DO
,OFFICE OF THE MAJORITY LEADER,2009Q3,SUPPLIES AND MATERIALS,"",07­23   P1    09ML0100289           DO,06/15/09,06/15/09,FOOD & BEVERAGE,236.50,FISCAL YEAR 2009,"","","",07­23   P1    09ML0100289           DO
,OFFICE OF THE MAJORITY LEADER,2009Q3,SUPPLIES AND MATERIALS,"",07­23   P1    09ML0100290           DO,06/15/09,06/15/09,FOOD & BEVERAGE,124.50,FISCAL YEAR 2009,"","","",07­23   P1    09ML0100290           DO
,OFFICE OF THE MAJORITY LEADER,2009Q3,SUPPLIES AND MATERIALS,"",07­23   P1    09ML0100291           DO,06/17/09,06/17/09,FOOD & BEVERAGE,142.00,FISCAL YEAR 2009,"","","",07­23   P1    09ML0100291           DO
,OFFICE OF THE MAJORITY LEADER,2009Q3,SUPPLIES AND MATERIALS,"",07­23   P1    09ML0100292           DO,06/15/09,06/15/09,FOOD & BEVERAGE,246.50,FISCAL YEAR 2009,"","","",07­23   P1    09ML0100292           DO
,OFFICE OF THE MAJORITY LEADER,2009Q3,SUPPLIES AND MATERIALS,"",07­23   P1    09ML0100293           DO,06/15/09,06/15/09,FOOD & BEVERAGE,147.50,FISCAL YEAR 2009,"","","",07­23   P1    09ML0100293           DO
,OFFICE OF THE MAJORITY LEADER,2009Q3,SUPPLIES AND MATERIALS,"",07­23   P1    09ML0100294           DO,06/18/09,06/18/09,FOOD & BEVERAGE,137.60,FISCAL YEAR 2009,"","","",07­23   P1    09ML0100294           DO
,OFFICE OF THE MAJORITY LEADER,2009Q3,SUPPLIES AND MATERIALS,"",07­23   P1    09ML0100295           DO,06/02/09,06/02/09,FOOD & BEVERAGE,114.50,FISCAL YEAR 2009,"","","",07­23   P1    09ML0100295           DO
,OFFICE OF THE MAJORITY LEADER,2009Q3,SUPPLIES AND MATERIALS,"",07­23   P1    09ML0100296           DO,06/01/09,06/01/09,FOOD & BEVERAGE,236.60,FISCAL YEAR 2009,"","","",07­23   P1    09ML0100296           DO
,OFFICE OF THE MAJORITY LEADER,2009Q3,SUPPLIES AND MATERIALS,"",07­23   P1    09ML0100297           DO,06/02/09,06/02/09,FOOD & BEVERAGE,389.50,FISCAL YEAR 2009,"","","",07­23   P1    09ML0100297           DO
,OFFICE OF THE MAJORITY LEADER,2009Q3,SUPPLIES AND MATERIALS,"",07­23   P1    09ML0100298           DO,06/01/09,06/01/09,FOOD & BEVERAGE,246.50,FISCAL YEAR 2009,"","","",07­23   P1    09ML0100298           DO
,OFFICE OF THE MAJORITY LEADER,2009Q3,SUPPLIES AND MATERIALS,"",07­23   P1    09ML0100299           DO,06/01/09,06/01/09,FOOD & BEVERAGE,147.50,FISCAL YEAR 2009,"","","",07­23   P1    09ML0100299           DO
,OFFICE OF THE MAJORITY LEADER,2009Q3,SUPPLIES AND MATERIALS,"",07­23   P1    09ML0100303      MARY R KRUEGER,07/01/09,07/01/09,FOOD & BEVERAGE,16.38,FISCAL YEAR 2009,"","","",07­23   P1    09ML0100303      MARY R KRUEGER
,OFFICE OF THE MAJORITY LEADER,2009Q3,SUPPLIES AND MATERIALS,"",07­24   P1    09ML0100300      CAPITOLHOST,07/08/09,07/08/09,FOOD & BEVERAGE,112.50,FISCAL YEAR 2009,"","","",07­24   P1    09ML0100300      CAPITOLHOST
,OFFICE OF THE MAJORITY LEADER,2009Q3,SUPPLIES AND MATERIALS,"",07­24   P1    09ML0100301           DO,07/08/09,07/08/09,FOOD & BEVERAGE,147.41,FISCAL YEAR 2009,"","","",07­24   P1    09ML0100301           DO
,OFFICE OF THE MAJORITY LEADER,2009Q3,SUPPLIES AND MATERIALS,"",07­24   P1    09ML0100302           DO,07/10/09,07/10/09,FOOD & BEVERAGE,42.41,FISCAL YEAR 2009,"","","",07­24   P1    09ML0100302           DO
,OFFICE OF THE MAJORITY LEADER,2009Q3,SUPPLIES AND MATERIALS,"",07­24   P1    09ML0100308      CBC RESTAURANT CORP,06/26/09,06/26/09,FOOD & BEVERAGE,147.50,FISCAL YEAR 2009,"","","",07­24   P1    09ML0100308      CBC RESTAURANT CORP
,OFFICE OF THE MAJORITY LEADER,2009Q3,SUPPLIES AND MATERIALS,"",07­24   P1    09ML0100309           DO,06/23/09,06/23/09,FOOD & BEVERAGE,137.60,FISCAL YEAR 2009,"","","",07­24   P1    09ML0100309           DO
,OFFICE OF THE MAJORITY LEADER,2009Q3,SUPPLIES AND MATERIALS,"",07­24   P1    09ML0100310           DO,06/11/09,06/11/09,FOOD & BEVERAGE,137.60,FISCAL YEAR 2009,"","","",07­24   P1    09ML0100310           DO
,OFFICE OF THE MAJORITY LEADER,2009Q3,SUPPLIES AND MATERIALS,"",07­24   P1    09ML0100311           DO,06/10/09,06/10/09,FOOD & BEVERAGE,114.50,FISCAL YEAR 2009,"","","",07­24   P1    09ML0100311           DO
,OFFICE OF THE MAJORITY LEADER,2009Q3,SUPPLIES AND MATERIALS,"",07­24   P1    09ML0100312           DO,06/08/09,06/08/09,FOOD & BEVERAGE,224.50,FISCAL YEAR 2009,"","","",07­24   P1    09ML0100312           DO
,OFFICE OF THE MAJORITY LEADER,2009Q3,SUPPLIES AND MATERIALS,"",07­31   P1    09ML0100324      CAPITOLHOST,05/07/09,05/07/09,FOOD & BEVERAGE,368.99,FISCAL YEAR 2009,"","","",07­31   P1    09ML0100324      CAPITOLHOST
,OFFICE OF THE MAJORITY LEADER,2009Q3,SUPPLIES AND MATERIALS,"",07­31   P1    09ML0100325           DO,06/26/09,06/26/09,FOOD & BEVERAGE,42.41,FISCAL YEAR 2009,"","","",07­31   P1    09ML0100325           DO
,OFFICE OF THE MAJORITY LEADER,2009Q3,SUPPLIES AND MATERIALS,"",07­31 P1 09ML0100326               DO,06/24/09,06/24/09,FOOD & BEVERAGE,112.50,FISCAL YEAR 2009,"","","",07­31 P1 09ML0100326               DO
,OFFICE OF THE MAJORITY LEADER,2009Q3,SUPPLIES AND MATERIALS,"",07­31 P1 09ML0100318          CITIBANK GOV CARD SERVICE,06/01/09,06/24/09,FOOD & BEVERAGE,"1,423.20",FISCAL YEAR 2009,"","","",07­31 P1 09ML0100318          CITIBANK GOV CARD SERVICE
,OFFICE OF THE MAJORITY LEADER,2009Q3,SUPPLIES AND MATERIALS,"",07­31 P1 09ML0100320               DO,06/11/09,06/11/09,HABITATION EXPENSES,35.96,FISCAL YEAR 2009,"","","",07­31 P1 09ML0100320               DO
,OFFICE OF THE MAJORITY LEADER,2009Q3,SUPPLIES AND MATERIALS,"",07­31 P1 09ML0100321               DO,06/22/09,06/22/09,PUBLICATION REF MATERIAL,28.50,FISCAL YEAR 2009,"","","",07­31 P1 09ML0100321               DO
,OFFICE OF THE MAJORITY LEADER,2009Q3,SUPPLIES AND MATERIALS,"",07­31 P1 09ML0100313          TV EYES INC,07/09/09,07/09/10,PUBLICATION REF MATERIAL,"1,200.00",FISCAL YEAR 2009,"","","",07­31 P1 09ML0100313          TV EYES INC
,OFFICE OF THE MAJORITY LEADER,2009Q3,SUPPLIES AND MATERIALS,"",08­31 C1 NW200924003          DEER PARK,07/31/09,07/31/09,BOTTLED WATER,8.00,FISCAL YEAR 2009,"","","",08­31 C1 NW200924003          DEER PARK
,OFFICE OF THE MAJORITY LEADER,2009Q3,SUPPLIES AND MATERIALS,"",08­31 C1 NW200924003               DO,07/09/09,07/09/09,BOTTLED WATER,55.96,FISCAL YEAR 2009,"","","",08­31 C1 NW200924003               DO
,OFFICE OF THE MAJORITY LEADER,2009Q3,SUPPLIES AND MATERIALS,"",08­31 C1 NW200924003               DO,07/20/09,07/20/09,BOTTLED WATER,40.00,FISCAL YEAR 2009,"","","",08­31 C1 NW200924003               DO
,OFFICE OF THE MAJORITY LEADER,2009Q3,SUPPLIES AND MATERIALS,"",08­31 C1 NW200924003               DO,07/24/09,07/24/09,BOTTLED WATER,65.00,FISCAL YEAR 2009,"","","",08­31 C1 NW200924003               DO
,OFFICE OF THE MAJORITY LEADER,2009Q3,SUPPLIES AND MATERIALS,"",08­31 C1 NW200924003               DO,07/31/09,07/31/09,BOTTLED WATER,51.97,FISCAL YEAR 2009,"","","",08­31 C1 NW200924003               DO
,OFFICE OF THE MAJORITY LEADER,2009Q3,SUPPLIES AND MATERIALS,"",08­31 C1 NW200924003               DO,07/31/09,07/31/09,BOTTLED WATER,2.00,FISCAL YEAR 2009,"","","",08­31 C1 NW200924003               DO
,OFFICE OF THE MAJORITY LEADER,2009Q3,SUPPLIES AND MATERIALS,"",09­11 HV 09A90300985               DO,10/06/08,10/06/08,BOTTLED WATER,39.76,FISCAL YEAR 2009,"","","",09­11 HV 09A90300985               DO
,OFFICE OF THE MAJORITY LEADER,2009Q3,SUPPLIES AND MATERIALS,"",09­11 HV 09A90300985               DO,10/21/08,10/21/08,BOTTLED WATER,56.07,FISCAL YEAR 2009,"","","",09­11 HV 09A90300985               DO
,OFFICE OF THE MAJORITY LEADER,2009Q3,SUPPLIES AND MATERIALS,"",09­11 HV 09A90300985               DO,10/31/08,10/31/08,BOTTLED WATER,8.00,FISCAL YEAR 2009,"","","",09­11 HV 09A90300985               DO
,OFFICE OF THE MAJORITY LEADER,2009Q3,SUPPLIES AND MATERIALS,"",09­11 HV 09A90300985               DO,10/31/08,10/31/08,BOTTLED WATER,2.00,FISCAL YEAR 2009,"","","",09­11 HV 09A90300985               DO
,OFFICE OF THE MAJORITY LEADER,2009Q3,SUPPLIES AND MATERIALS,"",09­11 HV 09A90300987               DO,12/05/08,12/05/08,BOTTLED WATER,66.07,FISCAL YEAR 2009,"","","",09­11 HV 09A90300987               DO
,OFFICE OF THE MAJORITY LEADER,2009Q3,SUPPLIES AND MATERIALS,"",09­11 HV 09A90300987               DO,12/22/08,12/22/08,BOTTLED WATER,61.07,FISCAL YEAR 2009,"","","",09­11 HV 09A90300987               DO
,OFFICE OF THE MAJORITY LEADER,2009Q3,SUPPLIES AND MATERIALS,"",09­11 HV 09A90300987               DO,12/31/08,12/31/08,BOTTLED WATER,8.00,FISCAL YEAR 2009,"","","",09­11 HV 09A90300987               DO
,OFFICE OF THE MAJORITY LEADER,2009Q3,SUPPLIES AND MATERIALS,"",09­11 HV 09A90300987               DO,12/31/08,12/31/08,BOTTLED WATER,2.00,FISCAL YEAR 2009,"","","",09­11 HV 09A90300987               DO
,OFFICE OF THE MAJORITY LEADER,2009Q3,SUPPLIES AND MATERIALS,"",09­11 HV 09A90300988               DO,11/04/08,11/04/08,BOTTLED WATER,41.07,FISCAL YEAR 2009,"","","",09­11 HV 09A90300988               DO
,OFFICE OF THE MAJORITY LEADER,2009Q3,SUPPLIES AND MATERIALS,"",09­11 HV 09A90300988               DO,11/17/08,11/17/08,BOTTLED WATER,22.38,FISCAL YEAR 2009,"","","",09­11 HV 09A90300988               DO
,OFFICE OF THE MAJORITY LEADER,2009Q3,SUPPLIES AND MATERIALS,"",09­11 HV 09A90300988               DO,11/19/08,11/19/08,BOTTLED WATER,56.07,FISCAL YEAR 2009,"","","",09­11 HV 09A90300988               DO
,OFFICE OF THE MAJORITY LEADER,2009Q3,SUPPLIES AND MATERIALS,"",09­11 HV 09A90300988               DO,11/30/08,11/30/08,BOTTLED WATER,8.00,FISCAL YEAR 2009,"","","",09­11 HV 09A90300988               DO
,OFFICE OF THE MAJORITY LEADER,2009Q3,SUPPLIES AND MATERIALS,"",09­11 HV 09A90300988               DO,11/30/08,11/30/08,BOTTLED WATER,2.00,FISCAL YEAR 2009,"","","",09­11 HV 09A90300988               DO
,OFFICE OF THE MAJORITY LEADER,2009Q3,SUPPLIES AND MATERIALS,"",09­11 HV 09A90300989               DO,01/09/09,01/09/09,BOTTLED WATER,76.97,FISCAL YEAR 2009,"","","",09­11 HV 09A90300989               DO
,OFFICE OF THE MAJORITY LEADER,2009Q3,SUPPLIES AND MATERIALS,"",09­11 HV 09A90300989               DO,01/27/09,01/27/09,BOTTLED WATER,71.97,FISCAL YEAR 2009,"","","",09­11 HV 09A90300989               DO
,OFFICE OF THE MAJORITY LEADER,2009Q3,SUPPLIES AND MATERIALS,"",09­11 HV 09A90300989               DO,01/31/09,01/31/09,BOTTLED WATER,8.00,FISCAL YEAR 2009,"","","",09­11 HV 09A90300989               DO
,OFFICE OF THE MAJORITY LEADER,2009Q3,SUPPLIES AND MATERIALS,"",09­11 HV 09A90300992               DO,02/10/09,02/10/09,BOTTLED WATER,51.97,FISCAL YEAR 2009,"","","",09­11 HV 09A90300992               DO
,OFFICE OF THE MAJORITY LEADER,2009Q3,SUPPLIES AND MATERIALS,"",09­11 HV 09A90300992               DO,02/25/09,02/25/09,BOTTLED WATER,66.97,FISCAL YEAR 2009,"","","",09­11 HV 09A90300992               DO
,OFFICE OF THE MAJORITY LEADER,2009Q3,SUPPLIES AND MATERIALS,"",09­11 HV 09A90300992               DO,02/28/09,02/28/09,BOTTLED WATER,8.00,FISCAL YEAR 2009,"","","",09­11 HV 09A90300992               DO
,OFFICE OF THE MAJORITY LEADER,2009Q3,SUPPLIES AND MATERIALS,"",09­11 HV 09A90300993               DO,03/11/09,03/11/09,BOTTLED WATER,76.97,FISCAL YEAR 2009,"","","",09­11 HV 09A90300993               DO
,OFFICE OF THE MAJORITY LEADER,2009Q3,SUPPLIES AND MATERIALS,"",09­11 HV 09A90300993               DO,03/26/09,03/26/09,BOTTLED WATER,83.94,FISCAL YEAR 2009,"","","",09­11 HV 09A90300993               DO
,OFFICE OF THE MAJORITY LEADER,2009Q3,SUPPLIES AND MATERIALS,"",09­11 HV 09A90300993               DO,03/31/09,03/31/09,BOTTLED WATER,8.00,FISCAL YEAR 2009,"","","",09­11 HV 09A90300993               DO
,OFFICE OF THE MAJORITY LEADER,2009Q3,SUPPLIES AND MATERIALS,"",09­11 HV 09A90300995               DO,04/09/09,04/09/09,BOTTLED WATER,91.97,FISCAL YEAR 2009,"","","",09­11 HV 09A90300995               DO
,OFFICE OF THE MAJORITY LEADER,2009Q3,SUPPLIES AND MATERIALS,"",09­11 HV 09A90300995               DO,04/24/09,04/24/09,BOTTLED WATER,71.97,FISCAL YEAR 2009,"","","",09­11 HV 09A90300995               DO
,OFFICE OF THE MAJORITY LEADER,2009Q3,SUPPLIES AND MATERIALS,"",09­11 HV 09A90300995               DO,04/30/09,04/30/09,BOTTLED WATER,8.00,FISCAL YEAR 2009,"","","",09­11 HV 09A90300995               DO
,OFFICE OF THE MAJORITY LEADER,2009Q3,SUPPLIES AND MATERIALS,"",09­11 HV 09A90300997               DO,05/08/09,05/08/09,BOTTLED WATER,80.96,FISCAL YEAR 2009,"","","",09­11 HV 09A90300997               DO
,OFFICE OF THE MAJORITY LEADER,2009Q3,SUPPLIES AND MATERIALS,"",09­11 HV 09A90300997               DO,05/26/09,05/26/09,BOTTLED WATER,80.96,FISCAL YEAR 2009,"","","",09­11 HV 09A90300997               DO
,OFFICE OF THE MAJORITY LEADER,2009Q3,SUPPLIES AND MATERIALS,"",09­11 HV 09A90300997               DO,05/31/09,05/31/09,BOTTLED WATER,8.00,FISCAL YEAR 2009,"","","",09­11 HV 09A90300997               DO
,OFFICE OF THE MAJORITY LEADER,2009Q3,SUPPLIES AND MATERIALS,"",09­11 HV 09A90300998               DO,06/08/09,06/08/09,BOTTLED WATER,80.96,FISCAL YEAR 2009,"","","",09­11 HV 09A90300998               DO
,OFFICE OF THE MAJORITY LEADER,2009Q3,SUPPLIES AND MATERIALS,"",09­11 HV 09A90300998               DO,06/24/09,06/24/09,BOTTLED WATER,80.96,FISCAL YEAR 2009,"","","",09­11 HV 09A90300998               DO
,OFFICE OF THE MAJORITY LEADER,2009Q3,SUPPLIES AND MATERIALS,"",09­11 HV 09A90300998               DO,06/30/09,06/30/09,BOTTLED WATER,8.00,FISCAL YEAR 2009,"","","",09­11 HV 09A90300998               DO
,OFFICE OF THE MAJORITY LEADER,2009Q3,SUPPLIES AND MATERIALS,"",09­11 HV 09A90300998               DO,06/30/09,06/30/09,BOTTLED WATER,2.00,FISCAL YEAR 2009,"","","",09­11 HV 09A90300998               DO
,OFFICE OF THE MAJORITY LEADER,2009Q3,SUPPLIES AND MATERIALS,"",09­14       P1    09ML0100328                CAPITOLHOST,07/31/09,07/31/09,FOOD & BEVERAGE,42.42,FISCAL YEAR 2009,"","","",09­14       P1    09ML0100328                CAPITOLHOST
,OFFICE OF THE MAJORITY LEADER,2009Q3,SUPPLIES AND MATERIALS,"",09­14       P1    09ML0100329                      DO,07/29/09,07/29/09,FOOD & BEVERAGE,112.50,FISCAL YEAR 2009,"","","",09­14       P1    09ML0100329                      DO
,OFFICE OF THE MAJORITY LEADER,2009Q3,SUPPLIES AND MATERIALS,"",09­14       P1    09ML0100330                      DO,07/29/09,07/29/09,FOOD & BEVERAGE,57.02,FISCAL YEAR 2009,"","","",09­14       P1    09ML0100330                      DO
,OFFICE OF THE MAJORITY LEADER,2009Q3,SUPPLIES AND MATERIALS,"",09­14       P1    09ML0100331                      DO,08/11/09,08/11/09,FOOD & BEVERAGE,42.41,FISCAL YEAR 2009,"","","",09­14       P1    09ML0100331                      DO
,OFFICE OF THE MAJORITY LEADER,2009Q3,SUPPLIES AND MATERIALS,"",09­14       P1    09ML0100333                      DO,07/10/09,07/10/09,FOOD & BEVERAGE,36.03,FISCAL YEAR 2009,"","","",09­14       P1    09ML0100333                      DO
,OFFICE OF THE MAJORITY LEADER,2009Q3,SUPPLIES AND MATERIALS,"",09­14       P1    09ML0100334                      DO,07/22/09,07/22/09,FOOD & BEVERAGE,112.50,FISCAL YEAR 2009,"","","",09­14       P1    09ML0100334                      DO
,OFFICE OF THE MAJORITY LEADER,2009Q3,SUPPLIES AND MATERIALS,"",09­14       P1    09ML0100335                      DO,07/22/09,07/22/09,FOOD & BEVERAGE,95.76,FISCAL YEAR 2009,"","","",09­14       P1    09ML0100335                      DO
,OFFICE OF THE MAJORITY LEADER,2009Q3,SUPPLIES AND MATERIALS,"",09­14       P1    09ML0100336                      DO,07/22/09,07/22/09,FOOD & BEVERAGE,105.30,FISCAL YEAR 2009,"","","",09­14       P1    09ML0100336                      DO
,OFFICE OF THE MAJORITY LEADER,2009Q3,SUPPLIES AND MATERIALS,"",09­14       P1    09ML0100327                V. SIMONE LITRENTA,08/31/09,08/31/09,FOOD & BEVERAGE,994.75,FISCAL YEAR 2009,"","","",09­14       P1    09ML0100327                V. SIMONE LITRENTA
,OFFICE OF THE MAJORITY LEADER,2009Q3,SUPPLIES AND MATERIALS,"",09­16       P1    09ML0100337                CBC RESTAURANT CORP,07/28/09,07/28/09,FOOD & BEVERAGE,187.10,FISCAL YEAR 2009,"","","",09­16       P1    09ML0100337                CBC RESTAURANT CORP
,OFFICE OF THE MAJORITY LEADER,2009Q3,SUPPLIES AND MATERIALS,"",09­16       P1    09ML0100338                      DO,07/20/09,07/20/09,FOOD & BEVERAGE,187.10,FISCAL YEAR 2009,"","","",09­16       P1    09ML0100338                      DO
,OFFICE OF THE MAJORITY LEADER,2009Q3,SUPPLIES AND MATERIALS,"",09­16       P1    09ML0100339                      DO,07/29/09,07/29/09,FOOD & BEVERAGE,279.50,FISCAL YEAR 2009,"","","",09­16       P1    09ML0100339                      DO
,OFFICE OF THE MAJORITY LEADER,2009Q3,SUPPLIES AND MATERIALS,"",09­16       P1    09ML0100340                      DO,07/28/09,07/28/09,FOOD & BEVERAGE,334.50,FISCAL YEAR 2009,"","","",09­16       P1    09ML0100340                      DO
,OFFICE OF THE MAJORITY LEADER,2009Q3,SUPPLIES AND MATERIALS,"",09­16       P1    09ML0100341                      DO,07/20/09,07/20/09,FOOD & BEVERAGE,401.87,FISCAL YEAR 2009,"","","",09­16       P1    09ML0100341                      DO
,OFFICE OF THE MAJORITY LEADER,2009Q3,SUPPLIES AND MATERIALS,"",09­16       P1    09ML0100342                      DO,07/20/09,07/20/09,FOOD & BEVERAGE,164.00,FISCAL YEAR 2009,"","","",09­16       P1    09ML0100342                      DO
,OFFICE OF THE MAJORITY LEADER,2009Q3,SUPPLIES AND MATERIALS,"",09­16       P1    09ML0100343                      DO,07/13/09,07/13/09,FOOD & BEVERAGE,193.60,FISCAL YEAR 2009,"","","",09­16       P1    09ML0100343                      DO
,OFFICE OF THE MAJORITY LEADER,2009Q3,SUPPLIES AND MATERIALS,"",09­16       P1    09ML0100344                      DO,07/15/09,07/15/09,FOOD & BEVERAGE,269.24,FISCAL YEAR 2009,"","","",09­16       P1    09ML0100344                      DO
,OFFICE OF THE MAJORITY LEADER,2009Q3,SUPPLIES AND MATERIALS,"",09­16       P1    09ML0100345                      DO,07/13/09,07/13/09,FOOD & BEVERAGE,236.50,FISCAL YEAR 2009,"","","",09­16       P1    09ML0100345                      DO
,OFFICE OF THE MAJORITY LEADER,2009Q3,SUPPLIES AND MATERIALS,"",09­16       P1    09ML0100346                      DO,07/13/09,07/13/09,FOOD & BEVERAGE,334.50,FISCAL YEAR 2009,"","","",09­16       P1    09ML0100346                      DO
,OFFICE OF THE MAJORITY LEADER,2009Q3,SUPPLIES AND MATERIALS,"",09­16       P1    09ML0100347                      DO,07/15/09,07/15/09,FOOD & BEVERAGE,147.50,FISCAL YEAR 2009,"","","",09­16       P1    09ML0100347                      DO
,OFFICE OF THE MAJORITY LEADER,2009Q3,SUPPLIES AND MATERIALS,"",09­16       P1    09ML0100348                      DO,07/07/09,07/07/09,FOOD & BEVERAGE,275.10,FISCAL YEAR 2009,"","","",09­16       P1    09ML0100348                      DO
,OFFICE OF THE MAJORITY LEADER,2009Q3,SUPPLIES AND MATERIALS,"",09­16       P1    09ML0100349                      DO,07/08/09,07/08/09,FOOD & BEVERAGE,269.24,FISCAL YEAR 2009,"","","",09­16       P1    09ML0100349                      DO
,OFFICE OF THE MAJORITY LEADER,2009Q3,SUPPLIES AND MATERIALS,"",09­16       P1    09ML0100350                      DO,07/07/09,07/07/09,FOOD & BEVERAGE,356.50,FISCAL YEAR 2009,"","","",09­16       P1    09ML0100350                      DO
,OFFICE OF THE MAJORITY LEADER,2009Q3,SUPPLIES AND MATERIALS,"",09­16       P1    09ML0100351                      DO,07/07/09,07/07/09,FOOD & BEVERAGE,164.00,FISCAL YEAR 2009,"","","",09­16       P1    09ML0100351                      DO
,OFFICE OF THE MAJORITY LEADER,2009Q3,SUPPLIES AND MATERIALS,"",09­16       P1    09ML0100352                      DO,08/10/09,08/10/09,FOOD & BEVERAGE,149.87,FISCAL YEAR 2009,"","","",09­16       P1    09ML0100352                      DO
,OFFICE OF THE MAJORITY LEADER,2009Q3,SUPPLIES AND MATERIALS,"",09­16       P1    09ML0100353                      DO,08/03/09,08/03/09,FOOD & BEVERAGE,76.00,FISCAL YEAR 2009,"","","",09­16       P1    09ML0100353                      DO
,OFFICE OF THE MAJORITY LEADER,2009Q3,SUPPLIES AND MATERIALS,"",09­16       P1    09ML0100354                CITIBANK GOV CARD SERVICE,08/27/09,08/27/09,HABITATION EXPENSES,220.19,FISCAL YEAR 2009,"","","",09­16       P1    09ML0100354                CITIBANK GOV CARD SERVICE
,OFFICE OF THE MAJORITY LEADER,2009Q3,SUPPLIES AND MATERIALS,"",09­16       P1    09ML0100355                      DO,07/28/09,07/28/09,FOOD & BEVERAGE,266.40,FISCAL YEAR 2009,"","","",09­16       P1    09ML0100355                      DO
,OFFICE OF THE MAJORITY LEADER,2009Q3,SUPPLIES AND MATERIALS,"",09­16       P1    09ML0100356                      DO,08/21/09,10/13/10,PUBLICATION REF MATERIAL,507.68,FISCAL YEAR 2009,"","","",09­16       P1    09ML0100356                      DO
,OFFICE OF THE MAJORITY LEADER,2009Q3,SUPPLIES AND MATERIALS,"",09­22       P1    09ML0100357                      DO,06/24/09,07/27/09,FOOD & BEVERAGE,"3,422.24",FISCAL YEAR 2009,"","","",09­22       P1    09ML0100357                      DO
,OFFICE OF THE MAJORITY LEADER,2009Q3,SUPPLIES AND MATERIALS,"",09­22       P1    09ML0100360                      DO,07/13/09,07/13/09,PUBLICATION REF MATERIAL,95.18,FISCAL YEAR 2009,"","","",09­22       P1    09ML0100360                      DO
,OFFICE OF THE MAJORITY LEADER,2009Q3,SUPPLIES AND MATERIALS,"",09­23       P1    09ML0100365                CAPITOLHOST,07/24/09,07/24/09,FOOD & BEVERAGE,42.41,FISCAL YEAR 2009,"","","",09­23       P1    09ML0100365                CAPITOLHOST
,OFFICE OF THE MAJORITY LEADER,2009Q3,PERSONNEL BENEFITS,"",07­20       P9 ML010900007        HON. STENY HOYER,07/01/09,07/31/09,OFFICIAL EXPENSES FOR LEADER,833.33,FISCAL YEAR 2009,"","","",07­20       P9 ML010900007        HON. STENY HOYER
,OFFICE OF THE MAJORITY LEADER,2009Q3,PERSONNEL BENEFITS,"",08­20       P9 ML010900008             DO,08/01/09,08/31/09,OFFICIAL EXPENSES FOR LEADER,833.33,FISCAL YEAR 2009,"","","",08­20       P9 ML010900008             DO
,OFFICE OF THE MAJORITY LEADER,2009Q3,PERSONNEL BENEFITS,"",09­21       P9 ML010900009             DO,09/01/09,09/30/09,OFFICIAL EXPENSES FOR LEADER,833.33,FISCAL YEAR 2009,"","","",09­21       P9 ML010900009             DO
,OFFICE OF THE MINORITY LEADER,2009Q3,PERSONNEL COMPENSATION,"","CASSIDY, ED",07/01/09,09/30/09,SR ADVISOR/FLOOR ASSIST (STAT),"42,000.00",FISCAL YEAR 2009,"","","","CASSIDY, ED"
,OFFICE OF THE MINORITY LEADER,2009Q3,PERSONNEL COMPENSATION,"","GREEN, JO-MARIE S",07/01/09,09/30/09,GEN. COUNSEL/DIR. OF FLOOR OPS,"42,999.99",FISCAL YEAR 2009,"","","","GREEN, JO-MARIE S"
,OFFICE OF THE MINORITY LEADER,2009Q3,PERSONNEL COMPENSATION,"","KINZEL,WILL C",04/14/09,07/31/09,POLICY ADVISOR/COUNSEL,"14,361.11",FISCAL YEAR 2009,"","","","KINZEL,WILL C"
,OFFICE OF THE MINORITY LEADER,2009Q3,PERSONNEL COMPENSATION,"","NOWAKOWSKI, PAULA",07/01/09,09/30/09,CHIEF OF STAFF,"43,125.00",FISCAL YEAR 2009,"","","","NOWAKOWSKI, PAULA"
,OFFICE OF THE MINORITY LEADER,2009Q3,PERSONNEL COMPENSATION,"","PIERSON, JAY",07/01/09,09/30/09,FLOOR ASSISTANT (STAT),"42,099.99",FISCAL YEAR 2009,"","","","PIERSON, JAY"
,OFFICE OF THE MINORITY LEADER,2009Q3,PERSONNEL COMPENSATION,"","SCHNITTGER, DAVID M",07/01/09,09/30/09,DEPUTY CHIEF OF STAFF,"43,125.00",FISCAL YEAR 2009,"","","","SCHNITTGER, DAVID M"
,OFFICE OF THE MINORITY LEADER,2009Q3,PERSONNEL COMPENSATION,"","SMITH, KEVIN",07/01/09,09/30/09,COMMUNICATIONS DIR (STATUTORY),"40,399.99",FISCAL YEAR 2009,"","","","SMITH, KEVIN"
,OFFICE OF THE MINORITY LEADER,2009Q3,PERSONNEL COMPENSATION,"","SOMMERS, MICHAEL J",07/01/09,09/30/09,POLICY DIRECTOR,"42,999.99",FISCAL YEAR 2009,"","","","SOMMERS, MICHAEL J"
,OFFICE OF THE MINORITY LEADER,2009Q3,PERSONNEL COMPENSATION,"","ANDRES, ELIZABETH G",09/16/09,09/30/09,DEPUTY PRESS SECRETARY,"2,916.67",FISCAL YEAR 2009,"","","","ANDRES, ELIZABETH G"
,OFFICE OF THE MINORITY LEADER,2009Q3,PERSONNEL COMPENSATION,"","BENJAMIN, WILLIAM C",07/01/09,09/30/09,DIR OF INFORMATION TECHNOLOGY,"25,937.50",FISCAL YEAR 2009,"","","","BENJAMIN, WILLIAM C"
,OFFICE OF THE MINORITY LEADER,2009Q3,PERSONNEL COMPENSATION,"","CHAPLIN, KRISTEN F",07/01/09,09/30/09,DIR OF SCHEDLNG & SPEC EVENTS,"23,374.99",FISCAL YEAR 2009,"","","","CHAPLIN, KRISTEN F"
,OFFICE OF THE MINORITY LEADER,2009Q3,PERSONNEL COMPENSATION,"","CRANFORD III, JAY N",07/01/09,09/30/09,POLICY ADVISOR,"40,212.51",FISCAL YEAR 2009,"","","","CRANFORD III, JAY N"
,OFFICE OF THE MINORITY LEADER,2009Q3,PERSONNEL COMPENSATION,"","FORDE, STEVE M",07/01/09,08/23/09,DEPUTY COMMUNICATIONS DIRECTOR,"19,641.67",FISCAL YEAR 2009,"","","","FORDE, STEVE M"
,OFFICE OF THE MINORITY LEADER,2009Q3,PERSONNEL COMPENSATION,"","FORDE, STEVE M",08/01/09,08/23/09,DEPUTY COMMUNICATIONS DIRECTOR (OTHER COMPENSATION),"4,593.75",FISCAL YEAR 2009,"","","",DO
,OFFICE OF THE MINORITY LEADER,2009Q3,PERSONNEL COMPENSATION,"","GREENE,WILLIAM P",07/01/09,09/30/09,OUTREACH DIRECTOR,"36,199.99",FISCAL YEAR 2009,"","","","GREENE,WILLIAM P"
,OFFICE OF THE MINORITY LEADER,2009Q3,PERSONNEL COMPENSATION,"","HALEY, KATHERINE C",07/01/09,09/30/09,POLICY ADVISOR,"25,249.99",FISCAL YEAR 2009,"","","","HALEY, KATHERINE C"
,OFFICE OF THE MINORITY LEADER,2009Q3,PERSONNEL COMPENSATION,"","HERRLE, CYNTHIA A",07/01/09,09/30/09,POLICY ADVISOR,"37,837.51",FISCAL YEAR 2009,"","","","HERRLE, CYNTHIA A"
,OFFICE OF THE MINORITY LEADER,2009Q3,PERSONNEL COMPENSATION,"","KETCHEL, KIMBERLY",07/01/09,09/06/09,DEPUTY PRESS SECRETARY,"13,216.67",FISCAL YEAR 2009,"","","","KETCHEL, KIMBERLY"
,OFFICE OF THE MINORITY LEADER,2009Q3,PERSONNEL COMPENSATION,"","KETCHEL, KIMBERLY",09/01/09,09/06/09,DEPUTY PRESS SECRETARY (OTHER COMPENSATION),"6,686.11",FISCAL YEAR 2009,"","","",DO
,OFFICE OF THE MINORITY LEADER,2009Q3,PERSONNEL COMPENSATION,"","KETCHEL, KIMBERLY",08/01/09,09/30/09,POLICY ADVISOR/COUNSEL,"22,333.34",FISCAL YEAR 2009,"","","",DO
,OFFICE OF THE MINORITY LEADER,2009Q3,PERSONNEL COMPENSATION,"","LAMPERT,JUSTIN",07/01/09,09/30/09,STAFF ASSISTANT,"12,750.01",FISCAL YEAR 2009,"","","","LAMPERT,JUSTIN"
,OFFICE OF THE MINORITY LEADER,2009Q3,PERSONNEL COMPENSATION,"","LAMPERT,JUSTIN",06/01/09,07/31/09,STAFF ASSISTANT (OVERTIME),"2,120.16",FISCAL YEAR 2009,"","","",DO
,OFFICE OF THE MINORITY LEADER,2009Q3,PERSONNEL COMPENSATION,"","LOZUPONE, AMY S",07/01/09,09/30/09,DEP. CHIEF OF STAFF FOR ADMIN,"36,499.99",FISCAL YEAR 2009,"","","","LOZUPONE, AMY S"
,OFFICE OF THE MINORITY LEADER,2009Q3,PERSONNEL COMPENSATION,"","PAULSON, JUDY K",07/01/09,09/30/09,FINANCIAL ADMINISTRATOR,"11,500.00",FISCAL YEAR 2009,"","","","PAULSON, JUDY K"
,OFFICE OF THE MINORITY LEADER,2009Q3,PERSONNEL COMPENSATION,"","PORTER, EMILY S",07/01/09,09/30/09,POLICY ADVISOR,"28,000.00",FISCAL YEAR 2009,"","","","PORTER, EMILY S"
,OFFICE OF THE MINORITY LEADER,2009Q3,PERSONNEL COMPENSATION,"","RICCI,MICHAEL",09/14/09,09/30/09,DEPUTY COMMUNICATIONS DIRECTOR,"5,666.67",FISCAL YEAR 2009,"","","","RICCI,MICHAEL"
,OFFICE OF THE MINORITY LEADER,2009Q3,PERSONNEL COMPENSATION,"","SAUNDERS,GRANT H",07/01/09,09/30/09,STAFF ASSISTANT,"12,100.00",FISCAL YEAR 2009,"","","","SAUNDERS,GRANT H"
,OFFICE OF THE MINORITY LEADER,2009Q3,PERSONNEL COMPENSATION,"","SAUNDERS,GRANT H",06/01/09,07/31/09,STAFF ASSISTANT (OVERTIME),"1,428.52",FISCAL YEAR 2009,"","","",DO
,OFFICE OF THE MINORITY LEADER,2009Q3,PERSONNEL COMPENSATION,"","STEWART, DAVID B",07/01/09,09/30/09,POLICY ADVISOR,"34,000.00",FISCAL YEAR 2009,"","","","STEWART, DAVID B"
,OFFICE OF THE MINORITY LEADER,2009Q3,PERSONNEL COMPENSATION,"","STEWART, JENNIFER M",07/01/09,09/30/09,POLICY ADVISOR,"28,000.00",FISCAL YEAR 2009,"","","","STEWART, JENNIFER M"
,OFFICE OF THE MINORITY LEADER,2009Q3,PERSONNEL COMPENSATION,"","STRUNK, JEFFREY A",07/01/09,09/30/09,FLOOR ASSISTANT,"15,625.00",FISCAL YEAR 2009,"","","","STRUNK, JEFFREY A"
,OFFICE OF THE MINORITY LEADER,2009Q3,PERSONNEL COMPENSATION,"","THORSEN, ANNE B",07/01/09,09/30/09,DEPUTY DIR LEG OPERATIONS,"29,575.00",FISCAL YEAR 2009,"","","","THORSEN, ANNE B"
,OFFICE OF THE MINORITY LEADER,2009Q3,PERSONNEL COMPENSATION,"","WOLF,ADAM J",07/01/09,09/30/09,FLOOR ASSISTANT,"14,800.00",FISCAL YEAR 2009,"","","","WOLF,ADAM J"
,OFFICE OF THE MINORITY LEADER,2009Q3,TRAVEL,"",07­06       P1 09NL0100258      KATHERINE CANNON HALEY,05/28/09,05/28/09,"TAXI, PARKING, TOLLS",19.00,FISCAL YEAR 2009,"","","",07­06       P1 09NL0100258      KATHERINE CANNON HALEY
,OFFICE OF THE MINORITY LEADER,2009Q3,TRAVEL,"",07­06       P1 09NL0100257      PAULA NOWAKOWSKI,05/25/09,05/25/09,"TAXI, PARKING, TOLLS",16.00,FISCAL YEAR 2009,"","","",07­06       P1 09NL0100257      PAULA NOWAKOWSKI
,OFFICE OF THE MINORITY LEADER,2009Q3,TRAVEL,"",07­17       P1 09NL0100288      NICHOLAS SCHAPER,06/28/09,06/30/09,COMMERCIAL TRANSPORTATION,198.00,FISCAL YEAR 2009,"","","",07­17       P1 09NL0100288      NICHOLAS SCHAPER
,OFFICE OF THE MINORITY LEADER,2009Q3,TRAVEL,"",07­17       P1 09NL0100289           DO,06/28/09,06/29/09,LODGING,500.86,FISCAL YEAR 2009,"","","",07­17       P1 09NL0100289           DO
,OFFICE OF THE MINORITY LEADER,2009Q3,TRAVEL,"",07­17       P1 09NL0100290           DO,06/29/09,06/29/09,MEALS,39.11,FISCAL YEAR 2009,"","","",07­17       P1 09NL0100290           DO
,OFFICE OF THE MINORITY LEADER,2009Q3,TRAVEL,"",07­17       P1 09NL0100291           DO,06/28/09,06/30/09,"TAXI, PARKING, TOLLS",22.00,FISCAL YEAR 2009,"","","",07­17       P1 09NL0100291           DO
,OFFICE OF THE MINORITY LEADER,2009Q3,TRAVEL,"",07­31       P1 09NL0100296      EMILY S. PORTER,05/05/09,06/02/09,"TAXI, PARKING, TOLLS",43.50,FISCAL YEAR 2009,"","","",07­31       P1 09NL0100296      EMILY S. PORTER
,OFFICE OF THE MINORITY LEADER,2009Q3,TRAVEL,"",07­31       P1 09NL0100299      JAY N CRANFORD,06/28/09,06/30/09,COMMERCIAL TRANSPORTATION,"1,226.21",FISCAL YEAR 2009,"","","",07­31       P1 09NL0100299      JAY N CRANFORD
,OFFICE OF THE MINORITY LEADER,2009Q3,TRAVEL,"",07­31       P1 09NL0100300           DO,06/28/09,06/30/09,COMMERCIAL TRANSPORTATION,30.00,FISCAL YEAR 2009,"","","",07­31       P1 09NL0100300           DO
,OFFICE OF THE MINORITY LEADER,2009Q3,TRAVEL,"",07­31       P1 09NL0100301           DO,06/28/09,06/30/09,MEALS,42.28,FISCAL YEAR 2009,"","","",07­31       P1 09NL0100301           DO
,OFFICE OF THE MINORITY LEADER,2009Q3,TRAVEL,"",07­31       P1 09NL0100302           DO,06/28/09,06/30/09,LODGING,399.50,FISCAL YEAR 2009,"","","",07­31       P1 09NL0100302           DO
,OFFICE OF THE MINORITY LEADER,2009Q3,TRAVEL,"",07­31       P1 09NL0100303           DO,06/28/09,06/30/09,"TAXI, PARKING, TOLLS",33.00,FISCAL YEAR 2009,"","","",07­31       P1 09NL0100303           DO
,OFFICE OF THE MINORITY LEADER,2009Q3,TRAVEL,"",09­03       P1 09NL0100328      WILLIAM TOYE,08/11/09,08/14/09,COMMERCIAL TRANSPORTATION,608.59,FISCAL YEAR 2009,"","","",09­03       P1 09NL0100328      WILLIAM TOYE
,OFFICE OF THE MINORITY LEADER,2009Q3,TRAVEL,"",09­03       P1 09NL0100329           DO,08/11/09,08/13/09,LODGING,186.76,FISCAL YEAR 2009,"","","",09­03       P1 09NL0100329           DO
,OFFICE OF THE MINORITY LEADER,2009Q3,TRAVEL,"",09­03       P1 09NL0100330           DO,08/12/09,08/12/09,MEALS,18.19,FISCAL YEAR 2009,"","","",09­03       P1 09NL0100330           DO
,OFFICE OF THE MINORITY LEADER,2009Q3,TRAVEL,"",09­03       P1 09NL0100331           DO,08/11/09,08/13/09,"TAXI, PARKING, TOLLS",55.00,FISCAL YEAR 2009,"","","",09­03       P1 09NL0100331           DO
,OFFICE OF THE MINORITY LEADER,2009Q3,"RENT, COMMUNICATION, UTILITIES","",07­15       P1    09NL0100280     CITIBANK GOV CARD SERVICE,06/13/09,06/13/09,"TELECOM SVC, EQUIP & TOLLS",28.61,FISCAL YEAR 2009,"","","",07­15       P1    09NL0100280     CITIBANK GOV CARD SERVICE
,OFFICE OF THE MINORITY LEADER,2009Q3,"RENT, COMMUNICATION, UTILITIES","",09­28       HV    09A90301197     FEDERAL EXPRESS CORP,10/10/08,10/10/08,POSTAGE/COURIER/BOX RENTAL,17.95,FISCAL YEAR 2009,"","","",09­28       HV    09A90301197     FEDERAL EXPRESS CORP
,OFFICE OF THE MINORITY LEADER,2009Q3,"RENT, COMMUNICATION, UTILITIES","",09­28       HV    09A90301197           DO,10/17/08,10/17/08,POSTAGE/COURIER/BOX RENTAL,7.53,FISCAL YEAR 2009,"","","",09­28       HV    09A90301197           DO
,OFFICE OF THE MINORITY LEADER,2009Q3,"RENT, COMMUNICATION, UTILITIES","",09­28       HV    09A90301198           DO,10/22/08,10/22/08,POSTAGE/COURIER/BOX RENTAL,16.00,FISCAL YEAR 2009,"","","",09­28       HV    09A90301198           DO
,OFFICE OF THE MINORITY LEADER,2009Q3,"RENT, COMMUNICATION, UTILITIES","",09­28       HV    09A90301198           DO,10/29/08,10/29/08,POSTAGE/COURIER/BOX RENTAL,17.34,FISCAL YEAR 2009,"","","",09­28       HV    09A90301198           DO
,OFFICE OF THE MINORITY LEADER,2009Q3,"RENT, COMMUNICATION, UTILITIES","",09­28       HV    09A90301198           DO,11/07/08,11/07/08,POSTAGE/COURIER/BOX RENTAL,9.25,FISCAL YEAR 2009,"","","",09­28       HV    09A90301198           DO
,OFFICE OF THE MINORITY LEADER,2009Q3,"RENT, COMMUNICATION, UTILITIES","",09­28       HV    09A90301199           DO,11/12/08,11/12/08,POSTAGE/COURIER/BOX RENTAL,18.81,FISCAL YEAR 2009,"","","",09­28       HV    09A90301199           DO
,OFFICE OF THE MINORITY LEADER,2009Q3,"RENT, COMMUNICATION, UTILITIES","",09­28       HV    09A90301199           DO,11/21/08,11/21/08,POSTAGE/COURIER/BOX RENTAL,6.97,FISCAL YEAR 2009,"","","",09­28       HV    09A90301199           DO
,OFFICE OF THE MINORITY LEADER,2009Q3,"RENT, COMMUNICATION, UTILITIES","",09­28       HV    09A90301199           DO,11/26/08,11/26/08,POSTAGE/COURIER/BOX RENTAL,8.00,FISCAL YEAR 2009,"","","",09­28       HV    09A90301199           DO
,OFFICE OF THE MINORITY LEADER,2009Q3,"RENT, COMMUNICATION, UTILITIES","",09­28       HV    09A90301205           DO,01/21/09,01/21/09,POSTAGE/COURIER/BOX RENTAL,107.70,FISCAL YEAR 2009,"","","",09­28       HV    09A90301205           DO
,OFFICE OF THE MINORITY LEADER,2009Q3,"RENT, COMMUNICATION, UTILITIES","",09­28       HV    09A90301205           DO,01/28/09,01/28/09,POSTAGE/COURIER/BOX RENTAL,14.87,FISCAL YEAR 2009,"","","",09­28       HV    09A90301205           DO
,OFFICE OF THE MINORITY LEADER,2009Q3,"RENT, COMMUNICATION, UTILITIES","",09­28       HV    09A90301205           DO,02/06/09,02/06/09,POSTAGE/COURIER/BOX RENTAL,8.10,FISCAL YEAR 2009,"","","",09­28       HV    09A90301205           DO
,OFFICE OF THE MINORITY LEADER,2009Q3,"RENT, COMMUNICATION, UTILITIES","",09­28       HV    09A90301207           DO,02/20/09,02/20/09,POSTAGE/COURIER/BOX RENTAL,11.29,FISCAL YEAR 2009,"","","",09­28       HV    09A90301207           DO
,OFFICE OF THE MINORITY LEADER,2009Q3,"RENT, COMMUNICATION, UTILITIES","",09­28       HV    09A90301207           DO,03/12/09,03/12/09,POSTAGE/COURIER/BOX RENTAL,12.69,FISCAL YEAR 2009,"","","",09­28       HV    09A90301207           DO
,OFFICE OF THE MINORITY LEADER,2009Q3,"RENT, COMMUNICATION, UTILITIES","",09­28       HV    09A90301208           DO,03/20/09,03/20/09,POSTAGE/COURIER/BOX RENTAL,55.15,FISCAL YEAR 2009,"","","",09­28       HV    09A90301208           DO
,OFFICE OF THE MINORITY LEADER,2009Q3,"RENT, COMMUNICATION, UTILITIES","",09­28       HV    09A90301208           DO,04/10/09,04/10/09,POSTAGE/COURIER/BOX RENTAL,6.87,FISCAL YEAR 2009,"","","",09­28       HV    09A90301208           DO
,OFFICE OF THE MINORITY LEADER,2009Q3,"RENT, COMMUNICATION, UTILITIES","",09­28   HV    09A90301212                         DO,05/20/09,05/20/09,POSTAGE/COURIER/BOX RENTAL,11.67,FISCAL YEAR 2009,"","","",09­28   HV    09A90301212                         DO
,OFFICE OF THE MINORITY LEADER,2009Q3,"RENT, COMMUNICATION, UTILITIES","",09­28   HV    09A90301212                         DO,05/29/09,05/29/09,POSTAGE/COURIER/BOX RENTAL,20.31,FISCAL YEAR 2009,"","","",09­28   HV    09A90301212                         DO
,OFFICE OF THE MINORITY LEADER,2009Q3,"RENT, COMMUNICATION, UTILITIES","",09­28   HV    09A90301212                         DO,06/08/09,06/08/09,POSTAGE/COURIER/BOX RENTAL,5.14,FISCAL YEAR 2009,"","","",09­28   HV    09A90301212                         DO
,OFFICE OF THE MINORITY LEADER,2009Q3,"RENT, COMMUNICATION, UTILITIES","",09­28   HV    09A90301215                         DO,07/28/09,07/28/09,POSTAGE/COURIER/BOX RENTAL,6.74,FISCAL YEAR 2009,"","","",09­28   HV    09A90301215                         DO
,OFFICE OF THE MINORITY LEADER,2009Q3,"RENT, COMMUNICATION, UTILITIES","",09­28   HV    09A90301215                         DO,07/31/09,07/31/09,POSTAGE/COURIER/BOX RENTAL,29.90,FISCAL YEAR 2009,"","","",09­28   HV    09A90301215                         DO
,OFFICE OF THE MINORITY LEADER,2009Q3,"RENT, COMMUNICATION, UTILITIES","",09­28   HV    09A90301215                         DO,08/17/09,08/17/09,POSTAGE/COURIER/BOX RENTAL,32.15,FISCAL YEAR 2009,"","","",09­28   HV    09A90301215                         DO
,OFFICE OF THE MINORITY LEADER,2009Q3,"RENT, COMMUNICATION, UTILITIES","",09­28   HV    09A90301218                         DO,08/21/09,08/21/09,POSTAGE/COURIER/BOX RENTAL,6.65,FISCAL YEAR 2009,"","","",09­28   HV    09A90301218                         DO
,OFFICE OF THE MINORITY LEADER,2009Q3,"RENT, COMMUNICATION, UTILITIES","",09­28   HV    09A90301218                         DO,08/26/09,08/26/09,POSTAGE/COURIER/BOX RENTAL,10.44,FISCAL YEAR 2009,"","","",09­28   HV    09A90301218                         DO
,OFFICE OF THE MINORITY LEADER,2009Q3,"RENT, COMMUNICATION, UTILITIES","",09­28   HV    09A90301218                         DO,09/02/09,09/02/09,POSTAGE/COURIER/BOX RENTAL,21.69,FISCAL YEAR 2009,"","","",09­28   HV    09A90301218                         DO
,OFFICE OF THE MINORITY LEADER,2009Q3,"RENT, COMMUNICATION, UTILITIES","",09­29   HV    09A90301240                         DO,12/18/08,12/18/08,POSTAGE/COURIER/BOX RENTAL,36.66,FISCAL YEAR 2009,"","","",09­29   HV    09A90301240                         DO
,OFFICE OF THE MINORITY LEADER,2009Q3,"RENT, COMMUNICATION, UTILITIES","",09­29   HV    09A90301240                         DO,12/22/08,12/22/08,POSTAGE/COURIER/BOX RENTAL,8.23,FISCAL YEAR 2009,"","","",09­29   HV    09A90301240                         DO
,OFFICE OF THE MINORITY LEADER,2009Q3,"RENT, COMMUNICATION, UTILITIES","",09­29   HV    09A90301240                         DO,12/30/08,12/30/08,POSTAGE/COURIER/BOX RENTAL,9.48,FISCAL YEAR 2009,"","","",09­29   HV    09A90301240                         DO
,OFFICE OF THE MINORITY LEADER,2009Q3,"RENT, COMMUNICATION, UTILITIES","",09­29   HV    09A90301241                         DO,01/06/09,01/06/09,POSTAGE/COURIER/BOX RENTAL,34.91,FISCAL YEAR 2009,"","","",09­29   HV    09A90301241                         DO
,OFFICE OF THE MINORITY LEADER,2009Q3,"RENT, COMMUNICATION, UTILITIES","",09­29   HV    09A90301241                         DO,01/14/09,01/14/09,POSTAGE/COURIER/BOX RENTAL,5.58,FISCAL YEAR 2009,"","","",09­29   HV    09A90301241                         DO
,OFFICE OF THE MINORITY LEADER,2009Q3,"RENT, COMMUNICATION, UTILITIES","",09­29   HV    09A90301242                         DO,04/17/09,04/17/09,POSTAGE/COURIER/BOX RENTAL,10.58,FISCAL YEAR 2009,"","","",09­29   HV    09A90301242                         DO
,OFFICE OF THE MINORITY LEADER,2009Q3,"RENT, COMMUNICATION, UTILITIES","",09­29   HV    09A90301242                         DO,04/22/09,04/22/09,POSTAGE/COURIER/BOX RENTAL,13.68,FISCAL YEAR 2009,"","","",09­29   HV    09A90301242                         DO
,OFFICE OF THE MINORITY LEADER,2009Q3,"RENT, COMMUNICATION, UTILITIES","",09­29   HV    09A90301243                         DO,04/29/09,04/29/09,POSTAGE/COURIER/BOX RENTAL,7.99,FISCAL YEAR 2009,"","","",09­29   HV    09A90301243                         DO
,OFFICE OF THE MINORITY LEADER,2009Q3,"RENT, COMMUNICATION, UTILITIES","",09­29   HV    09A90301243                         DO,05/11/09,05/11/09,POSTAGE/COURIER/BOX RENTAL,12.48,FISCAL YEAR 2009,"","","",09­29   HV    09A90301243                         DO
,OFFICE OF THE MINORITY LEADER,2009Q3,"RENT, COMMUNICATION, UTILITIES","",09­29   HV    09A90301243                         DO,05/13/09,05/13/09,POSTAGE/COURIER/BOX RENTAL,17.84,FISCAL YEAR 2009,"","","",09­29   HV    09A90301243                         DO
,OFFICE OF THE MINORITY LEADER,2009Q3,"RENT, COMMUNICATION, UTILITIES","",09­29   HV    09A90301245                         DO,06/22/09,06/22/09,POSTAGE/COURIER/BOX RENTAL,13.23,FISCAL YEAR 2009,"","","",09­29   HV    09A90301245                         DO
,OFFICE OF THE MINORITY LEADER,2009Q3,"RENT, COMMUNICATION, UTILITIES","",09­29   HV    09A90301245                         DO,06/24/09,06/24/09,POSTAGE/COURIER/BOX RENTAL,10.71,FISCAL YEAR 2009,"","","",09­29   HV    09A90301245                         DO
,OFFICE OF THE MINORITY LEADER,2009Q3,"RENT, COMMUNICATION, UTILITIES","",09­29   HV    09A90301245                         DO,07/01/09,07/01/09,POSTAGE/COURIER/BOX RENTAL,6.30,FISCAL YEAR 2009,"","","",09­29   HV    09A90301245                         DO
,OFFICE OF THE MINORITY LEADER,2009Q3,"RENT, COMMUNICATION, UTILITIES","",09­29   HV    09A90301246                         DO,07/08/09,07/08/09,POSTAGE/COURIER/BOX RENTAL,12.59,FISCAL YEAR 2009,"","","",09­29   HV    09A90301246                         DO
,OFFICE OF THE MINORITY LEADER,2009Q3,"RENT, COMMUNICATION, UTILITIES","",09­29   HV    09A90301246                         DO,07/08/09,07/08/09,POSTAGE/COURIER/BOX RENTAL,12.00,FISCAL YEAR 2009,"","","",09­29   HV    09A90301246                         DO
,OFFICE OF THE MINORITY LEADER,2009Q3,PRINTING AND REPRODUCTION,"",07­28   S3 09209000152,07/01/09,07/31/09,PHOTOGRAPHIC (TRANSFER),102.40,FISCAL YEAR 2009,"","","",07­28   S3 09209000152
,OFFICE OF THE MINORITY LEADER,2009Q3,PRINTING AND REPRODUCTION,"",08­25   S3 09237000151,08/01/09,08/31/09,PHOTOGRAPHIC (TRANSFER),26.30,FISCAL YEAR 2009,"","","",08­25   S3 09237000151
,OFFICE OF THE MINORITY LEADER,2009Q3,OTHER SERVICES,"",07­15   P1 09NL0100283                    CITIBANK GOV CARD SERVICE,06/29/09,06/30/09,TRAINING EXPENSES,395.00,FISCAL YEAR 2009,"","","",07­15   P1 09NL0100283                    CITIBANK GOV CARD SERVICE
,OFFICE OF THE MINORITY LEADER,2009Q3,SUPPLIES AND MATERIALS,"",07­06   P1    09NL0100259      COCA-COLA ENTERPRISES,06/23/09,06/23/09,FOOD & BEVERAGE,187.55,FISCAL YEAR 2009,"","","",07­06   P1    09NL0100259      COCA-COLA ENTERPRISES
,OFFICE OF THE MINORITY LEADER,2009Q3,SUPPLIES AND MATERIALS,"",07­10   P1    09NL0100261           DO,06/30/09,06/30/09,FOOD & BEVERAGE,130.40,FISCAL YEAR 2009,"","","",07­10   P1    09NL0100261           DO
,OFFICE OF THE MINORITY LEADER,2009Q3,SUPPLIES AND MATERIALS,"",07­14   P1    09NL0100262      JOE RAGAN'S COFFEE LTD,05/27/09,05/27/09,BOTTLED WATER,58.50,FISCAL YEAR 2009,"","","",07­14   P1    09NL0100262      JOE RAGAN'S COFFEE LTD
,OFFICE OF THE MINORITY LEADER,2009Q3,SUPPLIES AND MATERIALS,"",07­14   P1    09NL0100263           DO,06/03/09,06/03/09,BOTTLED WATER,43.80,FISCAL YEAR 2009,"","","",07­14   P1    09NL0100263           DO
,OFFICE OF THE MINORITY LEADER,2009Q3,SUPPLIES AND MATERIALS,"",07­14   P1    09NL0100264           DO,06/08/09,06/08/09,BOTTLED WATER,11.90,FISCAL YEAR 2009,"","","",07­14   P1    09NL0100264           DO
,OFFICE OF THE MINORITY LEADER,2009Q3,SUPPLIES AND MATERIALS,"",07­14   P1    09NL0100265           DO,06/12/09,06/12/09,BOTTLED WATER,17.85,FISCAL YEAR 2009,"","","",07­14   P1    09NL0100265           DO
,OFFICE OF THE MINORITY LEADER,2009Q3,SUPPLIES AND MATERIALS,"",07­14   P1    09NL0100266           DO,06/25/09,06/25/09,BOTTLED WATER,12.00,FISCAL YEAR 2009,"","","",07­14   P1    09NL0100266           DO
,OFFICE OF THE MINORITY LEADER,2009Q3,SUPPLIES AND MATERIALS,"",07­14   P1    09NL0100267           DO,06/23/09,06/23/09,BOTTLED WATER,23.80,FISCAL YEAR 2009,"","","",07­14   P1    09NL0100267           DO
,OFFICE OF THE MINORITY LEADER,2009Q3,SUPPLIES AND MATERIALS,"",07­14   P1    09NL0100268           DO,06/29/09,06/29/09,BOTTLED WATER,29.80,FISCAL YEAR 2009,"","","",07­14   P1    09NL0100268           DO
,OFFICE OF THE MINORITY LEADER,2009Q3,SUPPLIES AND MATERIALS,"",07­14   P1    09NL0100269           DO,05/29/09,05/29/09,FOOD & BEVERAGE,109.80,FISCAL YEAR 2009,"","","",07­14   P1    09NL0100269           DO
,OFFICE OF THE MINORITY LEADER,2009Q3,SUPPLIES AND MATERIALS,"",07­14   P1    09NL0100270           DO,06/03/09,06/03/09,FOOD & BEVERAGE,615.80,FISCAL YEAR 2009,"","","",07­14   P1    09NL0100270           DO
,OFFICE OF THE MINORITY LEADER,2009Q3,SUPPLIES AND MATERIALS,"",07­14   P1    09NL0100271           DO,06/03/09,06/03/09,FOOD & BEVERAGE,36.33,FISCAL YEAR 2009,"","","",07­14   P1    09NL0100271           DO
,OFFICE OF THE MINORITY LEADER,2009Q3,SUPPLIES AND MATERIALS,"",07­14   P1    09NL0100272           DO,06/08/09,06/08/09,FOOD & BEVERAGE,291.90,FISCAL YEAR 2009,"","","",07­14   P1    09NL0100272           DO
,OFFICE OF THE MINORITY LEADER,2009Q3,SUPPLIES AND MATERIALS,"",07­14   P1    09NL0100273           DO,06/12/09,06/12/09,FOOD & BEVERAGE,500.44,FISCAL YEAR 2009,"","","",07­14   P1    09NL0100273           DO
,OFFICE OF THE MINORITY LEADER,2009Q3,SUPPLIES AND MATERIALS,"",07­14   P1    09NL0100274           DO,06/23/09,06/23/09,FOOD & BEVERAGE,476.75,FISCAL YEAR 2009,"","","",07­14   P1    09NL0100274           DO
,OFFICE OF THE MINORITY LEADER,2009Q3,SUPPLIES AND MATERIALS,"",07­14   P1    09NL0100275           DO,06/23/09,06/23/09,FOOD & BEVERAGE,15.57,FISCAL YEAR 2009,"","","",07­14   P1    09NL0100275           DO
,OFFICE OF THE MINORITY LEADER,2009Q3,SUPPLIES AND MATERIALS,"",07­14 P1 09NL0100276               DO,06/23/09,06/23/09,FOOD & BEVERAGE,20.76,FISCAL YEAR 2009,"","","",07­14 P1 09NL0100276               DO
,OFFICE OF THE MINORITY LEADER,2009Q3,SUPPLIES AND MATERIALS,"",07­14 P1 09NL0100277               DO,06/24/09,06/24/09,OFFICE SUPPLIES OUTSIDE,32.12,FISCAL YEAR 2009,"","","",07­14 P1 09NL0100277               DO
,OFFICE OF THE MINORITY LEADER,2009Q3,SUPPLIES AND MATERIALS,"",07­14 P1 09NL0100278               DO,06/29/09,06/29/09,FOOD & BEVERAGE,43.76,FISCAL YEAR 2009,"","","",07­14 P1 09NL0100278               DO
,OFFICE OF THE MINORITY LEADER,2009Q3,SUPPLIES AND MATERIALS,"",07­14 P1 09NL0100279               DO,06/30/09,06/30/09,BOTTLED WATER,238.54,FISCAL YEAR 2009,"","","",07­14 P1 09NL0100279               DO
,OFFICE OF THE MINORITY LEADER,2009Q3,SUPPLIES AND MATERIALS,"",07­15 P1 09NL0100285          CAPITOLHOST,06/15/09,06/15/09,FOOD & BEVERAGE,62.99,FISCAL YEAR 2009,"","","",07­15 P1 09NL0100285          CAPITOLHOST
,OFFICE OF THE MINORITY LEADER,2009Q3,SUPPLIES AND MATERIALS,"",07­15 P1 09NL0100281          CITIBANK GOV CARD SERVICE,06/19/09,06/22/09,OFFICE SUPPLIES OUTSIDE,88.75,FISCAL YEAR 2009,"","","",07­15 P1 09NL0100281          CITIBANK GOV CARD SERVICE
,OFFICE OF THE MINORITY LEADER,2009Q3,SUPPLIES AND MATERIALS,"",07­15 P1 09NL0100282               DO,05/29/09,06/22/09,FOOD & BEVERAGE,"10,027.38",FISCAL YEAR 2009,"","","",07­15 P1 09NL0100282               DO
,OFFICE OF THE MINORITY LEADER,2009Q3,SUPPLIES AND MATERIALS,"",07­15 P1 09NL0100284               DO,06/25/09,06/25/09,PUBLICATION REF MATERIAL,71.49,FISCAL YEAR 2009,"","","",07­15 P1 09NL0100284               DO
,OFFICE OF THE MINORITY LEADER,2009Q3,SUPPLIES AND MATERIALS,"",07­21 P1 09NL0100293          CAPITOLHOST,06/22/09,06/22/09,FOOD & BEVERAGE,62.99,FISCAL YEAR 2009,"","","",07­21 P1 09NL0100293          CAPITOLHOST
,OFFICE OF THE MINORITY LEADER,2009Q3,SUPPLIES AND MATERIALS,"",07­31 P1 09NL0100297               DO,07/09/09,07/09/09,FOOD & BEVERAGE,45.30,FISCAL YEAR 2009,"","","",07­31 P1 09NL0100297               DO
,OFFICE OF THE MINORITY LEADER,2009Q3,SUPPLIES AND MATERIALS,"",07­31 P1 09NL0100298          COCA-COLA ENTERPRISES,07/14/09,07/14/09,FOOD & BEVERAGE,278.60,FISCAL YEAR 2009,"","","",07­31 P1 09NL0100298          COCA-COLA ENTERPRISES
,OFFICE OF THE MINORITY LEADER,2009Q3,SUPPLIES AND MATERIALS,"",08­04 P1 09NL0100306               DO,07/23/09,07/23/09,FOOD & BEVERAGE,209.30,FISCAL YEAR 2009,"","","",08­04 P1 09NL0100306               DO
,OFFICE OF THE MINORITY LEADER,2009Q3,SUPPLIES AND MATERIALS,"",08­04 P1 09NL0100305          CONGRESSIONAL QUARTERLY INC,09/30/09,09/30/10,PUBLICATION REF MATERIAL,"48,085.00",FISCAL YEAR 2009,"","","",08­04 P1 09NL0100305          CONGRESSIONAL QUARTERLY INC
,OFFICE OF THE MINORITY LEADER,2009Q3,SUPPLIES AND MATERIALS,"",08­20 P1 09NL0100308          CITIBANK GOV CARD SERVICE,06/26/09,07/26/09,FOOD & BEVERAGE,"8,277.48",FISCAL YEAR 2009,"","","",08­20 P1 09NL0100308          CITIBANK GOV CARD SERVICE
,OFFICE OF THE MINORITY LEADER,2009Q3,SUPPLIES AND MATERIALS,"",08­20 P1 09NL0100309               DO,07/07/09,07/07/10,PUBLICATION REF MATERIAL,165.00,FISCAL YEAR 2009,"","","",08­20 P1 09NL0100309               DO
,OFFICE OF THE MINORITY LEADER,2009Q3,SUPPLIES AND MATERIALS,"",08­20 P1 09NL0100310          COCA-COLA ENTERPRISES,07/28/09,07/28/09,FOOD & BEVERAGE,124.20,FISCAL YEAR 2009,"","","",08­20 P1 09NL0100310          COCA-COLA ENTERPRISES
,OFFICE OF THE MINORITY LEADER,2009Q3,SUPPLIES AND MATERIALS,"",08­20 P1 09NL0100311          KRISTEN FRAHLEY CHAPLIN,07/30/09,07/30/09,PUBLICATION REF MATERIAL,27.30,FISCAL YEAR 2009,"","","",08­20 P1 09NL0100311          KRISTEN FRAHLEY CHAPLIN
,OFFICE OF THE MINORITY LEADER,2009Q3,SUPPLIES AND MATERIALS,"",08­25 P1 09NL0100312          CAPITOLHOST,07/13/09,07/13/09,FOOD & BEVERAGE,62.99,FISCAL YEAR 2009,"","","",08­25 P1 09NL0100312          CAPITOLHOST
,OFFICE OF THE MINORITY LEADER,2009Q3,SUPPLIES AND MATERIALS,"",08­25 P1 09NL0100313               DO,07/23/09,07/23/09,FOOD & BEVERAGE,225.00,FISCAL YEAR 2009,"","","",08­25 P1 09NL0100313               DO
,OFFICE OF THE MINORITY LEADER,2009Q3,SUPPLIES AND MATERIALS,"",08­25 P1 09NL0100314               DO,07/27/09,07/27/09,FOOD & BEVERAGE,62.99,FISCAL YEAR 2009,"","","",08­25 P1 09NL0100314               DO
,OFFICE OF THE MINORITY LEADER,2009Q3,SUPPLIES AND MATERIALS,"",08­25 P1 09NL0100316               DO,07/20/09,07/20/09,FOOD & BEVERAGE,63.00,FISCAL YEAR 2009,"","","",08­25 P1 09NL0100316               DO
,OFFICE OF THE MINORITY LEADER,2009Q3,SUPPLIES AND MATERIALS,"",08­25 P1 09NL0100317          JOE RAGAN'S COFFEE LTD,07/13/09,07/13/09,BOTTLED WATER,429.89,FISCAL YEAR 2009,"","","",08­25 P1 09NL0100317          JOE RAGAN'S COFFEE LTD
,OFFICE OF THE MINORITY LEADER,2009Q3,SUPPLIES AND MATERIALS,"",08­25 P1 09NL0100318               DO,07/13/09,07/13/09,BOTTLED WATER,29.80,FISCAL YEAR 2009,"","","",08­25 P1 09NL0100318               DO
,OFFICE OF THE MINORITY LEADER,2009Q3,SUPPLIES AND MATERIALS,"",08­25 P1 09NL0100319               DO,07/22/09,07/22/09,BOTTLED WATER,400.14,FISCAL YEAR 2009,"","","",08­25 P1 09NL0100319               DO
,OFFICE OF THE MINORITY LEADER,2009Q3,SUPPLIES AND MATERIALS,"",08­25 P1 09NL0100320               DO,07/20/09,07/20/09,BOTTLED WATER,46.80,FISCAL YEAR 2009,"","","",08­25 P1 09NL0100320               DO
,OFFICE OF THE MINORITY LEADER,2009Q3,SUPPLIES AND MATERIALS,"",08­25 P1 09NL0100321               DO,07/23/09,07/23/09,BOTTLED WATER,12.00,FISCAL YEAR 2009,"","","",08­25 P1 09NL0100321               DO
,OFFICE OF THE MINORITY LEADER,2009Q3,SUPPLIES AND MATERIALS,"",08­25 P1 09NL0100322               DO,07/27/09,07/27/09,BOTTLED WATER,23.85,FISCAL YEAR 2009,"","","",08­25 P1 09NL0100322               DO
,OFFICE OF THE MINORITY LEADER,2009Q3,SUPPLIES AND MATERIALS,"",08­25 P1 09NL0100323               DO,07/27/09,07/27/09,BOTTLED WATER,333.86,FISCAL YEAR 2009,"","","",08­25 P1 09NL0100323               DO
,OFFICE OF THE MINORITY LEADER,2009Q3,SUPPLIES AND MATERIALS,"",08­25 P1 09NL0100324               DO,07/13/09,07/13/09,FOOD & BEVERAGE,25.95,FISCAL YEAR 2009,"","","",08­25 P1 09NL0100324               DO
,OFFICE OF THE MINORITY LEADER,2009Q3,SUPPLIES AND MATERIALS,"",08­25 P1 09NL0100325               DO,07/20/09,07/20/09,FOOD & BEVERAGE,20.76,FISCAL YEAR 2009,"","","",08­25 P1 09NL0100325               DO
,OFFICE OF THE MINORITY LEADER,2009Q3,SUPPLIES AND MATERIALS,"",08­25 P1 09NL0100326               DO,07/27/09,07/27/09,FOOD & BEVERAGE,31.24,FISCAL YEAR 2009,"","","",08­25 P1 09NL0100326               DO
,OFFICE OF THE MINORITY LEADER,2009Q3,SUPPLIES AND MATERIALS,"",08­31 HV 09A90300779               DO,07/14/09,07/14/09,FOOD & BEVERAGE,7.80,FISCAL YEAR 2009,"","","",08­31 HV 09A90300779               DO
,OFFICE OF THE MINORITY LEADER,2009Q3,SUPPLIES AND MATERIALS,"",08­31 HV 09A90300780               DO,06/24/09,06/24/09,FOOD & BEVERAGE,32.12,FISCAL YEAR 2009,"","","",08­31 HV 09A90300780               DO
,OFFICE OF THE MINORITY LEADER,2009Q3,SUPPLIES AND MATERIALS,"",09­08 P1 09NL0100332          COCA-COLA ENTERPRISES,08/25/09,08/25/09,FOOD & BEVERAGE,271.20,FISCAL YEAR 2009,"","","",09­08 P1 09NL0100332          COCA-COLA ENTERPRISES
,OFFICE OF THE MINORITY LEADER,2009Q3,SUPPLIES AND MATERIALS,"",09­10 P1 09NL0100333          JOE RAGAN'S COFFEE LTD,08/20/09,08/20/09,BOTTLED WATER,23.80,FISCAL YEAR 2009,"","","",09­10 P1 09NL0100333          JOE RAGAN'S COFFEE LTD
,OFFICE OF THE MINORITY LEADER,2009Q3,SUPPLIES AND MATERIALS,"",09­10 P1 09NL0100334               DO,08/26/09,08/26/09,BOTTLED WATER,12.00,FISCAL YEAR 2009,"","","",09­10 P1 09NL0100334               DO
,OFFICE OF THE MINORITY LEADER,2009Q3,SUPPLIES AND MATERIALS,"",09­10 P1 09NL0100335               DO,08/20/09,08/20/09,FOOD & BEVERAGE,416.24,FISCAL YEAR 2009,"","","",09­10 P1 09NL0100335               DO
,OFFICE OF THE MINORITY LEADER,2009Q3,SUPPLIES AND MATERIALS,"",09­17 P1 09NL0100336          CITIBANK GOV CARD SERVICE,07/24/09,07/31/09,FOOD & BEVERAGE,"1,452.07",FISCAL YEAR 2009,"","","",09­17 P1 09NL0100336          CITIBANK GOV CARD SERVICE
,OFFICE OF THE MINORITY LEADER,2009Q3,SUPPLIES AND MATERIALS,"",09­25 P1 09NL0100346          BULLETIN NEWS,01/30/10,01/30/11,PUBLICATION REF MATERIAL,"4,930.00",FISCAL YEAR 2009,"","","",09­25 P1 09NL0100346          BULLETIN NEWS
,OFFICE OF THE MINORITY LEADER,2009Q3,SUPPLIES AND MATERIALS,"",09­25 P1 09NL0100345          COCA-COLA ENTERPRISES,09/15/09,09/15/09,FOOD & BEVERAGE,334.50,FISCAL YEAR 2009,"","","",09­25 P1 09NL0100345          COCA-COLA ENTERPRISES
,OFFICE OF THE MINORITY LEADER,2009Q3,SUPPLIES AND MATERIALS,"",09­25 P1 09NL0100347          E & E PUBLISHING LLC,01/14/10,01/14/11,PUBLICATION REF MATERIAL,"3,200.00",FISCAL YEAR 2009,"","","",09­25 P1 09NL0100347          E & E PUBLISHING LLC
,OFFICE OF THE MINORITY LEADER,2009Q3,SUPPLIES AND MATERIALS,"",09­25       P1    09NL0100349               JUDY KAREN PAULSON,09/11/09,09/11/09,OFFICE SUPPLIES OUTSIDE,664.15,FISCAL YEAR 2009,"","","",09­25       P1    09NL0100349               JUDY KAREN PAULSON
,OFFICE OF THE MINORITY LEADER,2009Q3,SUPPLIES AND MATERIALS,"",09­29       P1    09NL0100351               CAPITOLHOST,09/08/09,09/08/09,FOOD & BEVERAGE,62.99,FISCAL YEAR 2009,"","","",09­29       P1    09NL0100351               CAPITOLHOST
,OFFICE OF THE MINORITY LEADER,2009Q3,SUPPLIES AND MATERIALS,"","09­29       P1    09NL0100350               NATIONAL JOURNAL GROUP, INC",09/21/09,09/20/10,PUBLICATION REF MATERIAL,"2,097.00",FISCAL YEAR 2009,"","","","09­29       P1    09NL0100350               NATIONAL JOURNAL GROUP, INC"
,OFFICE OF THE MINORITY LEADER,2009Q3,SUPPLIES AND MATERIALS,"",09­30       P1    09NL0100352               CAPITOLHOST,09/14/09,09/14/09,FOOD & BEVERAGE,62.99,FISCAL YEAR 2009,"","","",09­30       P1    09NL0100352               CAPITOLHOST
,OFFICE OF THE MINORITY LEADER,2009Q3,PERSONNEL BENEFITS,"",07­20       P9 NL010900007        HON. JOHN A. BOEHNER,07/01/09,07/31/09,OFFICIAL EXPENSES FOR LEADER,833.33,FISCAL YEAR 2009,"","","",07­20       P9 NL010900007        HON. JOHN A. BOEHNER
,OFFICE OF THE MINORITY LEADER,2009Q3,PERSONNEL BENEFITS,"",08­20       P9 NL010900008             DO,08/01/09,08/31/09,OFFICIAL EXPENSES FOR LEADER,833.33,FISCAL YEAR 2009,"","","",08­20       P9 NL010900008             DO
,OFFICE OF THE MINORITY LEADER,2009Q3,PERSONNEL BENEFITS,"",09­21       P9 NL010900009        HON. JOHN A BOEHNER,09/01/09,09/30/09,OFFICIAL EXPENSES FOR LEADER,833.33,FISCAL YEAR 2009,"","","",09­21       P9 NL010900009        HON. JOHN A BOEHNER
,OFFICE OF THE MINORITY LEADER,2009Q3,"RENT, COMMUNICATION, UTILITIES","",09­26 HV 09A90301181          FEDERAL EXPRESS CORP,10/16/07,10/16/07,"POSTAGE, COURIER ETC",8.31,FISCAL YEAR 2008,"","","",09­26 HV 09A90301181          FEDERAL EXPRESS CORP
,OFFICE OF THE MINORITY LEADER,2009Q3,"RENT, COMMUNICATION, UTILITIES","",09­26 HV 09A90301182               DO,11/14/07,11/14/07,"POSTAGE, COURIER ETC",35.99,FISCAL YEAR 2008,"","","",09­26 HV 09A90301182               DO
,OFFICE OF THE MINORITY LEADER,2009Q3,"RENT, COMMUNICATION, UTILITIES","",09­26 HV 09A90301182               DO,11/29/07,11/29/07,"POSTAGE, COURIER ETC",17.01,FISCAL YEAR 2008,"","","",09­26 HV 09A90301182               DO
,OFFICE OF THE MINORITY LEADER,2009Q3,"RENT, COMMUNICATION, UTILITIES","",09­26 HV 09A90301182               DO,12/17/07,12/17/07,"POSTAGE, COURIER ETC",7.54,FISCAL YEAR 2008,"","","",09­26 HV 09A90301182               DO
,OFFICE OF THE MINORITY LEADER,2009Q3,"RENT, COMMUNICATION, UTILITIES","",09­26 HV 09A90301184               DO,01/18/08,01/18/08,"POSTAGE, COURIER ETC",12.95,FISCAL YEAR 2008,"","","",09­26 HV 09A90301184               DO
,OFFICE OF THE MINORITY LEADER,2009Q3,"RENT, COMMUNICATION, UTILITIES","",09­26 HV 09A90301184               DO,02/05/08,02/05/08,"POSTAGE, COURIER ETC",6.97,FISCAL YEAR 2008,"","","",09­26 HV 09A90301184               DO
,OFFICE OF THE MINORITY LEADER,2009Q3,"RENT, COMMUNICATION, UTILITIES","",09­26 HV 09A90301184               DO,02/08/08,02/08/08,"POSTAGE, COURIER ETC",11.70,FISCAL YEAR 2008,"","","",09­26 HV 09A90301184               DO
,OFFICE OF THE MINORITY LEADER,2009Q3,"RENT, COMMUNICATION, UTILITIES","",09­26 HV 09A90301184               DO,02/19/08,02/19/08,"POSTAGE, COURIER ETC",13.29,FISCAL YEAR 2008,"","","",09­26 HV 09A90301184               DO
,OFFICE OF THE MINORITY LEADER,2009Q3,"RENT, COMMUNICATION, UTILITIES","",09­26 HV 09A90301192               DO,04/03/08,04/03/08,"POSTAGE, COURIER ETC",6.97,FISCAL YEAR 2008,"","","",09­26 HV 09A90301192               DO
,OFFICE OF THE MINORITY LEADER,2009Q3,"RENT, COMMUNICATION, UTILITIES","",09­26 HV 09A90301192               DO,04/11/08,04/11/08,"POSTAGE, COURIER ETC",15.45,FISCAL YEAR 2008,"","","",09­26 HV 09A90301192               DO
,OFFICE OF THE MINORITY LEADER,2009Q3,"RENT, COMMUNICATION, UTILITIES","",09­26 HV 09A90301223               DO,12/19/07,12/19/07,"POSTAGE, COURIER ETC",13.94,FISCAL YEAR 2008,"","","",09­26 HV 09A90301223               DO
,OFFICE OF THE MINORITY LEADER,2009Q3,"RENT, COMMUNICATION, UTILITIES","",09­26 HV 09A90301223               DO,01/02/08,01/02/08,"POSTAGE, COURIER ETC",8.97,FISCAL YEAR 2008,"","","",09­26 HV 09A90301223               DO
,OFFICE OF THE MINORITY LEADER,2009Q3,"RENT, COMMUNICATION, UTILITIES","",09­26 HV 09A90301223               DO,01/09/08,01/09/08,"POSTAGE, COURIER ETC",18.81,FISCAL YEAR 2008,"","","",09­26 HV 09A90301223               DO
,OFFICE OF THE MINORITY LEADER,2009Q3,"RENT, COMMUNICATION, UTILITIES","",09­26 HV 09A90301225               DO,02/25/08,02/25/08,"POSTAGE, COURIER ETC",6.96,FISCAL YEAR 2008,"","","",09­26 HV 09A90301225               DO
,OFFICE OF THE MINORITY LEADER,2009Q3,"RENT, COMMUNICATION, UTILITIES","",09­26 HV 09A90301225               DO,02/28/08,02/28/08,"POSTAGE, COURIER ETC",7.35,FISCAL YEAR 2008,"","","",09­26 HV 09A90301225               DO
,OFFICE OF THE MINORITY LEADER,2009Q3,"RENT, COMMUNICATION, UTILITIES","",09­26 HV 09A90301225               DO,03/11/08,03/11/08,"POSTAGE, COURIER ETC",14.21,FISCAL YEAR 2008,"","","",09­26 HV 09A90301225               DO
,OFFICE OF THE MINORITY LEADER,2009Q3,"RENT, COMMUNICATION, UTILITIES","",09­28 HV 09A90301189               DO,06/23/08,06/23/08,"POSTAGE, COURIER ETC",6.97,FISCAL YEAR 2008,"","","",09­28 HV 09A90301189               DO
,OFFICE OF THE MINORITY LEADER,2009Q3,"RENT, COMMUNICATION, UTILITIES","",09­28 HV 09A90301189               DO,06/27/08,06/27/08,"POSTAGE, COURIER ETC",6.96,FISCAL YEAR 2008,"","","",09­28 HV 09A90301189               DO
,OFFICE OF THE MINORITY LEADER,2009Q3,"RENT, COMMUNICATION, UTILITIES","",09­28 HV 09A90301189               DO,07/07/08,07/07/08,"POSTAGE, COURIER ETC",13.27,FISCAL YEAR 2008,"","","",09­28 HV 09A90301189               DO
,OFFICE OF THE MINORITY LEADER,2009Q3,"RENT, COMMUNICATION, UTILITIES","",09­28 HV 09A90301189               DO,07/10/08,07/10/08,"POSTAGE, COURIER ETC",5.88,FISCAL YEAR 2008,"","","",09­28 HV 09A90301189               DO
,OFFICE OF THE MINORITY LEADER,2009Q3,"RENT, COMMUNICATION, UTILITIES","",09­28 HV 09A90301190               DO,05/29/08,05/29/08,"POSTAGE, COURIER ETC",8.49,FISCAL YEAR 2008,"","","",09­28 HV 09A90301190               DO
,OFFICE OF THE MINORITY LEADER,2009Q3,"RENT, COMMUNICATION, UTILITIES","",09­28 HV 09A90301190               DO,06/04/08,06/04/08,"POSTAGE, COURIER ETC",6.97,FISCAL YEAR 2008,"","","",09­28 HV 09A90301190               DO
,OFFICE OF THE MINORITY LEADER,2009Q3,"RENT, COMMUNICATION, UTILITIES","",09­28 HV 09A90301190               DO,06/13/08,06/13/08,"POSTAGE, COURIER ETC",13.43,FISCAL YEAR 2008,"","","",09­28 HV 09A90301190               DO
,OFFICE OF THE MINORITY LEADER,2009Q3,"RENT, COMMUNICATION, UTILITIES","",09­28 HV 09A90301191               DO,04/18/08,04/18/08,"POSTAGE, COURIER ETC",7.35,FISCAL YEAR 2008,"","","",09­28 HV 09A90301191               DO
,OFFICE OF THE MINORITY LEADER,2009Q3,"RENT, COMMUNICATION, UTILITIES","",09­28 HV 09A90301191               DO,04/28/08,04/28/08,"POSTAGE, COURIER ETC",7.54,FISCAL YEAR 2008,"","","",09­28 HV 09A90301191               DO
,OFFICE OF THE MINORITY LEADER,2009Q3,"RENT, COMMUNICATION, UTILITIES","",09­28 HV 09A90301191               DO,05/07/08,05/07/08,"POSTAGE, COURIER ETC",44.02,FISCAL YEAR 2008,"","","",09­28 HV 09A90301191               DO
,OFFICE OF THE MINORITY LEADER,2009Q3,"RENT, COMMUNICATION, UTILITIES","",09­28 HV 09A90301196               DO,08/22/08,08/22/08,"POSTAGE, COURIER ETC",31.74,FISCAL YEAR 2008,"","","",09­28 HV 09A90301196               DO
,OFFICE OF THE MINORITY LEADER,2009Q3,"RENT, COMMUNICATION, UTILITIES","",09­28 HV 09A90301196               DO,08/28/08,08/28/08,"POSTAGE, COURIER ETC",88.17,FISCAL YEAR 2008,"","","",09­28 HV 09A90301196               DO
,OFFICE OF THE MINORITY LEADER,2009Q3,"RENT, COMMUNICATION, UTILITIES","",09­28 HV 09A90301196               DO,09/08/08,09/08/08,"POSTAGE, COURIER ETC",16.17,FISCAL YEAR 2008,"","","",09­28 HV 09A90301196               DO
,OFFICE OF THE MINORITY LEADER,2009Q3,"RENT, COMMUNICATION, UTILITIES","",09­28 HV 09A90301196               DO,09/11/08,09/11/08,"POSTAGE, COURIER ETC",14.32,FISCAL YEAR 2008,"","","",09­28 HV 09A90301196               DO
,OFFICE OF THE MINORITY LEADER,2009Q3,"RENT, COMMUNICATION, UTILITIES","",09­29 HV 09A90301238               DO,07/21/08,07/21/08,"POSTAGE, COURIER ETC",16.60,FISCAL YEAR 2008,"","","",09­29 HV 09A90301238               DO
,OFFICE OF THE MINORITY LEADER,2009Q3,"RENT, COMMUNICATION, UTILITIES","",09­29 HV 09A90301238               DO,07/23/08,07/23/08,"POSTAGE, COURIER ETC",5.79,FISCAL YEAR 2008,"","","",09­29 HV 09A90301238               DO
,OFFICE OF THE MINORITY LEADER,2009Q3,"RENT, COMMUNICATION, UTILITIES","",09­29 HV 09A90301239               DO,08/05/08,08/05/08,"POSTAGE, COURIER ETC",37.18,FISCAL YEAR 2008,"","","",09­29 HV 09A90301239               DO
,OFFICE OF THE MINORITY LEADER,2009Q3,"RENT, COMMUNICATION, UTILITIES","",09­29 HV 09A90301239               DO,08/06/08,08/06/08,"POSTAGE, COURIER ETC",20.00,FISCAL YEAR 2008,"","","",09­29 HV 09A90301239               DO
,OFFICE OF THE MINORITY LEADER,2009Q3,"RENT, COMMUNICATION, UTILITIES","",09­29 HV 09A90301239               DO,08/18/08,08/18/08,"POSTAGE, COURIER ETC",8.60,FISCAL YEAR 2008,"","","",09­29 HV 09A90301239               DO
,OFFICE OF THE MAJORITY WHIP,2009Q3,PERSONNEL COMPENSATION,"","WATKINS, YELBERTON R",07/01/09,09/30/09,CHIEF OF STAFF,"41,250.00",FISCAL YEAR 2009,"","","","WATKINS, YELBERTON R"
,OFFICE OF THE MAJORITY WHIP,2009Q3,PERSONNEL COMPENSATION,"","ARGUELLES, ADAM",07/01/09,09/30/09,ASSISTANT FLOOR DIRECTOR,"17,499.99",FISCAL YEAR 2009,"","","","ARGUELLES, ADAM"
,OFFICE OF THE MAJORITY WHIP,2009Q3,PERSONNEL COMPENSATION,"","BIRCH, SARAH L",07/01/09,09/30/09,DIR SPECIAL PROJ./MEMBER SERV,"20,000.01",FISCAL YEAR 2009,"","","","BIRCH, SARAH L"
,OFFICE OF THE MAJORITY WHIP,2009Q3,PERSONNEL COMPENSATION,"","CANTRELL,MARGARET",07/01/09,09/30/09,POLICY ADVISOR,"22,500.00",FISCAL YEAR 2009,"","","","CANTRELL,MARGARET"
,OFFICE OF THE MAJORITY WHIP,2009Q3,PERSONNEL COMPENSATION,"","CHAPLIN, JENNIE",07/01/09,09/30/09,DIRECTOR OF SCHEDULING,"5,499.99",FISCAL YEAR 2009,"","","","CHAPLIN, JENNIE"
,OFFICE OF THE MAJORITY WHIP,2009Q3,PERSONNEL COMPENSATION,"","COLLINS, MICHAEL E",07/01/09,09/30/09,CHIEF DEPUTY WHIP,"10,625.01",FISCAL YEAR 2009,"","","","COLLINS, MICHAEL E"
,OFFICE OF THE MAJORITY WHIP,2009Q3,PERSONNEL COMPENSATION,"","COLLINS,RHODY M",07/01/09,08/07/09,SPECIAL ASSISTANT-RESEARCH,"3,597.23",FISCAL YEAR 2009,"","","","COLLINS,RHODY M"
,OFFICE OF THE MAJORITY WHIP,2009Q3,PERSONNEL COMPENSATION,"","DANIELS,RYAN",07/01/09,09/30/09,PRESS ASSISTANT,"10,500.00",FISCAL YEAR 2009,"","","","DANIELS,RYAN"
,OFFICE OF THE MAJORITY WHIP,2009Q3,PERSONNEL COMPENSATION,"","DAY,TAMIKA K",07/01/09,09/30/09,STAFF ASSISTANT,"11,250.00",FISCAL YEAR 2009,"","","","DAY,TAMIKA K"
,OFFICE OF THE MAJORITY WHIP,2009Q3,PERSONNEL COMPENSATION,"","DEANE,JAMES A",07/01/09,09/30/09,STAFF ASSISTANT,"7,250.01",FISCAL YEAR 2009,"","","","DEANE,JAMES A"
,OFFICE OF THE MAJORITY WHIP,2009Q3,PERSONNEL COMPENSATION,"","GRECO, KRISTINE M",07/01/09,09/30/09,COMMUNICATIONS DIRECTOR,"32,499.99",FISCAL YEAR 2009,"","","","GRECO, KRISTINE M"
,OFFICE OF THE MAJORITY WHIP,2009Q3,PERSONNEL COMPENSATION,"","GRIMALDI, DAVID F",07/01/09,09/30/09,SENIOR COUNSEL,"30,000.00",FISCAL YEAR 2009,"","","","GRIMALDI, DAVID F"
,OFFICE OF THE MAJORITY WHIP,2009Q3,PERSONNEL COMPENSATION,"","GRINNEY,MATTHEW J",08/06/09,09/30/09,STAFF ASSISTANT,"4,430.56",FISCAL YEAR 2009,"","","","GRINNEY,MATTHEW J"
,OFFICE OF THE MAJORITY WHIP,2009Q3,PERSONNEL COMPENSATION,"","HACKER,MICHAEL E",07/01/09,09/30/09,DEP FLOOR DIR FOR COALITIONS,"30,000.00",FISCAL YEAR 2009,"","","","HACKER,MICHAEL E"
,OFFICE OF THE MAJORITY WHIP,2009Q3,PERSONNEL COMPENSATION,"","HARRISON, ANTONIO L",07/01/09,09/30/09,DIRECTOR OF OUTREACH,"24,999.99",FISCAL YEAR 2009,"","","","HARRISON, ANTONIO L"
,OFFICE OF THE MAJORITY WHIP,2009Q3,PERSONNEL COMPENSATION,"","HARTMAN, WENDY A",07/01/09,09/30/09,SHARED EMPLOYEE,"20,000.01",FISCAL YEAR 2009,"","","","HARTMAN, WENDY A"
,OFFICE OF THE MAJORITY WHIP,2009Q3,PERSONNEL COMPENSATION,"","METCALF, JOHN T",07/01/09,09/30/09,FLOOR DIRECTOR AND COUNSEL,"36,249.99",FISCAL YEAR 2009,"","","","METCALF, JOHN T"
,OFFICE OF THE MAJORITY WHIP,2009Q3,PERSONNEL COMPENSATION,"","MOORE, MIKAEL",07/01/09,09/30/09,FLOOR ASSISTANT,"9,999.99",FISCAL YEAR 2009,"","","","MOORE, MIKAEL"
,OFFICE OF THE MAJORITY WHIP,2009Q3,PERSONNEL COMPENSATION,"","NEILL, ALLIE",07/01/09,09/30/09,DEP FLOOR DIR AND SENIOR ADVIS,"31,250.01",FISCAL YEAR 2009,"","","","NEILL, ALLIE"
,OFFICE OF THE MAJORITY WHIP,2009Q3,PERSONNEL COMPENSATION,"","SINGLETARY, BARVETTA",07/01/09,09/30/09,SHARED EMPLOYEE,"6,999.99",FISCAL YEAR 2009,"","","","SINGLETARY, BARVETTA"
,OFFICE OF THE MAJORITY WHIP,2009Q3,TRAVEL,"",07­17   P1 09MW0100194      KRISTINE GRECO,06/25/09,06/25/09,"TAXI, PARKING, TOLLS",27.25,FISCAL YEAR 2009,"","","",07­17   P1 09MW0100194      KRISTINE GRECO
,OFFICE OF THE MAJORITY WHIP,2009Q3,TRAVEL,"",07­17   P1 09MW0100191      MICHAEL E HACKER,06/03/09,06/25/09,"TAXI, PARKING, TOLLS",104.25,FISCAL YEAR 2009,"","","",07­17   P1 09MW0100191      MICHAEL E HACKER
,OFFICE OF THE MAJORITY WHIP,2009Q3,TRAVEL,"",07­21   P1 09MW0100198      SARAH LYNN BIRCH,07/07/09,07/07/09,COMMERCIAL TRANSPORTATION,348.10,FISCAL YEAR 2009,"","","",07­21   P1 09MW0100198      SARAH LYNN BIRCH
,OFFICE OF THE MAJORITY WHIP,2009Q3,TRAVEL,"",07­21   P1 09MW0100200           DO,07/02/09,07/02/09,PRIVATE OWNED VEHICLE MILEAGE,220.00,FISCAL YEAR 2009,"","","",07­21   P1 09MW0100200           DO
,OFFICE OF THE MAJORITY WHIP,2009Q3,TRAVEL,"",07­21   P1 09MW0100201           DO,07/05/09,07/07/09,CAR RENTAL,201.49,FISCAL YEAR 2009,"","","",07­21   P1 09MW0100201           DO
,OFFICE OF THE MAJORITY WHIP,2009Q3,TRAVEL,"",07­24   P1 09MW0100204      BARVETTA SINGLETARY,07/02/09,07/07/09,COMMERCIAL TRANSPORTATION,602.90,FISCAL YEAR 2009,"","","",07­24   P1 09MW0100204      BARVETTA SINGLETARY
,OFFICE OF THE MAJORITY WHIP,2009Q3,TRAVEL,"",08­12   P1 09MW0100208      YELBERTON R WATKINS,08/02/09,08/03/09,COMMERCIAL TRANSPORTATION,565.20,FISCAL YEAR 2009,"","","",08­12   P1 09MW0100208      YELBERTON R WATKINS
,OFFICE OF THE MAJORITY WHIP,2009Q3,TRAVEL,"",09­14   P1 09MW0100221      BARVETTA SINGLETARY,07/04/09,08/12/09,CAR RENTAL,730.31,FISCAL YEAR 2009,"","","",09­14   P1 09MW0100221      BARVETTA SINGLETARY
,OFFICE OF THE MAJORITY WHIP,2009Q3,TRAVEL,"",09­14   P1 09MW0100224      MICHAEL E HACKER,08/06/09,08/09/09,CAR RENTAL,198.09,FISCAL YEAR 2009,"","","",09­14   P1 09MW0100224      MICHAEL E HACKER
,OFFICE OF THE MAJORITY WHIP,2009Q3,TRAVEL,"",09­14   P1 09MW0100225           DO,08/06/09,08/07/09,LODGING,121.19,FISCAL YEAR 2009,"","","",09­14   P1 09MW0100225           DO
,OFFICE OF THE MAJORITY WHIP,2009Q3,TRAVEL,"",09­14   P1 09MW0100226           DO,08/06/09,08/06/09,COMMERCIAL TRANSPORTATION,414.60,FISCAL YEAR 2009,"","","",09­14   P1 09MW0100226           DO
,OFFICE OF THE MAJORITY WHIP,2009Q3,TRAVEL,"",09­14   P1 09MW0100222      SARAH LYNN BIRCH,09/14/09,09/14/09,"TAXI, PARKING, TOLLS",54.25,FISCAL YEAR 2009,"","","",09­14   P1 09MW0100222      SARAH LYNN BIRCH
,OFFICE OF THE MAJORITY WHIP,2009Q3,"RENT, COMMUNICATION, UTILITIES","",07­06   CB    FXF090702A      FEDERAL EXPRESS CORP,06/19/09,06/19/09,POSTAGE/COURIER/BOX RENTAL,10.21,FISCAL YEAR 2009,"","","",07­06   CB    FXF090702A      FEDERAL EXPRESS CORP
,OFFICE OF THE MAJORITY WHIP,2009Q3,"RENT, COMMUNICATION, UTILITIES","",07­10   CB    FXF090709A               DO,06/26/09,06/26/09,POSTAGE/COURIER/BOX RENTAL,10.03,FISCAL YEAR 2009,"","","",07­10   CB    FXF090709A               DO
,OFFICE OF THE MAJORITY WHIP,2009Q3,"RENT, COMMUNICATION, UTILITIES","",07­31   S3    09212G00033,07/01/09,07/31/09,HIR GRAPHICS (TRANSFER),143.00,FISCAL YEAR 2009,"","","",07­31   S3    09212G00033
,OFFICE OF THE MAJORITY WHIP,2009Q3,"RENT, COMMUNICATION, UTILITIES","",07­31   CB    FXF090730A      FEDERAL EXPRESS CORP,07/17/09,07/17/09,POSTAGE/COURIER/BOX RENTAL,5.86,FISCAL YEAR 2009,"","","",07­31   CB    FXF090730A      FEDERAL EXPRESS CORP
,OFFICE OF THE MAJORITY WHIP,2009Q3,"RENT, COMMUNICATION, UTILITIES","",08­07   CB    FXF090806A               DO,07/24/09,07/24/09,POSTAGE/COURIER/BOX RENTAL,15.56,FISCAL YEAR 2009,"","","",08­07   CB    FXF090806A               DO
,OFFICE OF THE MAJORITY WHIP,2009Q3,"RENT, COMMUNICATION, UTILITIES","",08­17   CB    FXF090813A               DO,07/29/09,07/29/09,POSTAGE/COURIER/BOX RENTAL,9.40,FISCAL YEAR 2009,"","","",08­17   CB    FXF090813A               DO
,OFFICE OF THE MAJORITY WHIP,2009Q3,"RENT, COMMUNICATION, UTILITIES","",08­26   CB    FXF090820A               DO,08/07/09,08/07/09,POSTAGE/COURIER/BOX RENTAL,12.00,FISCAL YEAR 2009,"","","",08­26   CB    FXF090820A               DO
,OFFICE OF THE MAJORITY WHIP,2009Q3,"RENT, COMMUNICATION, UTILITIES","",08­26   CB    FXF090820A               DO,08/05/09,08/05/09,POSTAGE/COURIER/BOX RENTAL,14.34,FISCAL YEAR 2009,"","","",08­26   CB    FXF090820A               DO
,OFFICE OF THE MAJORITY WHIP,2009Q3,"RENT, COMMUNICATION, UTILITIES","",08­31   CB    FXF090828A               DO,08/14/09,08/14/09,POSTAGE/COURIER/BOX RENTAL,12.00,FISCAL YEAR 2009,"","","",08­31   CB    FXF090828A               DO
,OFFICE OF THE MAJORITY WHIP,2009Q3,"RENT, COMMUNICATION, UTILITIES","",09­08 CB FXF090903A                DO,08/21/09,08/21/09,POSTAGE/COURIER/BOX RENTAL,12.00,FISCAL YEAR 2009,"","","",09­08 CB FXF090903A                DO
,OFFICE OF THE MAJORITY WHIP,2009Q3,"RENT, COMMUNICATION, UTILITIES","",09­08 CB FXF090903A                DO,08/25/09,08/25/09,POSTAGE/COURIER/BOX RENTAL,7.90,FISCAL YEAR 2009,"","","",09­08 CB FXF090903A                DO
,OFFICE OF THE MAJORITY WHIP,2009Q3,PRINTING AND REPRODUCTION,"",07­28       S3    09209000132,07/01/09,07/31/09,PHOTOGRAPHIC (TRANSFER),158.32,FISCAL YEAR 2009,"","","",07­28       S3    09209000132
,OFFICE OF THE MAJORITY WHIP,2009Q3,PRINTING AND REPRODUCTION,"","08­12       P1    09MW0100215      DAVID L. ANDRUKITUS, INC",07/30/09,07/30/09,PRINTING AND REPRODUCTION,107.50,FISCAL YEAR 2009,"","","","08­12       P1    09MW0100215      DAVID L. ANDRUKITUS, INC"
,OFFICE OF THE MAJORITY WHIP,2009Q3,PRINTING AND REPRODUCTION,"",08­25       S3    09237000135,08/01/09,08/31/09,PHOTOGRAPHIC (TRANSFER),40.70,FISCAL YEAR 2009,"","","",08­25       S3    09237000135
,OFFICE OF THE MAJORITY WHIP,2009Q3,PRINTING AND REPRODUCTION,"",09­29       S3    09272000086,09/01/09,09/30/09,PHOTOGRAPHIC (TRANSFER),18.20,FISCAL YEAR 2009,"","","",09­29       S3    09272000086
,OFFICE OF THE MAJORITY WHIP,2009Q3,OTHER SERVICES,"",07­01       P1    09MW0100178                  SARAH LYNN BIRCH,06/17/09,06/23/09,LAUNDRY SERVICE,90.24,FISCAL YEAR 2009,"","","",07­01       P1    09MW0100178                  SARAH LYNN BIRCH
,OFFICE OF THE MAJORITY WHIP,2009Q3,OTHER SERVICES,"",07­21       P1    09MW0100196                       DO,07/09/09,07/09/09,LAUNDRY SERVICE,33.30,FISCAL YEAR 2009,"","","",07­21       P1    09MW0100196                       DO
,OFFICE OF THE MAJORITY WHIP,2009Q3,OTHER SERVICES,"",08­12       P7    20090810                     FIRESIDE21,04/01/09,04/30/09,"WEB DEV,HOSTNG,EMAIL & REL SVC",585.00,FISCAL YEAR 2009,"","","",08­12       P7    20090810                     FIRESIDE21
,OFFICE OF THE MAJORITY WHIP,2009Q3,OTHER SERVICES,"",08­12       P7    20090811                          DO,05/01/09,05/31/09,"WEB DEV,HOSTNG,EMAIL & REL SVC",585.00,FISCAL YEAR 2009,"","","",08­12       P7    20090811                          DO
,OFFICE OF THE MAJORITY WHIP,2009Q3,OTHER SERVICES,"",08­12       P7    20090812                          DO,06/01/09,06/30/09,"WEB DEV,HOSTNG,EMAIL & REL SVC",585.00,FISCAL YEAR 2009,"","","",08­12       P7    20090812                          DO
,OFFICE OF THE MAJORITY WHIP,2009Q3,OTHER SERVICES,"",08­12       P1    09MW0100218                  SARAH LYNN BIRCH,07/27/09,07/30/09,LAUNDRY SERVICE,162.78,FISCAL YEAR 2009,"","","",08­12       P1    09MW0100218                  SARAH LYNN BIRCH
,OFFICE OF THE MAJORITY WHIP,2009Q3,OTHER SERVICES,"",09­17       P7    20090916A                         DO,07/01/09,07/31/09,"WEB DEV,HOSTNG,EMAIL & REL SVC",585.00,FISCAL YEAR 2009,"","","",09­17       P7    20090916A                         DO
,OFFICE OF THE MAJORITY WHIP,2009Q3,OTHER SERVICES,"",09­23       P7    20090923                          DO,08/01/09,08/31/09,"WEB DEV,HOSTNG,EMAIL & REL SVC",585.00,FISCAL YEAR 2009,"","","",09­23       P7    20090923                          DO
,OFFICE OF THE MAJORITY WHIP,2009Q3,OTHER SERVICES,"",09­25       P1    09MW0100236                  SARAH LYNN BIRCH,09/15/09,09/17/09,LAUNDRY SERVICE,126.85,FISCAL YEAR 2009,"","","",09­25       P1    09MW0100236                  SARAH LYNN BIRCH
,OFFICE OF THE MAJORITY WHIP,2009Q3,SUPPLIES AND MATERIALS,"",07­14       P1    09MW0100190      SARAH LYNN BIRCH,06/23/09,07/01/09,FOOD & BEVERAGE,"2,930.92",FISCAL YEAR 2009,"","","",07­14       P1    09MW0100190      SARAH LYNN BIRCH
,OFFICE OF THE MAJORITY WHIP,2009Q3,SUPPLIES AND MATERIALS,"","07­17       P1    09MW0100192      BETTY CRUDUP, CATERER",06/04/09,06/25/09,FOOD & BEVERAGE,"3,600.00",FISCAL YEAR 2009,"","","","07­17       P1    09MW0100192      BETTY CRUDUP, CATERER"
,OFFICE OF THE MAJORITY WHIP,2009Q3,SUPPLIES AND MATERIALS,"",07­17       P1    09MW0100193      COCA-COLA ENTERPRISES,06/25/09,06/25/09,FOOD & BEVERAGE,531.30,FISCAL YEAR 2009,"","","",07­17       P1    09MW0100193      COCA-COLA ENTERPRISES
,OFFICE OF THE MAJORITY WHIP,2009Q3,SUPPLIES AND MATERIALS,"",07­21       P1    09MW0100202      ALLIE NEILL,04/28/09,04/28/09,FOOD & BEVERAGE,48.92,FISCAL YEAR 2009,"","","",07­21       P1    09MW0100202      ALLIE NEILL
,OFFICE OF THE MAJORITY WHIP,2009Q3,SUPPLIES AND MATERIALS,"",07­21       P1    09MW0100203           DO,07/10/09,08/09/09,PUBLICATION REF MATERIAL,79.95,FISCAL YEAR 2009,"","","",07­21       P1    09MW0100203           DO
,OFFICE OF THE MAJORITY WHIP,2009Q3,SUPPLIES AND MATERIALS,"",07­21       P1    09MW0100197      CHANTILLY DONUTS,05/14/09,05/14/09,FOOD & BEVERAGE,28.00,FISCAL YEAR 2009,"","","",07­21       P1    09MW0100197      CHANTILLY DONUTS
,OFFICE OF THE MAJORITY WHIP,2009Q3,SUPPLIES AND MATERIALS,"",07­21       P1    09MW0100199           DO,06/25/09,06/25/09,FOOD & BEVERAGE,28.00,FISCAL YEAR 2009,"","","",07­21       P1    09MW0100199           DO
,OFFICE OF THE MAJORITY WHIP,2009Q3,SUPPLIES AND MATERIALS,"",07­21       P1    09MW0100195      SARAH LYNN BIRCH,07/08/09,07/10/09,FOOD & BEVERAGE,"2,868.40",FISCAL YEAR 2009,"","","",07­21       P1    09MW0100195      SARAH LYNN BIRCH
,OFFICE OF THE MAJORITY WHIP,2009Q3,SUPPLIES AND MATERIALS,"",07­24       P1    09MW0100206      CHANTILLY DONUTS,07/16/09,07/16/09,FOOD & BEVERAGE,28.00,FISCAL YEAR 2009,"","","",07­24       P1    09MW0100206      CHANTILLY DONUTS
,OFFICE OF THE MAJORITY WHIP,2009Q3,SUPPLIES AND MATERIALS,"","07­24       P1    09MW0100207      CORPORATE VIDEO, INC",07/01/09,07/31/09,PUBLICATION REF MATERIAL,200.00,FISCAL YEAR 2009,"","","","07­24       P1    09MW0100207      CORPORATE VIDEO, INC"
,OFFICE OF THE MAJORITY WHIP,2009Q3,SUPPLIES AND MATERIALS,"",07­24       P1    09MW0100205      WENDY ANNE HARTMAN,07/07/09,07/07/09,FOOD & BEVERAGE,237.19,FISCAL YEAR 2009,"","","",07­24       P1    09MW0100205      WENDY ANNE HARTMAN
,OFFICE OF THE MAJORITY WHIP,2009Q3,SUPPLIES AND MATERIALS,"","08­12       P1    09MW0100209      BETTY CRUDUP, CATERER",07/09/09,07/30/09,FOOD & BEVERAGE,"3,600.00",FISCAL YEAR 2009,"","","","08­12       P1    09MW0100209      BETTY CRUDUP, CATERER"
,OFFICE OF THE MAJORITY WHIP,2009Q3,SUPPLIES AND MATERIALS,"",08­12       P1    09MW0100211      CHANTILLY DONUTS,07/21/09,07/21/09,FOOD & BEVERAGE,20.00,FISCAL YEAR 2009,"","","",08­12       P1    09MW0100211      CHANTILLY DONUTS
,OFFICE OF THE MAJORITY WHIP,2009Q3,SUPPLIES AND MATERIALS,"",08­12       P1    09MW0100212           DO,07/23/09,07/23/09,FOOD & BEVERAGE,28.00,FISCAL YEAR 2009,"","","",08­12       P1    09MW0100212           DO
,OFFICE OF THE MAJORITY WHIP,2009Q3,SUPPLIES AND MATERIALS,"",08­12       P1    09MW0100216           DO,07/27/09,07/27/09,FOOD & BEVERAGE,36.00,FISCAL YEAR 2009,"","","",08­12       P1    09MW0100216           DO
,OFFICE OF THE MAJORITY WHIP,2009Q3,SUPPLIES AND MATERIALS,"",08­12       P1    09MW0100217           DO,07/30/09,07/30/09,FOOD & BEVERAGE,32.00,FISCAL YEAR 2009,"","","",08­12       P1    09MW0100217           DO
,OFFICE OF THE MAJORITY WHIP,2009Q3,SUPPLIES AND MATERIALS,"",08­12       P1    09MW0100219      COCA-COLA ENTERPRISES,07/28/09,07/28/09,FOOD & BEVERAGE,245.20,FISCAL YEAR 2009,"","","",08­12       P1    09MW0100219      COCA-COLA ENTERPRISES
,OFFICE OF THE MAJORITY WHIP,2009Q3,SUPPLIES AND MATERIALS,"",08­12       P1    09MW0100213      SARAH LYNN BIRCH,07/20/09,07/31/09,FOOD & BEVERAGE,698.44,FISCAL YEAR 2009,"","","",08­12       P1    09MW0100213      SARAH LYNN BIRCH
,OFFICE OF THE MAJORITY WHIP,2009Q3,SUPPLIES AND MATERIALS,"",08­12       P1    09MW0100214      WENDY ANNE HARTMAN,07/20/09,07/29/09,FOOD & BEVERAGE,398.72,FISCAL YEAR 2009,"","","",08­12       P1    09MW0100214      WENDY ANNE HARTMAN
,OFFICE OF THE MAJORITY WHIP,2009Q3,SUPPLIES AND MATERIALS,"","08­13      P1    09MW0100210                 CORPORATE VIDEO, INC",08/01/09,08/31/09,PUBLICATION REF MATERIAL,200.00,FISCAL YEAR 2009,"","","","08­13      P1    09MW0100210                 CORPORATE VIDEO, INC"
,OFFICE OF THE MAJORITY WHIP,2009Q3,SUPPLIES AND MATERIALS,"",09­14      P1    09MW0100228                      DO,09/01/09,09/30/09,PUBLICATION REF MATERIAL,200.00,FISCAL YEAR 2009,"","","",09­14      P1    09MW0100228                      DO
,OFFICE OF THE MAJORITY WHIP,2009Q3,SUPPLIES AND MATERIALS,"",09­14      P1    09MW0100223                 SARAH LYNN BIRCH,08/29/09,08/29/09,FOOD & BEVERAGE,15.36,FISCAL YEAR 2009,"","","",09­14      P1    09MW0100223                 SARAH LYNN BIRCH
,OFFICE OF THE MAJORITY WHIP,2009Q3,SUPPLIES AND MATERIALS,"",09­14      P1    09MW0100227                      DO,08/11/09,08/11/09,FOOD & BEVERAGE,40.04,FISCAL YEAR 2009,"","","",09­14      P1    09MW0100227                      DO
,OFFICE OF THE MAJORITY WHIP,2009Q3,SUPPLIES AND MATERIALS,"","09­18      P1    09MW0100232                 BETTY CRUDUP, CATERER",09/10/09,09/10/09,FOOD & BEVERAGE,900.00,FISCAL YEAR 2009,"","","","09­18      P1    09MW0100232                 BETTY CRUDUP, CATERER"
,OFFICE OF THE MAJORITY WHIP,2009Q3,SUPPLIES AND MATERIALS,"",09­18      P1    09MW0100230                 CHANTILLY DONUTS,09/10/09,09/10/09,FOOD & BEVERAGE,32.00,FISCAL YEAR 2009,"","","",09­18      P1    09MW0100230                 CHANTILLY DONUTS
,OFFICE OF THE MAJORITY WHIP,2009Q3,SUPPLIES AND MATERIALS,"",09­18      P1    09MW0100231                 SARAH LYNN BIRCH,09/09/09,09/10/09,FOOD & BEVERAGE,394.54,FISCAL YEAR 2009,"","","",09­18      P1    09MW0100231                 SARAH LYNN BIRCH
,OFFICE OF THE MAJORITY WHIP,2009Q3,SUPPLIES AND MATERIALS,"",09­18      P1    09MW0100229                 WENDY ANNE HARTMAN,09/08/09,09/09/09,FOOD & BEVERAGE,222.51,FISCAL YEAR 2009,"","","",09­18      P1    09MW0100229                 WENDY ANNE HARTMAN
,OFFICE OF THE MAJORITY WHIP,2009Q3,SUPPLIES AND MATERIALS,"","09­25      P1    09MW0100235                 BETTY CRUDUP, CATERER",09/17/09,09/17/09,FOOD & BEVERAGE,900.00,FISCAL YEAR 2009,"","","","09­25      P1    09MW0100235                 BETTY CRUDUP, CATERER"
,OFFICE OF THE MAJORITY WHIP,2009Q3,SUPPLIES AND MATERIALS,"",09­25      P1    09MW0100234                 CHANTILLY DONUTS,09/17/09,09/17/09,FOOD & BEVERAGE,32.00,FISCAL YEAR 2009,"","","",09­25      P1    09MW0100234                 CHANTILLY DONUTS
,OFFICE OF THE MAJORITY WHIP,2009Q3,SUPPLIES AND MATERIALS,"",09­25      P1    09MW0100233                 WENDY ANNE HARTMAN,09/15/09,09/15/09,FOOD & BEVERAGE,109.41,FISCAL YEAR 2009,"","","",09­25      P1    09MW0100233                 WENDY ANNE HARTMAN
,OFFICE OF THE MAJORITY WHIP,2009Q3,TRAVEL,"",09­08 HV 09A90300874          HARRISON T GODFREY,09/16/08,09/16/08,"TAXI, PARKING, TOLLS",17.00,FISCAL YEAR 2008,"","","",09­08 HV 09A90300874          HARRISON T GODFREY
,OFFICE OF THE MINORITY WHIP,2009Q3,PERSONNEL COMPENSATION,"","COLLINS, ROBERT W",07/01/09,08/31/09,DEPUTY CHIEF OF STAFF,"28,599.67",FISCAL YEAR 2009,"","","","COLLINS, ROBERT W"
,OFFICE OF THE MINORITY WHIP,2009Q3,PERSONNEL COMPENSATION,"","COLLINS, ROBERT W",09/01/09,09/30/09,TELEPHONE SYSTEMS CONSULTANT,"14,375.00",FISCAL YEAR 2009,"","","",DO
,OFFICE OF THE MINORITY WHIP,2009Q3,PERSONNEL COMPENSATION,"","STOMBRES, STEVEN C",07/01/09,08/31/09,CHIEF OF STAFF,"28,599.67",FISCAL YEAR 2009,"","","","STOMBRES, STEVEN C"
,OFFICE OF THE MINORITY WHIP,2009Q3,PERSONNEL COMPENSATION,"","STOMBRES, STEVEN C",09/01/09,09/30/09,SERVICES MANAGER,"14,224.67",FISCAL YEAR 2009,"","","",DO
,OFFICE OF THE MINORITY WHIP,2009Q3,PERSONNEL COMPENSATION,"","ANDRES,DOUGLAS R",07/01/09,09/30/09,DEPUTY COALITIONS DIRECTOR,"10,750.01",FISCAL YEAR 2009,"","","","ANDRES,DOUGLAS R"
,OFFICE OF THE MINORITY WHIP,2009Q3,PERSONNEL COMPENSATION,"","BARNES,FREDERIC W",07/01/09,09/30/09,SPECIAL ASSISTANT,"10,500.00",FISCAL YEAR 2009,"","","","BARNES,FREDERIC W"
,OFFICE OF THE MINORITY WHIP,2009Q3,PERSONNEL COMPENSATION,"","BAUER, RACHEL C",07/01/09,09/30/09,DEPUTY PRESS SECRETARY,"11,500.00",FISCAL YEAR 2009,"","","","BAUER, RACHEL C"
,OFFICE OF THE MINORITY WHIP,2009Q3,PERSONNEL COMPENSATION,"","BRAVO, MATTHEW",07/01/09,09/30/09,FLOOR ASSISTANT/SPECIAL ASSIST,"12,500.01",FISCAL YEAR 2009,"","","","BRAVO, MATTHEW"
,OFFICE OF THE MINORITY WHIP,2009Q3,PERSONNEL COMPENSATION,"","CULLEN,RICHARD T",07/01/09,09/30/09,STAFF ASSISTANT,"12,000.01",FISCAL YEAR 2009,"","","","CULLEN,RICHARD T"
,OFFICE OF THE MINORITY WHIP,2009Q3,PERSONNEL COMPENSATION,"","DAYSPRING, BRADFORD",07/01/09,09/30/09,PRESS SECRETARY,"10,249.99",FISCAL YEAR 2009,"","","","DAYSPRING, BRADFORD"
,OFFICE OF THE MINORITY WHIP,2009Q3,PERSONNEL COMPENSATION,"","DOLBOW, WILLIAM R",07/01/09,09/30/09,SENIOR ADVISOR,"35,750.01",FISCAL YEAR 2009,"","","","DOLBOW, WILLIAM R"
,OFFICE OF THE MINORITY WHIP,2009Q3,PERSONNEL COMPENSATION,"","FERENCE, MICHAEL J",07/01/09,09/30/09,POLICY ADVISOR,"9,249.99",FISCAL YEAR 2009,"","","","FERENCE, MICHAEL J"
,OFFICE OF THE MINORITY WHIP,2009Q3,PERSONNEL COMPENSATION,"","FREDERICKS, AUTUMN",09/01/09,09/30/09,SHARED EMPLOYEE,"4,000.00",FISCAL YEAR 2009,"","","","FREDERICKS, AUTUMN"
,OFFICE OF THE MINORITY WHIP,2009Q3,PERSONNEL COMPENSATION,"","GUSTAFSON,NICOLE M",07/01/09,09/30/09,POLICY ADVISOR & LEGIS. COUNS,"8,000.01",FISCAL YEAR 2009,"","","","GUSTAFSON,NICOLE M"
,OFFICE OF THE MINORITY WHIP,2009Q3,PERSONNEL COMPENSATION,"","HELM,KATHERINE D",07/06/09,09/30/09,INTERN,"4,958.33",FISCAL YEAR 2009,"","","","HELM,KATHERINE D"
,OFFICE OF THE MINORITY WHIP,2009Q3,PERSONNEL COMPENSATION,"","HODGE, MATTHEW S",07/01/09,09/30/09,RESEARCH ASST & SYS ADMIN,"14,000.00",FISCAL YEAR 2009,"","","","HODGE, MATTHEW S"
,OFFICE OF THE MINORITY WHIP,2009Q3,PERSONNEL COMPENSATION,"","JAEGER, CHERYL L",07/01/09,09/30/09,SR POLICY ADVISOR FOR DEFENSE,"9,249.99",FISCAL YEAR 2009,"","","","JAEGER, CHERYL L"
,OFFICE OF THE MINORITY WHIP,2009Q3,PERSONNEL COMPENSATION,"","JOHNSTON,STEVEN",07/01/09,09/30/09,ASSOCIATE DIR OF NEW MEDIA,"11,500.01",FISCAL YEAR 2009,"","","","JOHNSTON,STEVEN"
,OFFICE OF THE MINORITY WHIP,2009Q3,PERSONNEL COMPENSATION,"","KIRK, LYNN A",07/01/09,08/31/09,SPECIAL PROJECTS COORDINATOR,500.00,FISCAL YEAR 2009,"","","","KIRK, LYNN A"
,OFFICE OF THE MINORITY WHIP,2009Q3,PERSONNEL COMPENSATION,"","LIRA,MATHEW L",07/01/09,09/30/09,DIRECTOR OF NEW MEDIA,"16,500.01",FISCAL YEAR 2009,"","","","LIRA,MATHEW L"
,OFFICE OF THE MINORITY WHIP,2009Q3,PERSONNEL COMPENSATION,"","MIN, JAMES B",07/01/09,09/30/09,SHARED EMPLOYEE,"17,499.99",FISCAL YEAR 2009,"","","","MIN, JAMES B"
,OFFICE OF THE MINORITY WHIP,2009Q3,PERSONNEL COMPENSATION,"","NELSON, VALERIE S",07/01/09,09/30/09,DIRECTOR OF ADMINISTRATION,"27,999.99",FISCAL YEAR 2009,"","","","NELSON, VALERIE S"
,OFFICE OF THE MINORITY WHIP,2009Q3,PERSONNEL COMPENSATION,"","O'CONNOR, KATHLEEN",07/01/09,09/30/09,DEPUTY SCHEDULER,"14,500.00",FISCAL YEAR 2009,"","","","O'CONNOR, KATHLEEN"
,OFFICE OF THE MINORITY WHIP,2009Q3,PERSONNEL COMPENSATION,"","PATRICK,BRIAN C",09/02/09,09/30/09,STRATEGIC COMMUNICATIONS,"4,833.33",FISCAL YEAR 2009,"","","","PATRICK,BRIAN C"
,OFFICE OF THE MINORITY WHIP,2009Q3,PERSONNEL COMPENSATION,"","PUNDER,JOSEPH S",07/01/09,08/07/09,COMMUNICATIONS,"13,022.23",FISCAL YEAR 2009,"","","","PUNDER,JOSEPH S"
,OFFICE OF THE MINORITY WHIP,2009Q3,PERSONNEL COMPENSATION,"","ROBINSON,SARAH",09/01/09,09/30/09,INTERN,"1,750.00",FISCAL YEAR 2009,"","","","ROBINSON,SARAH"
,OFFICE OF THE MINORITY WHIP,2009Q3,PERSONNEL COMPENSATION,"","SILVERMAN,DAVID J",07/01/09,09/30/09,SPEECHWRITER,"13,500.00",FISCAL YEAR 2009,"","","","SILVERMAN,DAVID J"
,OFFICE OF THE MINORITY WHIP,2009Q3,PERSONNEL COMPENSATION,"","SILVERS, MELISSA M",07/01/09,08/31/09,SHARED EMPLOYEE,"2,000.00",FISCAL YEAR 2009,"","","","SILVERS, MELISSA M"
,OFFICE OF THE MINORITY WHIP,2009Q3,PERSONNEL COMPENSATION,"","STEIN, SHIMON",07/01/09,09/30/09,POLICY ADVISOR,"27,249.99",FISCAL YEAR 2009,"","","","STEIN, SHIMON"
,OFFICE OF THE MINORITY WHIP,2009Q3,PERSONNEL COMPENSATION,"","STIPICEVIC, JOHN A",07/01/09,09/30/09,FLOOR ASSISTANT,"13,500.00",FISCAL YEAR 2009,"","","","STIPICEVIC, JOHN A"
,OFFICE OF THE MINORITY WHIP,2009Q3,PERSONNEL COMPENSATION,"","TUELL,JAMES A",07/01/09,09/30/09,STAFF ASSISTANT,"8,249.99",FISCAL YEAR 2009,"","","","TUELL,JAMES A"
,OFFICE OF THE MINORITY WHIP,2009Q3,PERSONNEL COMPENSATION,"","VIESON, CHRISTOPHER W",07/01/09,09/30/09,FLOOR ASSISTANT,"13,500.00",FISCAL YEAR 2009,"","","","VIESON, CHRISTOPHER W"
,OFFICE OF THE MINORITY WHIP,2009Q3,PERSONNEL COMPENSATION,"","WILLIAMS, KELLY K",07/01/09,09/30/09,FINANCIAL ADMINISTRATOR,"6,000.00",FISCAL YEAR 2009,"","","","WILLIAMS, KELLY K"
,OFFICE OF THE MINORITY WHIP,2009Q3,TRAVEL,"",07­01       P1 09NW0100134      CHERYL LYNN JAEGER,06/08/09,06/08/09,COMMERCIAL TRANSPORTATION,359.20,FISCAL YEAR 2009,"","","",07­01       P1 09NW0100134      CHERYL LYNN JAEGER
,OFFICE OF THE MINORITY WHIP,2009Q3,TRAVEL,"",07­01       P1 09NW0100135           DO,06/08/09,06/08/09,"TAXI, PARKING, TOLLS",63.85,FISCAL YEAR 2009,"","","",07­01       P1 09NW0100135           DO
,OFFICE OF THE MINORITY WHIP,2009Q3,TRAVEL,"",07­21       P1 09NW0100144      JEFF BURTON,01/04/09,06/30/09,"TAXI, PARKING, TOLLS",263.00,FISCAL YEAR 2009,"","","",07­21       P1 09NW0100144      JEFF BURTON
,OFFICE OF THE MINORITY WHIP,2009Q3,TRAVEL,"",07­31   P1    09NW0100158                  JOHN A MURRAY,07/13/09,07/13/09,MEALS,7.04,FISCAL YEAR 2009,"","","",07­31   P1    09NW0100158                  JOHN A MURRAY
,OFFICE OF THE MINORITY WHIP,2009Q3,TRAVEL,"",07­31   P1    09NW0100159                       DO,07/13/09,07/13/09,"TAXI, PARKING, TOLLS",50.00,FISCAL YEAR 2009,"","","",07­31   P1    09NW0100159                       DO
,OFFICE OF THE MINORITY WHIP,2009Q3,TRAVEL,"",07­31   P1    09NW0100160                       DO,07/13/09,07/13/09,COMMERCIAL TRANSPORTATION,219.20,FISCAL YEAR 2009,"","","",07­31   P1    09NW0100160                       DO
,OFFICE OF THE MINORITY WHIP,2009Q3,TRAVEL,"",08­18   P1    09NW0100168                  JEFF BURTON,07/12/09,07/12/09,"TAXI, PARKING, TOLLS",30.00,FISCAL YEAR 2009,"","","",08­18   P1    09NW0100168                  JEFF BURTON
,OFFICE OF THE MINORITY WHIP,2009Q3,TRAVEL,"",08­18   P1    09NW0100170                  RICHARD T CULLEN,07/09/09,07/30/09,PRIVATE OWNED VEHICLE MILEAGE,16.66,FISCAL YEAR 2009,"","","",08­18   P1    09NW0100170                  RICHARD T CULLEN
,OFFICE OF THE MINORITY WHIP,2009Q3,TRAVEL,"",08­21   P1    09NW0100181                  STACEY JOHNSON,08/16/09,08/17/09,LODGING,105.09,FISCAL YEAR 2009,"","","",08­21   P1    09NW0100181                  STACEY JOHNSON
,OFFICE OF THE MINORITY WHIP,2009Q3,TRAVEL,"",09­17   P1    09NW0100197                  BRADFORD DAYSPRING,07/13/09,07/13/09,COMMERCIAL TRANSPORTATION,319.20,FISCAL YEAR 2009,"","","",09­17   P1    09NW0100197                  BRADFORD DAYSPRING
,OFFICE OF THE MINORITY WHIP,2009Q3,TRAVEL,"",09­17   P1    09NW0100194                  JOHN A MURRAY,08/31/09,08/31/09,MEALS,6.82,FISCAL YEAR 2009,"","","",09­17   P1    09NW0100194                  JOHN A MURRAY
,OFFICE OF THE MINORITY WHIP,2009Q3,TRAVEL,"",09­17   P1    09NW0100195                       DO,08/31/09,08/31/09,"TAXI, PARKING, TOLLS",60.00,FISCAL YEAR 2009,"","","",09­17   P1    09NW0100195                       DO
,OFFICE OF THE MINORITY WHIP,2009Q3,TRAVEL,"",09­17   P1    09NW0100196                       DO,08/31/09,08/31/09,COMMERCIAL TRANSPORTATION,414.20,FISCAL YEAR 2009,"","","",09­17   P1    09NW0100196                       DO
,OFFICE OF THE MINORITY WHIP,2009Q3,TRAVEL,"",09­18   P1    09NW0100191                  NICOLE M GUSTAFSON,02/03/09,07/15/09,"TAXI, PARKING, TOLLS",118.00,FISCAL YEAR 2009,"","","",09­18   P1    09NW0100191                  NICOLE M GUSTAFSON
,OFFICE OF THE MINORITY WHIP,2009Q3,"RENT, COMMUNICATION, UTILITIES","",07­21   P1 09NW0100146     JEFF BURTON,05/12/09,05/12/09,POSTAGE/COURIER/BOX RENTAL,4.40,FISCAL YEAR 2009,"","","",07­21   P1 09NW0100146     JEFF BURTON
,OFFICE OF THE MINORITY WHIP,2009Q3,"RENT, COMMUNICATION, UTILITIES","",07­28   P1 09NW0100150     GENESYS CONFERENCING,04/22/09,05/21/09,"TELECOM SVC, EQUIP & TOLLS",684.13,FISCAL YEAR 2009,"","","",07­28   P1 09NW0100150     GENESYS CONFERENCING
,OFFICE OF THE MINORITY WHIP,2009Q3,"RENT, COMMUNICATION, UTILITIES","",09­17   P1 09NW0100187     CITIBANK GOV CARD SERVICE,08/20/09,08/20/09,POSTAGE/COURIER/BOX RENTAL,15.00,FISCAL YEAR 2009,"","","",09­17   P1 09NW0100187     CITIBANK GOV CARD SERVICE
,OFFICE OF THE MINORITY WHIP,2009Q3,PRINTING AND REPRODUCTION,"",07­28   S3    09209000158,07/01/09,07/31/09,PHOTOGRAPHIC (TRANSFER),19.80,FISCAL YEAR 2009,"","","",07­28   S3    09209000158
,OFFICE OF THE MINORITY WHIP,2009Q3,PRINTING AND REPRODUCTION,"",08­18   P1    09NW0100179      CITIBANK GOV CARD SERVICE,07/24/09,07/24/09,PRINTING AND REPRODUCTION,114.21,FISCAL YEAR 2009,"","","",08­18   P1    09NW0100179      CITIBANK GOV CARD SERVICE
,OFFICE OF THE MINORITY WHIP,2009Q3,PRINTING AND REPRODUCTION,"","08­18   P1    09NW0100166      DAVID L. ANDRUKITUS, INC",07/27/09,07/27/09,PRINTING AND REPRODUCTION,257.50,FISCAL YEAR 2009,"","","","08­18   P1    09NW0100166      DAVID L. ANDRUKITUS, INC"
,OFFICE OF THE MINORITY WHIP,2009Q3,PRINTING AND REPRODUCTION,"",08­25   S3    09237000153,08/01/09,08/31/09,PHOTOGRAPHIC (TRANSFER),6.40,FISCAL YEAR 2009,"","","",08­25   S3    09237000153
,OFFICE OF THE MINORITY WHIP,2009Q3,SUPPLIES AND MATERIALS,"",07­01   P1    09NW0100138      LLESIANT,06/01/09,07/31/09,PUBLICATION REF MATERIAL,"1,000.00",FISCAL YEAR 2009,"","","",07­01   P1    09NW0100138      LLESIANT
,OFFICE OF THE MINORITY WHIP,2009Q3,SUPPLIES AND MATERIALS,"",07­17   C1    NW200919703      DEER PARK,06/30/09,06/30/09,BOTTLED WATER,8.00,FISCAL YEAR 2009,"","","",07­17   C1    NW200919703      DEER PARK
,OFFICE OF THE MINORITY WHIP,2009Q3,SUPPLIES AND MATERIALS,"",07­17   C1    NW200919703           DO,06/08/09,06/08/09,BOTTLED WATER,80.96,FISCAL YEAR 2009,"","","",07­17   C1    NW200919703           DO
,OFFICE OF THE MINORITY WHIP,2009Q3,SUPPLIES AND MATERIALS,"",07­17   C1    NW200919703           DO,06/24/09,06/24/09,BOTTLED WATER,80.96,FISCAL YEAR 2009,"","","",07­17   C1    NW200919703           DO
,OFFICE OF THE MINORITY WHIP,2009Q3,SUPPLIES AND MATERIALS,"",07­17   C1    NW200919703           DO,06/30/09,06/30/09,BOTTLED WATER,2.00,FISCAL YEAR 2009,"","","",07­17   C1    NW200919703           DO
,OFFICE OF THE MINORITY WHIP,2009Q3,SUPPLIES AND MATERIALS,"",07­21   P1    09NW0100145      JEFF BURTON,03/06/09,06/24/09,FOOD & BEVERAGE,"1,165.08",FISCAL YEAR 2009,"","","",07­21   P1    09NW0100145      JEFF BURTON
,OFFICE OF THE MINORITY WHIP,2009Q3,SUPPLIES AND MATERIALS,"",07­27   P1    09NW0100152      LLESIANT,08/01/09,08/31/09,PUBLICATION REF MATERIAL,500.00,FISCAL YEAR 2009,"","","",07­27   P1    09NW0100152      LLESIANT
,OFFICE OF THE MINORITY WHIP,2009Q3,SUPPLIES AND MATERIALS,"","07­27   P1    09NW0100148      SHADOW TV, INC",06/01/09,07/31/09,PUBLICATION REF MATERIAL,"9,300.00",FISCAL YEAR 2009,"","","","07­27   P1    09NW0100148      SHADOW TV, INC"
,OFFICE OF THE MINORITY WHIP,2009Q3,SUPPLIES AND MATERIALS,"",08­04   P1    09NW0100162      DEER PARK WATER,04/01/09,04/26/09,BOTTLED WATER,164.59,FISCAL YEAR 2009,"","","",08­04   P1    09NW0100162      DEER PARK WATER
,OFFICE OF THE MINORITY WHIP,2009Q3,SUPPLIES AND MATERIALS,"",08­04   P1    09NW0100163           DO,05/01/09,05/26/09,BOTTLED WATER,167.58,FISCAL YEAR 2009,"","","",08­04   P1    09NW0100163           DO
,OFFICE OF THE MINORITY WHIP,2009Q3,SUPPLIES AND MATERIALS,"",08­04   P1    09NW0100164           DO,06/01/09,06/26/09,BOTTLED WATER,217.54,FISCAL YEAR 2009,"","","",08­04   P1    09NW0100164           DO
,OFFICE OF THE MINORITY WHIP,2009Q3,SUPPLIES AND MATERIALS,"",08­04   P1    09NW0100165           DO,07/01/09,07/26/09,BOTTLED WATER,235.71,FISCAL YEAR 2009,"","","",08­04   P1    09NW0100165           DO
,OFFICE OF THE MINORITY WHIP,2009Q3,SUPPLIES AND MATERIALS,"",08­18   P1    09NW0100171      CITIBANK GOV CARD SERVICE,06/01/09,06/25/09,FOOD & BEVERAGE,"7,902.14",FISCAL YEAR 2009,"","","",08­18   P1    09NW0100171      CITIBANK GOV CARD SERVICE
,OFFICE OF THE MINORITY WHIP,2009Q3,SUPPLIES AND MATERIALS,"",08­18   P1    09NW0100172           DO,06/03/09,06/08/09,PUBLICATION REF MATERIAL,63.94,FISCAL YEAR 2009,"","","",08­18   P1    09NW0100172           DO
,OFFICE OF THE MINORITY WHIP,2009Q3,SUPPLIES AND MATERIALS,"",08­18   P1    09NW0100177           DO,06/26/09,07/27/09,FOOD & BEVERAGE,"7,100.35",FISCAL YEAR 2009,"","","",08­18   P1    09NW0100177           DO
,OFFICE OF THE MINORITY WHIP,2009Q3,SUPPLIES AND MATERIALS,"",08­18   P1    09NW0100180           DO,07/02/09,07/23/09,PUBLICATION REF MATERIAL,225.42,FISCAL YEAR 2009,"","","",08­18   P1    09NW0100180           DO
,OFFICE OF THE MINORITY WHIP,2009Q3,SUPPLIES AND MATERIALS,"",08­18   P1    09NW0100169      JEFF BURTON,07/22/09,07/28/09,FOOD & BEVERAGE,384.35,FISCAL YEAR 2009,"","","",08­18   P1    09NW0100169      JEFF BURTON
,OFFICE OF THE MINORITY WHIP,2009Q3,SUPPLIES AND MATERIALS,"","08­18   P1    09NW0100167      SHADOW TV, INC",07/01/09,08/31/09,PUBLICATION REF MATERIAL,"5,600.00",FISCAL YEAR 2009,"","","","08­18   P1    09NW0100167      SHADOW TV, INC"
,OFFICE OF THE MINORITY WHIP,2009Q3,SUPPLIES AND MATERIALS,"",08­18   P1    09NW0100176      THE LIBRARY OF VIRGINIA,07/13/09,07/13/09,HABITATION EXPENSES,699.00,FISCAL YEAR 2009,"","","",08­18   P1    09NW0100176      THE LIBRARY OF VIRGINIA
,OFFICE OF THE MINORITY WHIP,2009Q3,SUPPLIES AND MATERIALS,"",09­16 P1 09NW0100183          CONGRESSIONAL QUARTERLY INC,03/01/09,08/31/09,PUBLICATION REF MATERIAL,"21,747.50",FISCAL YEAR 2009,"","","",09­16 P1 09NW0100183          CONGRESSIONAL QUARTERLY INC
,OFFICE OF THE MINORITY WHIP,2009Q3,SUPPLIES AND MATERIALS,"",09­17 P1 09NW0100199          CAPITOLHOST,07/22/09,07/22/09,FOOD & BEVERAGE,"1,247.00",FISCAL YEAR 2009,"","","",09­17 P1 09NW0100199          CAPITOLHOST
,OFFICE OF THE MINORITY WHIP,2009Q3,SUPPLIES AND MATERIALS,"",09­17 P1 09NW0100200               DO,05/14/09,05/14/09,FOOD & BEVERAGE,798.50,FISCAL YEAR 2009,"","","",09­17 P1 09NW0100200               DO
,OFFICE OF THE MINORITY WHIP,2009Q3,SUPPLIES AND MATERIALS,"",09­17 P1 09NW0100184          CITIBANK GOV CARD SERVICE,07/27/09,08/04/09,FOOD & BEVERAGE,"5,486.12",FISCAL YEAR 2009,"","","",09­17 P1 09NW0100184          CITIBANK GOV CARD SERVICE
,OFFICE OF THE MINORITY WHIP,2009Q3,SUPPLIES AND MATERIALS,"",09­17 P1 09NW0100186               DO,07/29/09,08/23/09,PUBLICATION REF MATERIAL,227.05,FISCAL YEAR 2009,"","","",09­17 P1 09NW0100186               DO
,OFFICE OF THE MINORITY WHIP,2009Q3,SUPPLIES AND MATERIALS,"",09­17 P1 09NW0100193          LLESIANT,10/01/09,10/31/09,PUBLICATION REF MATERIAL,500.00,FISCAL YEAR 2009,"","","",09­17 P1 09NW0100193          LLESIANT
,OFFICE OF THE MINORITY WHIP,2009Q3,SUPPLIES AND MATERIALS,"",09­17 P1 09NW0100198          RACHEL C. BAUER,07/15/09,09/09/09,FOOD & BEVERAGE,32.67,FISCAL YEAR 2009,"","","",09­17 P1 09NW0100198          RACHEL C. BAUER
,OFFICE OF THE MINORITY WHIP,2009Q3,SUPPLIES AND MATERIALS,"","09­17 P1 09NW0100192          SHADOW TV, INC",09/01/09,09/30/09,PUBLICATION REF MATERIAL,"1,800.00",FISCAL YEAR 2009,"","","","09­17 P1 09NW0100192          SHADOW TV, INC"
,OFFICE OF THE MINORITY WHIP,2009Q3,EQUIPMENT,"",07­28       P1 09NW0100153                  HOUSECALL,02/18/09,02/18/09,WARRANTIES,448.94,FISCAL YEAR 2009,"","","",07­28       P1 09NW0100153                  HOUSECALL
,OFFICE OF THE MINORITY WHIP,2009Q3,SUPPLIES AND MATERIALS,"",09­29 HR 620469               WASHINGTON POST,08/27/08,09/06/09,PUBLICATION REF MATERIAL,263.28,FISCAL YEAR 2008,"","","",09­29 HR 620469               WASHINGTON POST
,DEMOCRATIC STEERING AND POLICY,2009Q3,PERSONNEL COMPENSATION,"","LEVISON, LARA K",07/01/09,07/31/09,POLICY ADVISOR,"5,692.50",FISCAL YEAR 2009,"","","","LEVISON, LARA K"
,DEMOCRATIC STEERING AND POLICY,2009Q3,PERSONNEL COMPENSATION,"","PRICE, REVA B",07/01/09,07/31/09,POLICY ADVISOR,"10,390.00",FISCAL YEAR 2009,"","","","PRICE, REVA B"
,DEMOCRATIC STEERING AND POLICY,2009Q3,PERSONNEL COMPENSATION,"","PRIMUS, WENDELL E",07/01/09,08/31/09,SENIOR POLICY ADVISOR,"28,750.00",FISCAL YEAR 2009,"","","","PRIMUS, WENDELL E"
,DEMOCRATIC STEERING AND POLICY,2009Q3,PERSONNEL COMPENSATION,"","ROSENBAUM, AMY",07/01/09,09/30/09,POLICY COORDINATOR,"43,125.00",FISCAL YEAR 2009,"","","","ROSENBAUM, AMY"
,DEMOCRATIC STEERING AND POLICY,2009Q3,PERSONNEL COMPENSATION,"","SIDDIQUI, ARSHI",07/01/09,09/30/09,POLICY ADVISOR,"43,125.00",FISCAL YEAR 2009,"","","","SIDDIQUI, ARSHI"
,DEMOCRATIC STEERING AND POLICY,2009Q3,PERSONNEL COMPENSATION,"","BLOOM, MICHAEL T",07/01/09,08/31/09,POLICY ASSISTANT,"14,589.16",FISCAL YEAR 2009,"","","","BLOOM, MICHAEL T"
,DEMOCRATIC STEERING AND POLICY,2009Q3,PERSONNEL COMPENSATION,"","BOULE, SCOTT",07/01/09,08/31/09,POLICY ADVISOR,"12,843.00",FISCAL YEAR 2009,"","","","BOULE, SCOTT"
,DEMOCRATIC STEERING AND POLICY,2009Q3,PERSONNEL COMPENSATION,"","CANNON, ANNE C",07/01/09,08/31/09,POLICY ADVISOR,"15,666.66",FISCAL YEAR 2009,"","","","CANNON, ANNE C"
,DEMOCRATIC STEERING AND POLICY,2009Q3,PERSONNEL COMPENSATION,"","CAPRON, MARGARET W",07/01/09,08/31/09,POLICY ADVISOR,"22,780.00",FISCAL YEAR 2009,"","","","CAPRON, MARGARET W"
,DEMOCRATIC STEERING AND POLICY,2009Q3,PERSONNEL COMPENSATION,"","JUDGE, KRISTINE A",07/01/09,08/31/09,POLICY ADVISOR,"22,780.00",FISCAL YEAR 2009,"","","","JUDGE, KRISTINE A"
,DEMOCRATIC STEERING AND POLICY,2009Q3,PERSONNEL COMPENSATION,"","TECKLENBURG, MICHAEL H",07/01/09,08/31/09,POLICY ADVISOR,"21,592.59",FISCAL YEAR 2009,"","","","TECKLENBURG, MICHAEL H"
,DEMOCRATIC STEERING AND POLICY,2009Q3,PERSONNEL COMPENSATION,"","WAYLAND,KAREN G",07/01/09,08/31/09,POLICY ADVISOR,"24,000.00",FISCAL YEAR 2009,"","","","WAYLAND,KAREN G"
,DEMOCRATIC STEERING AND POLICY,2009Q3,SUPPLIES AND MATERIALS,"",09­30      S1 DY090900121,09/01/09,09/30/09,OFFICE SUPPLY (TRANSFER),382.00,FISCAL YEAR 2009,"","","",09­30      S1 DY090900121
,DEMOCRATIC CAUCUS,2009Q3,PERSONNEL COMPENSATION,"","SHEVLIN IV, GEORGE F",07/01/09,09/30/09,EXECUTIVE DIRECTOR,"43,125.00",FISCAL YEAR 2009,"","","","SHEVLIN IV, GEORGE F"
,DEMOCRATIC CAUCUS,2009Q3,PERSONNEL COMPENSATION,"","TRAN,CATHERINE LE",07/01/09,09/30/09,POLICY DIRECTOR,"30,000.00",FISCAL YEAR 2009,"","","","TRAN,CATHERINE LE"
,DEMOCRATIC CAUCUS,2009Q3,PERSONNEL COMPENSATION,"","BANJAC,SRDAN",07/01/09,09/30/09,ASSISTANT TO THE CHAIRMAN,"12,500.01",FISCAL YEAR 2009,"","","","BANJAC,SRDAN"
,DEMOCRATIC CAUCUS,2009Q3,PERSONNEL COMPENSATION,"","BARNES,CHRISTOPHER E",07/01/09,09/30/09,ADVISOR TO THE CHAIRMAN,"39,999.99",FISCAL YEAR 2009,"","","","BARNES,CHRISTOPHER E"
,DEMOCRATIC CAUCUS,2009Q3,PERSONNEL COMPENSATION,"","BAROCAS,EMILY",07/01/09,09/30/09,PRESS SECRETARY,"22,108.34",FISCAL YEAR 2009,"","","","BAROCAS,EMILY"
,DEMOCRATIC CAUCUS,2009Q3,PERSONNEL COMPENSATION,"","BELLIZZI,ELIZABETH ANN",07/01/09,08/31/09,COMMUNICATIONS ADVISOR,"20,000.00",FISCAL YEAR 2009,"","","","BELLIZZI,ELIZABETH ANN"
,DEMOCRATIC CAUCUS,2009Q3,PERSONNEL COMPENSATION,"","BUI, TONIA",07/01/09,09/30/09,MEMBER OUTREACH ASST-VICE CHR,"9,500.01",FISCAL YEAR 2009,"","","","BUI, TONIA"
,DEMOCRATIC CAUCUS,2009Q3,PERSONNEL COMPENSATION,"","DAGADAKIS,STAMATIOS",08/28/09,09/30/09,TECHNOLOGY & RESEARCH ASSISTAN,"3,500.77",FISCAL YEAR 2009,"","","","DAGADAKIS,STAMATIOS"
,DEMOCRATIC CAUCUS,2009Q3,PERSONNEL COMPENSATION,"","DAGADAKIS,STAMATIOS",06/17/09,08/27/09,TECHNOLOGY FELLOW,"5,583.34",FISCAL YEAR 2009,"","","",DO
,DEMOCRATIC CAUCUS,2009Q3,PERSONNEL COMPENSATION,"","DELANEY, ERIC L",07/01/09,09/30/09,MEMBER OUTREACH ASST-VICE CHR,"9,500.01",FISCAL YEAR 2009,"","","","DELANEY, ERIC L"
,DEMOCRATIC CAUCUS,2009Q3,PERSONNEL COMPENSATION,"","GILL,CHRISTOPHER",07/01/09,09/30/09,INTERN,"7,500.00",FISCAL YEAR 2009,"","","","GILL,CHRISTOPHER"
,DEMOCRATIC CAUCUS,2009Q3,PERSONNEL COMPENSATION,"","GLEESON,JAMES M",07/01/09,09/30/09,RESEARCH ANALYST FOR VICE CHR,"9,833.34",FISCAL YEAR 2009,"","","","GLEESON,JAMES M"
,DEMOCRATIC CAUCUS,2009Q3,PERSONNEL COMPENSATION,"","GONZALES, MELONDY S",07/01/09,09/30/09,DIR OF MBR OUTREACH-VICE CHAIR,"15,700.01",FISCAL YEAR 2009,"","","","GONZALES, MELONDY S"
,DEMOCRATIC CAUCUS,2009Q3,PERSONNEL COMPENSATION,"","HUDSON,JEHMAL T",07/01/09,09/30/09,POLICY ASSISTANT,"15,000.00",FISCAL YEAR 2009,"","","","HUDSON,JEHMAL T"
,DEMOCRATIC CAUCUS,2009Q3,PERSONNEL COMPENSATION,"","JAWORSKI, KIMBERLY H",07/01/09,09/30/09,EVENTS AND PROJECTS COORDINATO,"12,500.01",FISCAL YEAR 2009,"","","","JAWORSKI, KIMBERLY H"
,DEMOCRATIC CAUCUS,2009Q3,PERSONNEL COMPENSATION,"","KISSINGER,JUSTIN A",08/05/09,09/30/09,LEGAL FELLOW,"4,666.67",FISCAL YEAR 2009,"","","","KISSINGER,JUSTIN A"
,DEMOCRATIC CAUCUS,2009Q3,PERSONNEL COMPENSATION,"","KRASOV,ALEXANDRA",07/01/09,09/30/09,PRESS ASSISTANT,"11,250.00",FISCAL YEAR 2009,"","","","KRASOV,ALEXANDRA"
,DEMOCRATIC CAUCUS,2009Q3,PERSONNEL COMPENSATION,"","MALERBA,LIZ",07/01/09,09/30/09,OUTREACH ASSISTANT,"9,249.99",FISCAL YEAR 2009,"","","","MALERBA,LIZ"
,DEMOCRATIC CAUCUS,2009Q3,PERSONNEL COMPENSATION,"","MCCLUSKIE,SEAN E",07/01/09,09/30/09,STAFF DIR FOR THE VICE CHAIR,"20,868.06",FISCAL YEAR 2009,"","","","MCCLUSKIE,SEAN E"
,DEMOCRATIC CAUCUS,2009Q3,PERSONNEL COMPENSATION,"","MERZ, JULIE E",07/01/09,09/30/09,SHARED EMPLOYEE,"17,499.99",FISCAL YEAR 2009,"","","","MERZ, JULIE E"
,DEMOCRATIC CAUCUS,2009Q3,PERSONNEL COMPENSATION,"","NORTHCROSS,CHRISTOPHER",06/17/09,09/30/09,INTERN,"8,666.67",FISCAL YEAR 2009,"","","","NORTHCROSS,CHRISTOPHER"
,DEMOCRATIC CAUCUS,2009Q3,PERSONNEL COMPENSATION,"","PEREZ-GOMEZ,SALVADOR E",07/01/09,09/30/09,STAFF ASSISTANT,"8,750.01",FISCAL YEAR 2009,"","","","PEREZ-GOMEZ,SALVADOR E"
,DEMOCRATIC CAUCUS,2009Q3,PERSONNEL COMPENSATION,"","PERONACE,ANTONIO",07/01/09,09/30/09,DIR OF MULTIMEDIA COMM AND TEC,"13,749.99",FISCAL YEAR 2009,"","","","PERONACE,ANTONIO"
,DEMOCRATIC CAUCUS,2009Q3,PERSONNEL COMPENSATION,"","PIERSON, ROBERT M",07/01/09,09/30/09,DIRECTOR OF NEW MEDIA,"15,000.00",FISCAL YEAR 2009,"","","","PIERSON, ROBERT M"
,DEMOCRATIC CAUCUS,2009Q3,PERSONNEL COMPENSATION,"","ROBB, KAREN A",07/01/09,09/30/09,SHARED EMPLOYEE,"32,499.99",FISCAL YEAR 2009,"","","","ROBB, KAREN A"
,DEMOCRATIC CAUCUS,2009Q3,PERSONNEL COMPENSATION,"","RODRIGUEZ-CIAMPOLI,FABIOLA",07/01/09,09/30/09,COMMUNIC. DIR. - VICE CHAIR,"11,250.00",FISCAL YEAR 2009,"","","","RODRIGUEZ-CIAMPOLI,FABIOLA"
,DEMOCRATIC CAUCUS,2009Q3,PERSONNEL COMPENSATION,"","RODRIGUEZ-OLVERA,LORENZO A",07/01/09,09/30/09,MEMBER OUTREACH ASST-VICE CHR,"8,333.34",FISCAL YEAR 2009,"","","","RODRIGUEZ-OLVERA,LORENZO A"
,DEMOCRATIC CAUCUS,2009Q3,PERSONNEL COMPENSATION,"","RUBINO,SHELLEY M",07/01/09,09/30/09,ADVISOR TO THE CHAIRMAN,"30,000.00",FISCAL YEAR 2009,"","","","RUBINO,SHELLEY M"
,DEMOCRATIC CAUCUS,2009Q3,TRAVEL,"",07­15   P1 09DA0100152      GEORGE F SHEVLIN,06/25/09,06/25/09,"TAXI, PARKING, TOLLS",11.00,FISCAL YEAR 2009,"","","",07­15   P1 09DA0100152      GEORGE F SHEVLIN
,DEMOCRATIC CAUCUS,2009Q3,TRAVEL,"",07­15   P1 09DA0100153           DO,07/06/09,07/06/09,"TAXI, PARKING, TOLLS",21.00,FISCAL YEAR 2009,"","","",07­15   P1 09DA0100153           DO
,DEMOCRATIC CAUCUS,2009Q3,TRAVEL,"",07­15   P1 09DA0100154           DO,07/07/09,07/07/09,"TAXI, PARKING, TOLLS",15.00,FISCAL YEAR 2009,"","","",07­15   P1 09DA0100154           DO
,DEMOCRATIC CAUCUS,2009Q3,TRAVEL,"",07­15   P1 09DA0100155      SHELEY M RUBINO,07/08/09,07/08/09,"TAXI, PARKING, TOLLS",18.00,FISCAL YEAR 2009,"","","",07­15   P1 09DA0100155      SHELEY M RUBINO
,DEMOCRATIC CAUCUS,2009Q3,TRAVEL,"",07­15   P1 09DA0100156           DO,07/06/09,07/06/09,MEALS,8.15,FISCAL YEAR 2009,"","","",07­15   P1 09DA0100156           DO
,DEMOCRATIC CAUCUS,2009Q3,TRAVEL,"",07­15   P1 09DA0100157           DO,07/06/09,07/07/09,COMMERCIAL TRANSPORTATION,264.70,FISCAL YEAR 2009,"","","",07­15   P1 09DA0100157           DO
,DEMOCRATIC CAUCUS,2009Q3,TRAVEL,"",07­15   P1 09DA0100158           DO,07/06/09,07/08/09,COMMERCIAL TRANSPORTATION,264.70,FISCAL YEAR 2009,"","","",07­15   P1 09DA0100158           DO
,DEMOCRATIC CAUCUS,2009Q3,TRAVEL,"",09­15   P1 09DA0100204      CATHERINE LE TRAN,06/25/09,06/25/09,"TAXI, PARKING, TOLLS",13.00,FISCAL YEAR 2009,"","","",09­15   P1 09DA0100204      CATHERINE LE TRAN
,DEMOCRATIC CAUCUS,2009Q3,TRAVEL,"",09­22   P1 09DA0100212      GEORGE F SHEVLIN,09/09/09,09/09/09,"TAXI, PARKING, TOLLS",11.00,FISCAL YEAR 2009,"","","",09­22   P1 09DA0100212      GEORGE F SHEVLIN
,DEMOCRATIC CAUCUS,2009Q3,"RENT, COMMUNICATION, UTILITIES","",07­31   S3 09212G00011,07/01/09,07/31/09,HIR GRAPHICS (TRANSFER),280.00,FISCAL YEAR 2009,"","","",07­31   S3 09212G00011
,DEMOCRATIC CAUCUS,2009Q3,PRINTING AND REPRODUCTION,"",08­25   S3 09237000048,08/01/09,08/31/09,PHOTOGRAPHIC (TRANSFER),250.00,FISCAL YEAR 2009,"","","",08­25   S3 09237000048
,DEMOCRATIC CAUCUS,2009Q3,OTHER SERVICES,"",07­15   P1    09DA0100149                  SRDAN BANJAC,07/07/09,07/07/09,LAUNDRY SERVICE,60.40,FISCAL YEAR 2009,"","","",07­15   P1    09DA0100149                  SRDAN BANJAC
,DEMOCRATIC CAUCUS,2009Q3,OTHER SERVICES,"",07­15   P1    09DA0100150                       DO,07/08/09,07/08/09,LAUNDRY SERVICE,62.13,FISCAL YEAR 2009,"","","",07­15   P1    09DA0100150                       DO
,DEMOCRATIC CAUCUS,2009Q3,OTHER SERVICES,"",07­17   P1    09DA0100164                  ELIZABETH ANN BELIZZI,06/24/09,06/24/09,TRAINING EXPENSES,259.00,FISCAL YEAR 2009,"","","",07­17   P1    09DA0100164                  ELIZABETH ANN BELIZZI
,DEMOCRATIC CAUCUS,2009Q3,OTHER SERVICES,"",07­17   P1    09DA0100160                  SRDAN BANJAC,07/14/09,07/14/09,LAUNDRY SERVICE,63.46,FISCAL YEAR 2009,"","","",07­17   P1    09DA0100160                  SRDAN BANJAC
,DEMOCRATIC CAUCUS,2009Q3,OTHER SERVICES,"",07­29   P1    09DA0100172                  SHELEY M RUBINO,07/23/09,07/23/09,LAUNDRY SERVICE,201.69,FISCAL YEAR 2009,"","","",07­29   P1    09DA0100172                  SHELEY M RUBINO
,DEMOCRATIC CAUCUS,2009Q3,OTHER SERVICES,"",09­15   P1    09DA0100208                  KIMBERLY H JAWORSKI,09/03/09,09/03/09,LAUNDRY SERVICE,158.63,FISCAL YEAR 2009,"","","",09­15   P1    09DA0100208                  KIMBERLY H JAWORSKI
,DEMOCRATIC CAUCUS,2009Q3,OTHER SERVICES,"",09­29   P1    09DA0100218                  SRDAN BANJAC,09/23/09,09/23/09,LAUNDRY SERVICE,126.90,FISCAL YEAR 2009,"","","",09­29   P1    09DA0100218                  SRDAN BANJAC
,DEMOCRATIC CAUCUS,2009Q3,SUPPLIES AND MATERIALS,"",07­15 P1 09DA0100147          GEORGE F SHEVLIN,07/08/09,07/08/09,FOOD & BEVERAGE,"1,584.00",FISCAL YEAR 2009,"","","",07­15 P1 09DA0100147          GEORGE F SHEVLIN
,DEMOCRATIC CAUCUS,2009Q3,SUPPLIES AND MATERIALS,"",07­15 P1 09DA0100148               DO,07/07/09,07/07/09,FOOD & BEVERAGE,"2,222.00",FISCAL YEAR 2009,"","","",07­15 P1 09DA0100148               DO
,DEMOCRATIC CAUCUS,2009Q3,SUPPLIES AND MATERIALS,"",07­15 P1 09DA0100151               DO,07/06/09,07/06/09,FOOD & BEVERAGE,484.02,FISCAL YEAR 2009,"","","",07­15 P1 09DA0100151               DO
,DEMOCRATIC CAUCUS,2009Q3,SUPPLIES AND MATERIALS,"",07­15 P1 09DA0100159               DO,06/23/09,06/23/09,FOOD & BEVERAGE,855.00,FISCAL YEAR 2009,"","","",07­15 P1 09DA0100159               DO
,DEMOCRATIC CAUCUS,2009Q3,SUPPLIES AND MATERIALS,"",07­17 C1 NW200919701          DEER PARK,06/30/09,06/30/09,BOTTLED WATER,16.00,FISCAL YEAR 2009,"","","",07­17 C1 NW200919701          DEER PARK
,DEMOCRATIC CAUCUS,2009Q3,SUPPLIES AND MATERIALS,"",07­17 C1 NW200919701               DO,06/30/09,06/30/09,BOTTLED WATER,40.00,FISCAL YEAR 2009,"","","",07­17 C1 NW200919701               DO
,DEMOCRATIC CAUCUS,2009Q3,SUPPLIES AND MATERIALS,"",07­17 C1 NW200919701               DO,06/08/09,06/08/09,BOTTLED WATER,35.98,FISCAL YEAR 2009,"","","",07­17 C1 NW200919701               DO
,DEMOCRATIC CAUCUS,2009Q3,SUPPLIES AND MATERIALS,"",07­17 C1 NW200919701               DO,06/09/09,06/09/09,BOTTLED WATER,106.87,FISCAL YEAR 2009,"","","",07­17 C1 NW200919701               DO
,DEMOCRATIC CAUCUS,2009Q3,SUPPLIES AND MATERIALS,"",07­17 C1 NW200919701               DO,06/24/09,06/24/09,BOTTLED WATER,121.87,FISCAL YEAR 2009,"","","",07­17 C1 NW200919701               DO
,DEMOCRATIC CAUCUS,2009Q3,SUPPLIES AND MATERIALS,"",07­17 C1 NW200919701               DO,06/30/09,06/30/09,BOTTLED WATER,2.00,FISCAL YEAR 2009,"","","",07­17 C1 NW200919701               DO
,DEMOCRATIC CAUCUS,2009Q3,SUPPLIES AND MATERIALS,"",07­17 C1 NW200919701               DO,06/30/09,06/30/09,BOTTLED WATER,2.00,FISCAL YEAR 2009,"","","",07­17 C1 NW200919701               DO
,DEMOCRATIC CAUCUS,2009Q3,SUPPLIES AND MATERIALS,"",07­17 P1 09DA0100161          GEORGE F SHEVLIN,07/14/09,07/14/09,FOOD & BEVERAGE,"1,584.00",FISCAL YEAR 2009,"","","",07­17 P1 09DA0100161          GEORGE F SHEVLIN
,DEMOCRATIC CAUCUS,2009Q3,SUPPLIES AND MATERIALS,"",07­17 P1 09DA0100162               DO,07/13/09,07/13/09,FOOD & BEVERAGE,"1,000.00",FISCAL YEAR 2009,"","","",07­17 P1 09DA0100162               DO
,DEMOCRATIC CAUCUS,2009Q3,SUPPLIES AND MATERIALS,"",07­17 P1 09DA0100163               DO,06/09/09,06/09/09,FOOD & BEVERAGE,133.65,FISCAL YEAR 2009,"","","",07­17 P1 09DA0100163               DO
,DEMOCRATIC CAUCUS,2009Q3,SUPPLIES AND MATERIALS,"",07­29 P1 09DA0100170          BETTY CRUDUP,07/24/09,07/24/09,FOOD & BEVERAGE,650.00,FISCAL YEAR 2009,"","","",07­29 P1 09DA0100170          BETTY CRUDUP
,DEMOCRATIC CAUCUS,2009Q3,SUPPLIES AND MATERIALS,"",07­29 P1 09DA0100166          GEORGE F SHEVLIN,07/27/09,07/27/09,FOOD & BEVERAGE,111.04,FISCAL YEAR 2009,"","","",07­29 P1 09DA0100166          GEORGE F SHEVLIN
,DEMOCRATIC CAUCUS,2009Q3,SUPPLIES AND MATERIALS,"",07­29 P1 09DA0100167               DO,07/20/09,07/20/09,FOOD & BEVERAGE,436.00,FISCAL YEAR 2009,"","","",07­29 P1 09DA0100167               DO
,DEMOCRATIC CAUCUS,2009Q3,SUPPLIES AND MATERIALS,"",07­29 P1 09DA0100168               DO,07/21/09,07/21/09,FOOD & BEVERAGE,"1,584.00",FISCAL YEAR 2009,"","","",07­29 P1 09DA0100168               DO
,DEMOCRATIC CAUCUS,2009Q3,SUPPLIES AND MATERIALS,"",07­29 P1 09DA0100169               DO,07/17/09,07/17/09,FOOD & BEVERAGE,106.76,FISCAL YEAR 2009,"","","",07­29 P1 09DA0100169               DO
,DEMOCRATIC CAUCUS,2009Q3,SUPPLIES AND MATERIALS,"",07­29 P1 09DA0100171               DO,07/16/09,07/16/09,FOOD & BEVERAGE,229.81,FISCAL YEAR 2009,"","","",07­29 P1 09DA0100171               DO
,DEMOCRATIC CAUCUS,2009Q3,SUPPLIES AND MATERIALS,"",07­29 P1 09DA0100165          PENELOPE'S LLC,07/07/09,07/08/09,FOOD & BEVERAGE,"2,011.79",FISCAL YEAR 2009,"","","",07­29 P1 09DA0100165          PENELOPE'S LLC
,DEMOCRATIC CAUCUS,2009Q3,SUPPLIES AND MATERIALS,"",07­29 P1 09DA0100174          ROBERT PIERSON,07/20/09,10/20/09,PUBLICATION REF MATERIAL,59.85,FISCAL YEAR 2009,"","","",07­29 P1 09DA0100174          ROBERT PIERSON
,DEMOCRATIC CAUCUS,2009Q3,SUPPLIES AND MATERIALS,"",08­13 P1 09DA0100181          ELIZABETH MALERBA,07/28/09,07/28/09,FOOD & BEVERAGE,20.11,FISCAL YEAR 2009,"","","",08­13 P1 09DA0100181          ELIZABETH MALERBA
,DEMOCRATIC CAUCUS,2009Q3,SUPPLIES AND MATERIALS,"",08­13 P1 09DA0100182               DO,07/14/09,07/14/09,FOOD & BEVERAGE,50.82,FISCAL YEAR 2009,"","","",08­13 P1 09DA0100182               DO
,DEMOCRATIC CAUCUS,2009Q3,SUPPLIES AND MATERIALS,"",08­13 P1 09DA0100183               DO,07/29/09,07/29/09,FOOD & BEVERAGE,7.47,FISCAL YEAR 2009,"","","",08­13 P1 09DA0100183               DO
,DEMOCRATIC CAUCUS,2009Q3,SUPPLIES AND MATERIALS,"",08­13 P1 09DA0100184               DO,07/21/09,07/21/09,FOOD & BEVERAGE,14.61,FISCAL YEAR 2009,"","","",08­13 P1 09DA0100184               DO
,DEMOCRATIC CAUCUS,2009Q3,SUPPLIES AND MATERIALS,"",08­13 P1 09DA0100175          GEORGE F SHEVLIN,07/28/09,07/28/09,FOOD & BEVERAGE,"1,584.00",FISCAL YEAR 2009,"","","",08­13 P1 09DA0100175          GEORGE F SHEVLIN
,DEMOCRATIC CAUCUS,2009Q3,SUPPLIES AND MATERIALS,"",08­13 P1 09DA0100176               DO,07/29/09,07/29/09,FOOD & BEVERAGE,617.22,FISCAL YEAR 2009,"","","",08­13 P1 09DA0100176               DO
,DEMOCRATIC CAUCUS,2009Q3,SUPPLIES AND MATERIALS,"",08­13 P1 09DA0100179               DO,07/27/09,07/27/09,FOOD & BEVERAGE,440.00,FISCAL YEAR 2009,"","","",08­13 P1 09DA0100179               DO
,DEMOCRATIC CAUCUS,2009Q3,SUPPLIES AND MATERIALS,"",08­13 P1 09DA0100180               DO,07/31/09,07/31/09,FOOD & BEVERAGE,"1,573.50",FISCAL YEAR 2009,"","","",08­13 P1 09DA0100180               DO
,DEMOCRATIC CAUCUS,2009Q3,SUPPLIES AND MATERIALS,"",08­13 P1 09DA0100178          SHELEY M RUBINO,04/05/09,04/05/09,FOOD & BEVERAGE,12.45,FISCAL YEAR 2009,"","","",08­13 P1 09DA0100178          SHELEY M RUBINO
,DEMOCRATIC CAUCUS,2009Q3,SUPPLIES AND MATERIALS,"",08­31 C1 NW200924001          DEER PARK,07/31/09,07/31/09,BOTTLED WATER,16.00,FISCAL YEAR 2009,"","","",08­31 C1 NW200924001          DEER PARK
,DEMOCRATIC CAUCUS,2009Q3,SUPPLIES AND MATERIALS,"",08­31 C1 NW200924001               DO,07/31/09,07/31/09,BOTTLED WATER,40.00,FISCAL YEAR 2009,"","","",08­31 C1 NW200924001               DO
,DEMOCRATIC CAUCUS,2009Q3,SUPPLIES AND MATERIALS,"",08­31 C1 NW200924001               DO,07/08/09,07/08/09,BOTTLED WATER,64.96,FISCAL YEAR 2009,"","","",08­31 C1 NW200924001               DO
,DEMOCRATIC CAUCUS,2009Q3,SUPPLIES AND MATERIALS,"",08­31 C1 NW200924001               DO,07/15/09,07/15/09,BOTTLED WATER,69.90,FISCAL YEAR 2009,"","","",08­31 C1 NW200924001               DO
,DEMOCRATIC CAUCUS,2009Q3,SUPPLIES AND MATERIALS,"",08­31 C1 NW200924001               DO,07/24/09,07/24/09,BOTTLED WATER,115.88,FISCAL YEAR 2009,"","","",08­31 C1 NW200924001               DO
,DEMOCRATIC CAUCUS,2009Q3,SUPPLIES AND MATERIALS,"",08­31 C1 NW200924001               DO,07/31/09,07/31/09,BOTTLED WATER,2.00,FISCAL YEAR 2009,"","","",08­31 C1 NW200924001               DO
,DEMOCRATIC CAUCUS,2009Q3,SUPPLIES AND MATERIALS,"",08­31 C1 NW200924001               DO,07/31/09,07/31/09,BOTTLED WATER,2.00,FISCAL YEAR 2009,"","","",08­31 C1 NW200924001               DO
,DEMOCRATIC CAUCUS,2009Q3,SUPPLIES AND MATERIALS,"",09­15 P1 09DA0100207          GEORGE F SHEVLIN,08/26/09,08/26/09,PUBLICATION REF MATERIAL,63.34,FISCAL YEAR 2009,"","","",09­15 P1 09DA0100207          GEORGE F SHEVLIN
,DEMOCRATIC CAUCUS,2009Q3,SUPPLIES AND MATERIALS,"",09­15 P1 09DA0100200          SRDAN BANJAC,09/08/09,09/08/09,FOOD & BEVERAGE,15.96,FISCAL YEAR 2009,"","","",09­15 P1 09DA0100200          SRDAN BANJAC
,DEMOCRATIC CAUCUS,2009Q3,SUPPLIES AND MATERIALS,"",09­15 P1 09DA0100206          THE WASHINGTON POST,09/22/09,09/22/10,PUBLICATION REF MATERIAL,230.88,FISCAL YEAR 2009,"","","",09­15 P1 09DA0100206          THE WASHINGTON POST
,DEMOCRATIC CAUCUS,2009Q3,SUPPLIES AND MATERIALS,"",09­16 P1 09DA0100210          GEORGE F SHEVLIN,09/09/09,09/09/09,FOOD & BEVERAGE,"1,715.00",FISCAL YEAR 2009,"","","",09­16 P1 09DA0100210          GEORGE F SHEVLIN
,DEMOCRATIC CAUCUS,2009Q3,SUPPLIES AND MATERIALS,"",09­22       P1    09DA0100213                          DO,09/14/09,09/14/09,FOOD & BEVERAGE,196.30,FISCAL YEAR 2009,"","","",09­22       P1    09DA0100213                          DO
,DEMOCRATIC CAUCUS,2009Q3,SUPPLIES AND MATERIALS,"",09­24       HV    09A90100251,08/07/09,08/07/09,FRAMING (TRANSFER),470.00,FISCAL YEAR 2009,"","","",09­24       HV    09A90100251
,DEMOCRATIC CAUCUS,2009Q3,SUPPLIES AND MATERIALS,"",09­25       P1    09DA0100216                 GEORGE F SHEVLIN,09/15/09,09/15/09,FOOD & BEVERAGE,"1,529.00",FISCAL YEAR 2009,"","","",09­25       P1    09DA0100216                 GEORGE F SHEVLIN
,DEMOCRATIC CAUCUS,2009Q3,SUPPLIES AND MATERIALS,"",09­25       P1    09DA0100217                          DO,09/17/09,09/17/09,FOOD & BEVERAGE,"1,540.00",FISCAL YEAR 2009,"","","",09­25       P1    09DA0100217                          DO
